0,Entity,Payment Date,Expense Type,Expense Area,Supplier Name,Transactions Number, Amount (�) ,VAT Registration Number
FCO,FCO,17-Apr-12,Information Systems Maintenance,DG CHANGE & DELIVERY,3M UNITED KINGDOM PLC,1043353,"61,687.50",
FCO,FCO,17-Apr-12,VAT (Input) (Oracle Sub-Ledger Control Account),NON CASH & UNALLOCATED COSTS,3M UNITED KINGDOM PLC,1043353,"12,337.50",
FCO,FCO,04-Apr-12,Construction Project more than 10k,#N/A,ARGOTECH SRL,17921,"56,158.28",
FCO,FCO,11-Apr-12,Rental Payments - non residential,DG CHANGE & DELIVERY,APIA ASSET MANAGEMENT LIMITED,2000453,"35,196.00",
FCO,FCO,11-Apr-12,Rental Payments - non residential,DG CHANGE & DELIVERY,APIA ASSET MANAGEMENT LIMITED,2000453,"7,039.20",
FCO,FCO,12-Apr-12,Rental Payments - non residential,DG CHANGE & DELIVERY,ASSOCIACAO CULTURA INGLESA SAO PAULO,1008655,"25,736.76",
FCO,FCO,02-Apr-12,Programme Spend (Oracle Projects Control Account),UK TRADE AND INVESTMENT DIRECTORATE,ARCADIAN WORLD LIMITED,1041313,"38,250.00",
FCO,FCO,02-Apr-12,Programme Spend (Oracle Projects Control Account),UK TRADE AND INVESTMENT DIRECTORATE,ARCADIAN WORLD LIMITED,1041313,"7,650.00",
FCO,FCO,20-Apr-12,Research Budget,DG CENTRAL GROUP,GFK CUSTOM RESEARCH LLC,1004754,"30,597.44",
FCO,FCO,02-Apr-12,General Information Services,DG CHANGE & DELIVERY,BULLET MARKETING LTD,1041380,"26,666.00",
FCO,FCO,02-Apr-12,VAT (Input) (Oracle Sub-Ledger Control Account),NON CASH & UNALLOCATED COSTS,BULLET MARKETING LTD,1041380,"5,333.20",
FCO,FCO,11-Apr-12,General Information Services,DG CHANGE & DELIVERY,BULLET MARKETING LTD,1042876,"26,045.35",
FCO,FCO,11-Apr-12,VAT (Input) (Oracle Sub-Ledger Control Account),NON CASH & UNALLOCATED COSTS,BULLET MARKETING LTD,1042876,"5,209.07",
FCO,FCO,16-Apr-12,General Information Services,DG CHANGE & DELIVERY,BULLET MARKETING LTD,1043261,"26,666.00",
FCO,FCO,16-Apr-12,VAT (Input) (Oracle Sub-Ledger Control Account),NON CASH & UNALLOCATED COSTS,BULLET MARKETING LTD,1043261,"5,333.20",
FCO,FCO,19-Apr-12,General Information Services,DG CHANGE & DELIVERY,BULLET MARKETING LTD,1043607,"26,666.00",
FCO,FCO,19-Apr-12,VAT (Input) (Oracle Sub-Ledger Control Account),NON CASH & UNALLOCATED COSTS,BULLET MARKETING LTD,1043607,"5,333.20",
FCO,FCO,12-Apr-12,Programme Spend (Oracle Projects Control Account),DG DEFENCE AND INTELLIGENCE,TURKS AND CAICOS ISLANDS GOVERNMENT - TCIG,1004703,"3,785,250.14",
FCO,FCO,19-Apr-12,General Information Services,DG CHANGE & DELIVERY,GRAYLING UK LIMITED,1043643,"27,081.26",
FCO,FCO,19-Apr-12,VAT (Input) (Oracle Sub-Ledger Control Account),NON CASH & UNALLOCATED COSTS,GRAYLING UK LIMITED,1043643,"5,416.25",
FCO,FCO,24-Apr-12,Construction Project more than 10k,#N/A,REVTECH ELECTRICAL SERVICES LTD,40010002135,"50,656.85",
FCO,FCO,02-Apr-12,Rental Payments - non residential,DG CHANGE & DELIVERY,GRAHAM DACRE AKA DACRE PROPERTY HOLDINGS,1041583,"12,479.50",
FCO,FCO,02-Apr-12,Rental Payments - non residential,DG CHANGE & DELIVERY,GRAHAM DACRE AKA DACRE PROPERTY HOLDINGS,1041583,"59,237.50",
FCO,FCO,02-Apr-12,Rental Payments - non residential,DG CHANGE & DELIVERY,GRAHAM DACRE AKA DACRE PROPERTY HOLDINGS,1041583,"53,012.00",
FCO,FCO,02-Apr-12,Rental Payments - non residential,DG CHANGE & DELIVERY,GRAHAM DACRE AKA DACRE PROPERTY HOLDINGS,1041583,"34,042.00",
FCO,FCO,02-Apr-12,Rental Payments - non residential,DG CHANGE & DELIVERY,GRAHAM DACRE AKA DACRE PROPERTY HOLDINGS,1041583,"2,495.90",
FCO,FCO,02-Apr-12,Rental Payments - non residential,DG CHANGE & DELIVERY,GRAHAM DACRE AKA DACRE PROPERTY HOLDINGS,1041583,"11,847.50",
FCO,FCO,02-Apr-12,Rental Payments - non residential,DG CHANGE & DELIVERY,GRAHAM DACRE AKA DACRE PROPERTY HOLDINGS,1041583,"10,602.40",
FCO,FCO,02-Apr-12,Rental Payments - non residential,DG CHANGE & DELIVERY,GRAHAM DACRE AKA DACRE PROPERTY HOLDINGS,1041583,"6,808.40",
FCO,FCO,23-Apr-12,Nursery Childcare Subsidy,DG CHANGE & DELIVERY,EDENRED,1043793,"34,867.67",
FCO,FCO,23-Apr-12,Nursery Childcare Subsidy,DG CHANGE & DELIVERY,EDENRED,1043793,"1,126.22",
FCO,FCO,23-Apr-12,VAT (Input) (Oracle Sub-Ledger Control Account),NON CASH & UNALLOCATED COSTS,EDENRED,1043793,225.24,
FCO,FCO,10-Apr-12,Programme Spend (Oracle Projects Control Account),DG CENTRAL GROUP,TURNINGPOINT SOLUTIONS,17157750,"31,248.39",
FCO,FCO,02-Apr-12,Construction Project more than 10k,#N/A,SG ELECTRICAL SOLUTIONS,1041990,"41,606.79",
FCO,FCO,10-Apr-12,Specialist Contractors,DG FINANCE,RSM TENON LTD,1042836,"22,391.00",
FCO,FCO,10-Apr-12,VAT (Input) (Oracle Sub-Ledger Control Account),NON CASH & UNALLOCATED COSTS,RSM TENON LTD,1042836,"4,478.20",
FCO,FCO,02-Apr-12,Information Systems Under 3000 (non-capitalised),DG CENTRAL GROUP,WEBEX COMMUNICATIONS UK LTD,1042115,"27,511.00",
FCO,FCO,02-Apr-12,Information Systems Under 3000 (non-capitalised),DG CENTRAL GROUP,WEBEX COMMUNICATIONS UK LTD,1042115,"9,372.20",
FCO,FCO,24-Apr-12,Building Fabric Services,#N/A,ISS FACILITY SERVICES LTD FCO OP,9000158,"1,397.39",
FCO,FCO,24-Apr-12,Residential Property Services,#N/A,ISS FACILITY SERVICES LTD FCO OP,9000158,"1,616.44",
FCO,FCO,24-Apr-12,Reception Services,#N/A,ISS FACILITY SERVICES LTD FCO OP,9000158,"3,630.18",
FCO,FCO,24-Apr-12,Miscellaneous Expenditure: inc subscriptions and equipment maintenance,#N/A,ISS FACILITY SERVICES LTD FCO OP,9000158,706.51,
FCO,FCO,24-Apr-12,Cleaning & Waste,#N/A,ISS FACILITY SERVICES LTD FCO OP,9000158,"6,962.74",
FCO,FCO,24-Apr-12,Office Support Services,#N/A,ISS FACILITY SERVICES LTD FCO OP,9000158,"1,737.28",
FCO,FCO,24-Apr-12,Repair and maintenance of furniture and fittings,#N/A,ISS FACILITY SERVICES LTD FCO OP,9000158,"1,274.43",
FCO,FCO,24-Apr-12,Mail & Porterage Services,#N/A,ISS FACILITY SERVICES LTD FCO OP,9000158,"1,747.30",
FCO,FCO,24-Apr-12,Grounds Maintenance,#N/A,ISS FACILITY SERVICES LTD FCO OP,9000158,"4,489.02",
FCO,FCO,24-Apr-12,Building Mechanical and Engineering Services,#N/A,ISS FACILITY SERVICES LTD FCO OP,9000158,"8,669.82",
FCO,FCO,24-Apr-12,Contract Fees,#N/A,ISS FACILITY SERVICES LTD FCO OP,9000158,"2,131.55",
FCO,FCO,24-Apr-12,Contract Fees,#N/A,ISS FACILITY SERVICES LTD FCO OP,9000158,873.84,
FCO,FCO,24-Apr-12,Contract Fees,#N/A,ISS FACILITY SERVICES LTD FCO OP,9000158,"1,575.29",
FCO,FCO,24-Apr-12,Contract Fees,#N/A,ISS FACILITY SERVICES LTD FCO OP,9000158,448.8,
FCO,FCO,24-Apr-12,Contract Fees,#N/A,ISS FACILITY SERVICES LTD FCO OP,9000158,577.62,
FCO,FCO,24-Apr-12,Contract Fees,#N/A,ISS FACILITY SERVICES LTD FCO OP,9000158,206.33,
FCO,FCO,24-Apr-12,Contract Fees,#N/A,ISS FACILITY SERVICES LTD FCO OP,9000158,763.79,
FCO,FCO,24-Apr-12,Unscheduled repairs to building infrastructure,#N/A,ISS FACILITY SERVICES LTD FCO OP,9000158,"4,647.63",
FCO,FCO,24-Apr-12,FM Interserve BES Maintenance,#N/A,ISS FACILITY SERVICES LTD FCO OP,9000166,97.65,
FCO,FCO,24-Apr-12,FM Interserve Cleaning,#N/A,ISS FACILITY SERVICES LTD FCO OP,9000166,269,
FCO,FCO,24-Apr-12,FM Interserve Cleaning,#N/A,ISS FACILITY SERVICES LTD FCO OP,9000166,220.58,
FCO,FCO,24-Apr-12,FM Interserve BES Maintenance,#N/A,ISS FACILITY SERVICES LTD FCO OP,9000166,"1,043.50",
FCO,FCO,24-Apr-12,FM Interserve BES Maintenance,#N/A,ISS FACILITY SERVICES LTD FCO OP,9000166,"44,335.12",
FCO,FCO,24-Apr-12,FM Interserve BES Maintenance,#N/A,ISS FACILITY SERVICES LTD FCO OP,9000166,"78,175.05",
FCO,FCO,25-Apr-12,Recharge Suspense Account (Oracle PA Control Account),NON CASH & UNALLOCATED COSTS,FAIZA HASSAN TAHA,200001218,"45,423.00",
FCO,FCO,17-Apr-12,Programme Spend (Oracle Projects Control Account),DG POLITICAL,CAMP ALATOO,2000001149,"29,400.00",
FCO,FCO,24-Apr-12,Gas Non-Residential,#N/A,ISS FACILITY SERVICES LTD FCO OP - POE,9000168,830.09,
FCO,FCO,24-Apr-12,Telephone Call Charges,#N/A,ISS FACILITY SERVICES LTD FCO OP - POE,9000168,297.57,
FCO,FCO,24-Apr-12,Water Residential,#N/A,ISS FACILITY SERVICES LTD FCO OP - POE,9000168,105.96,
FCO,FCO,24-Apr-12,Telephone line and equipment rental charges,#N/A,ISS FACILITY SERVICES LTD FCO OP - POE,9000168,297.57,
FCO,FCO,24-Apr-12,Gas Non-Residential,#N/A,ISS FACILITY SERVICES LTD FCO OP - POE,9000168,654.66,
FCO,FCO,24-Apr-12,Gas Residential,#N/A,ISS FACILITY SERVICES LTD FCO OP - POE,9000168,621.33,
FCO,FCO,24-Apr-12,Gas Residential,#N/A,ISS FACILITY SERVICES LTD FCO OP - POE,9000168,533.29,
FCO,FCO,24-Apr-12,Water Non-Residential,#N/A,ISS FACILITY SERVICES LTD FCO OP - POE,9000168,714,
FCO,FCO,24-Apr-12,Telephone Call Charges,#N/A,ISS FACILITY SERVICES LTD FCO OP - POE,9000168,892.73,
FCO,FCO,24-Apr-12,Rental Payments - non residential,DG CHANGE & DELIVERY,ISS FACILITY SERVICES LTD FCO OP - POE,9000168,"17,715.76",
FCO,FCO,24-Apr-12,Gas Residential,#N/A,ISS FACILITY SERVICES LTD FCO OP - POE,9000168,124.88,
FCO,FCO,24-Apr-12,Rental Payments - non residential,DG CHANGE & DELIVERY,ISS FACILITY SERVICES LTD FCO OP - POE,9000168,"51,742.51",
FCO,FCO,24-Apr-12,Electricity Non-Residential,#N/A,ISS FACILITY SERVICES LTD FCO OP - POE,9000168,531.08,
FCO,FCO,24-Apr-12,Telephone line and equipment rental charges,#N/A,ISS FACILITY SERVICES LTD FCO OP - POE,9000168,892.73,
FCO,FCO,24-Apr-12,Gas Residential,#N/A,ISS FACILITY SERVICES LTD FCO OP - POE,9000168,53.56,
FCO,FCO,24-Apr-12,Gas Residential,#N/A,ISS FACILITY SERVICES LTD FCO OP - POE,9000168,654.77,
FCO,FCO,24-Apr-12,Telephone Call Charges,#N/A,ISS FACILITY SERVICES LTD FCO OP - POE,9000168,"1,190.30",
FCO,FCO,24-Apr-12,Gas Residential,#N/A,ISS FACILITY SERVICES LTD FCO OP - POE,9000168,39.5,
FCO,FCO,24-Apr-12,Electricity Residential,#N/A,ISS FACILITY SERVICES LTD FCO OP - POE,9000168,511.94,
FCO,FCO,24-Apr-12,Gas Residential,#N/A,ISS FACILITY SERVICES LTD FCO OP - POE,9000168,25.51,
FCO,FCO,24-Apr-12,Gas Non-Residential,#N/A,ISS FACILITY SERVICES LTD FCO OP - POE,9000168,654.66,
FCO,FCO,24-Apr-12,Overseas Reclaimable Taxes,#N/A,ISS FACILITY SERVICES LTD FCO OP - POE,9000168,29.75,
FCO,FCO,24-Apr-12,Telephone line and equipment rental charges,#N/A,ISS FACILITY SERVICES LTD FCO OP - POE,9000168,297.58,
FCO,FCO,24-Apr-12,Gas Residential,#N/A,ISS FACILITY SERVICES LTD FCO OP - POE,9000168,45.47,
FCO,FCO,24-Apr-12,Gas Residential,#N/A,ISS FACILITY SERVICES LTD FCO OP - POE,9000168,389.48,
FCO,FCO,24-Apr-12,Overseas Reclaimable Taxes,#N/A,ISS FACILITY SERVICES LTD FCO OP - POE,9000168,29.75,
FCO,FCO,24-Apr-12,Telephone Call Charges,#N/A,ISS FACILITY SERVICES LTD FCO OP - POE,9000168,119.03,
FCO,FCO,24-Apr-12,Overseas Reclaimable Taxes,#N/A,ISS FACILITY SERVICES LTD FCO OP - POE,9000168,71.4,
FCO,FCO,24-Apr-12,Gas Residential,#N/A,ISS FACILITY SERVICES LTD FCO OP - POE,9000168,385.72,
FCO,FCO,24-Apr-12,Gas Residential,#N/A,ISS FACILITY SERVICES LTD FCO OP - POE,9000168,47.61,
FCO,FCO,24-Apr-12,Gas Residential,#N/A,ISS FACILITY SERVICES LTD FCO OP - POE,9000168,304.33,
FCO,FCO,24-Apr-12,Overseas Reclaimable Taxes,#N/A,ISS FACILITY SERVICES LTD FCO OP - POE,9000168,"5,174.25",
FCO,FCO,24-Apr-12,Water Residential,#N/A,ISS FACILITY SERVICES LTD FCO OP - POE,9000168,48.24,
FCO,FCO,24-Apr-12,Electricity Non-Residential,#N/A,ISS FACILITY SERVICES LTD FCO OP - POE,9000168,"3,543.40",
FCO,FCO,24-Apr-12,Overseas Reclaimable Taxes,#N/A,ISS FACILITY SERVICES LTD FCO OP - POE,9000168,89.27,
FCO,FCO,24-Apr-12,Telephone line and equipment rental charges,#N/A,ISS FACILITY SERVICES LTD FCO OP - POE,9000168,892.73,
FCO,FCO,24-Apr-12,Water Non-Residential,#N/A,ISS FACILITY SERVICES LTD FCO OP - POE,9000168,595.15,
FCO,FCO,24-Apr-12,Overseas Reclaimable Taxes,#N/A,ISS FACILITY SERVICES LTD FCO OP - POE,9000168,119.03,
FCO,FCO,24-Apr-12,Gas Residential,#N/A,ISS FACILITY SERVICES LTD FCO OP - POE,9000168,96.35,
FCO,FCO,24-Apr-12,Overseas Reclaimable Taxes,#N/A,ISS FACILITY SERVICES LTD FCO OP - POE,9000168,10.6,
FCO,FCO,24-Apr-12,Gas Residential,#N/A,ISS FACILITY SERVICES LTD FCO OP - POE,9000168,337.37,
FCO,FCO,24-Apr-12,Overseas Reclaimable Taxes,#N/A,ISS FACILITY SERVICES LTD FCO OP - POE,9000168,65.47,
FCO,FCO,24-Apr-12,Overseas Reclaimable Taxes,#N/A,ISS FACILITY SERVICES LTD FCO OP - POE,9000168,65.47,
FCO,FCO,24-Apr-12,Gas Residential,#N/A,ISS FACILITY SERVICES LTD FCO OP - POE,9000168,166.54,
FCO,FCO,24-Apr-12,Overseas Reclaimable Taxes,#N/A,ISS FACILITY SERVICES LTD FCO OP - POE,9000168,89.27,
FCO,FCO,24-Apr-12,Gas Residential,#N/A,ISS FACILITY SERVICES LTD FCO OP - POE,9000168,240.14,
FCO,FCO,24-Apr-12,Gas Residential,#N/A,ISS FACILITY SERVICES LTD FCO OP - POE,9000168,504.94,
FCO,FCO,24-Apr-12,Overseas Reclaimable Taxes,#N/A,ISS FACILITY SERVICES LTD FCO OP - POE,9000168,"1,771.57",
FCO,FCO,24-Apr-12,Gas Residential,#N/A,ISS FACILITY SERVICES LTD FCO OP - POE,9000168,62.95,
FCO,FCO,24-Apr-12,Overseas Reclaimable Taxes,#N/A,ISS FACILITY SERVICES LTD FCO OP - POE,9000168,53.11,
FCO,FCO,24-Apr-12,Overseas Reclaimable Taxes,#N/A,ISS FACILITY SERVICES LTD FCO OP - POE,9000168,65.48,
FCO,FCO,24-Apr-12,Rental Payments - residential,#N/A,ISS FACILITY SERVICES LTD FCO OP - POE,9000168,"2,702.45",
FCO,FCO,24-Apr-12,Gas Residential,#N/A,ISS FACILITY SERVICES LTD FCO OP - POE,9000168,101.18,
FCO,FCO,24-Apr-12,Overseas Reclaimable Taxes,#N/A,ISS FACILITY SERVICES LTD FCO OP - POE,9000168,51.19,
FCO,FCO,24-Apr-12,Rental Payments - residential,#N/A,ISS FACILITY SERVICES LTD FCO OP - POE,9000168,"5,120.13",
FCO,FCO,24-Apr-12,Overseas Reclaimable Taxes,#N/A,ISS FACILITY SERVICES LTD FCO OP - POE,9000168,29.76,
FCO,FCO,24-Apr-12,Overseas Reclaimable Taxes,#N/A,ISS FACILITY SERVICES LTD FCO OP - POE,9000168,11.9,
FCO,FCO,24-Apr-12,Gas Residential,#N/A,ISS FACILITY SERVICES LTD FCO OP - POE,9000168,74.8,
FCO,FCO,24-Apr-12,Overseas Reclaimable Taxes,#N/A,ISS FACILITY SERVICES LTD FCO OP - POE,9000168,38.57,
FCO,FCO,24-Apr-12,Telephone Call Charges,#N/A,ISS FACILITY SERVICES LTD FCO OP - POE,9000168,"2,380.60",
FCO,FCO,24-Apr-12,Rental Payments - residential,#N/A,ISS FACILITY SERVICES LTD FCO OP - POE,9000168,"3,398.16",
FCO,FCO,24-Apr-12,Overseas Reclaimable Taxes,#N/A,ISS FACILITY SERVICES LTD FCO OP - POE,9000168,4.82,
FCO,FCO,24-Apr-12,Gas Residential,#N/A,ISS FACILITY SERVICES LTD FCO OP - POE,9000168,148.79,
FCO,FCO,24-Apr-12,Overseas Reclaimable Taxes,#N/A,ISS FACILITY SERVICES LTD FCO OP - POE,9000168,89.27,
FCO,FCO,24-Apr-12,Overseas Reclaimable Taxes,#N/A,ISS FACILITY SERVICES LTD FCO OP - POE,9000168,59.52,
FCO,FCO,24-Apr-12,Rental Payments - residential,#N/A,ISS FACILITY SERVICES LTD FCO OP - POE,9000168,"3,555.84",
FCO,FCO,24-Apr-12,Gas Residential,#N/A,ISS FACILITY SERVICES LTD FCO OP - POE,9000168,101.17,
FCO,FCO,24-Apr-12,Rental Payments - residential,#N/A,ISS FACILITY SERVICES LTD FCO OP - POE,9000168,"4,849.10",
FCO,FCO,24-Apr-12,Gas Residential,#N/A,ISS FACILITY SERVICES LTD FCO OP - POE,9000168,101.18,
FCO,FCO,24-Apr-12,Rental Payments - residential,#N/A,ISS FACILITY SERVICES LTD FCO OP - POE,9000168,"1,991.27",
FCO,FCO,24-Apr-12,Gas Residential,#N/A,ISS FACILITY SERVICES LTD FCO OP - POE,9000168,70.09,
FCO,FCO,24-Apr-12,Rental Payments - residential,#N/A,ISS FACILITY SERVICES LTD FCO OP - POE,9000168,"2,702.44",
FCO,FCO,24-Apr-12,Gas Residential,#N/A,ISS FACILITY SERVICES LTD FCO OP - POE,9000168,232.11,
FCO,FCO,24-Apr-12,Telephone line and equipment rental charges,#N/A,ISS FACILITY SERVICES LTD FCO OP - POE,9000168,"2,975.74",
FCO,FCO,24-Apr-12,Rental Payments - residential,#N/A,ISS FACILITY SERVICES LTD FCO OP - POE,9000168,"2,275.61",
FCO,FCO,24-Apr-12,Gas Residential,#N/A,ISS FACILITY SERVICES LTD FCO OP - POE,9000168,232.11,
FCO,FCO,24-Apr-12,Rental Payments - residential,#N/A,ISS FACILITY SERVICES LTD FCO OP - POE,9000168,"2,617.10",
FCO,FCO,24-Apr-12,Gas Residential,#N/A,ISS FACILITY SERVICES LTD FCO OP - POE,9000168,439.6,
FCO,FCO,24-Apr-12,Telephone line and equipment rental charges,#N/A,ISS FACILITY SERVICES LTD FCO OP - POE,9000168,297.58,
FCO,FCO,24-Apr-12,Telephone Call Charges,#N/A,ISS FACILITY SERVICES LTD FCO OP - POE,9000168,357.09,
FCO,FCO,24-Apr-12,Electricity Residential,#N/A,ISS FACILITY SERVICES LTD FCO OP - POE,9000168,"1,201.55",
FCO,FCO,24-Apr-12,Gas Residential,#N/A,ISS FACILITY SERVICES LTD FCO OP - POE,9000168,422.57,
FCO,FCO,24-Apr-12,Overseas Reclaimable Taxes,#N/A,ISS FACILITY SERVICES LTD FCO OP - POE,9000168,83.01,
FCO,FCO,24-Apr-12,Overseas Reclaimable Taxes,#N/A,ISS FACILITY SERVICES LTD FCO OP - POE,9000168,62.13,
FCO,FCO,24-Apr-12,Overseas Reclaimable Taxes,#N/A,ISS FACILITY SERVICES LTD FCO OP - POE,9000168,53.33,
FCO,FCO,24-Apr-12,Overseas Reclaimable Taxes,#N/A,ISS FACILITY SERVICES LTD FCO OP - POE,9000168,12.49,
FCO,FCO,24-Apr-12,Overseas Reclaimable Taxes,#N/A,ISS FACILITY SERVICES LTD FCO OP - POE,9000168,5.36,
FCO,FCO,24-Apr-12,Overseas Reclaimable Taxes,#N/A,ISS FACILITY SERVICES LTD FCO OP - POE,9000168,3.95,
FCO,FCO,24-Apr-12,Overseas Reclaimable Taxes,#N/A,ISS FACILITY SERVICES LTD FCO OP - POE,9000168,2.55,
FCO,FCO,24-Apr-12,Overseas Reclaimable Taxes,#N/A,ISS FACILITY SERVICES LTD FCO OP - POE,9000168,4.55,
FCO,FCO,24-Apr-12,Overseas Reclaimable Taxes,#N/A,ISS FACILITY SERVICES LTD FCO OP - POE,9000168,38.95,
FCO,FCO,24-Apr-12,Overseas Reclaimable Taxes,#N/A,ISS FACILITY SERVICES LTD FCO OP - POE,9000168,4.76,
FCO,FCO,24-Apr-12,Overseas Reclaimable Taxes,#N/A,ISS FACILITY SERVICES LTD FCO OP - POE,9000168,30.44,
FCO,FCO,24-Apr-12,Overseas Reclaimable Taxes,#N/A,ISS FACILITY SERVICES LTD FCO OP - POE,9000168,354.34,
FCO,FCO,24-Apr-12,Overseas Reclaimable Taxes,#N/A,ISS FACILITY SERVICES LTD FCO OP - POE,9000168,9.64,
FCO,FCO,24-Apr-12,Overseas Reclaimable Taxes,#N/A,ISS FACILITY SERVICES LTD FCO OP - POE,9000168,33.73,
FCO,FCO,24-Apr-12,Overseas Reclaimable Taxes,#N/A,ISS FACILITY SERVICES LTD FCO OP - POE,9000168,16.65,
FCO,FCO,24-Apr-12,Overseas Reclaimable Taxes,#N/A,ISS FACILITY SERVICES LTD FCO OP - POE,9000168,24.01,
FCO,FCO,24-Apr-12,Overseas Reclaimable Taxes,#N/A,ISS FACILITY SERVICES LTD FCO OP - POE,9000168,50.49,
FCO,FCO,24-Apr-12,Overseas Reclaimable Taxes,#N/A,ISS FACILITY SERVICES LTD FCO OP - POE,9000168,6.3,
FCO,FCO,24-Apr-12,Overseas Reclaimable Taxes,#N/A,ISS FACILITY SERVICES LTD FCO OP - POE,9000168,10.12,
FCO,FCO,24-Apr-12,Overseas Reclaimable Taxes,#N/A,ISS FACILITY SERVICES LTD FCO OP - POE,9000168,7.48,
FCO,FCO,24-Apr-12,Overseas Reclaimable Taxes,#N/A,ISS FACILITY SERVICES LTD FCO OP - POE,9000168,238.06,
FCO,FCO,24-Apr-12,Overseas Reclaimable Taxes,#N/A,ISS FACILITY SERVICES LTD FCO OP - POE,9000168,14.88,
FCO,FCO,24-Apr-12,Overseas Reclaimable Taxes,#N/A,ISS FACILITY SERVICES LTD FCO OP - POE,9000168,10.11,
FCO,FCO,24-Apr-12,Overseas Reclaimable Taxes,#N/A,ISS FACILITY SERVICES LTD FCO OP - POE,9000168,10.12,
FCO,FCO,24-Apr-12,Overseas Reclaimable Taxes,#N/A,ISS FACILITY SERVICES LTD FCO OP - POE,9000168,7.01,
FCO,FCO,24-Apr-12,Overseas Reclaimable Taxes,#N/A,ISS FACILITY SERVICES LTD FCO OP - POE,9000168,23.21,
FCO,FCO,24-Apr-12,Overseas Reclaimable Taxes,#N/A,ISS FACILITY SERVICES LTD FCO OP - POE,9000168,297.58,
FCO,FCO,24-Apr-12,Overseas Reclaimable Taxes,#N/A,ISS FACILITY SERVICES LTD FCO OP - POE,9000168,23.21,
FCO,FCO,24-Apr-12,Overseas Reclaimable Taxes,#N/A,ISS FACILITY SERVICES LTD FCO OP - POE,9000168,43.96,
FCO,FCO,24-Apr-12,Overseas Reclaimable Taxes,#N/A,ISS FACILITY SERVICES LTD FCO OP - POE,9000168,29.76,
FCO,FCO,24-Apr-12,Overseas Reclaimable Taxes,#N/A,ISS FACILITY SERVICES LTD FCO OP - POE,9000168,35.71,
FCO,FCO,24-Apr-12,Overseas Reclaimable Taxes,#N/A,ISS FACILITY SERVICES LTD FCO OP - POE,9000168,120.16,
FCO,FCO,24-Apr-12,Overseas Reclaimable Taxes,#N/A,ISS FACILITY SERVICES LTD FCO OP - POE,9000168,42.26,
FCO,FCO,24-Apr-12,Electricity Non-Residential,#N/A,ISS FACILITY SERVICES LTD FCO OP - POE,9000171,"1,662.07",
FCO,FCO,24-Apr-12,Waste Disposal,#N/A,ISS FACILITY SERVICES LTD FCO OP - POE,9000171,6.9,
FCO,FCO,24-Apr-12,Electricity Residential,#N/A,ISS FACILITY SERVICES LTD FCO OP - POE,9000171,"3,503.03",
FCO,FCO,24-Apr-12,Waste Disposal,#N/A,ISS FACILITY SERVICES LTD FCO OP - POE,9000171,6.9,
FCO,FCO,24-Apr-12,Water Residential,#N/A,ISS FACILITY SERVICES LTD FCO OP - POE,9000171,2.26,
FCO,FCO,24-Apr-12,Telephone Call Charges,#N/A,ISS FACILITY SERVICES LTD FCO OP - POE,9000171,46.06,
FCO,FCO,24-Apr-12,Rental Payments - non residential,DG CHANGE & DELIVERY,ISS FACILITY SERVICES LTD FCO OP - POE,9000171,"8,492.38",
FCO,FCO,24-Apr-12,Rental Payments - non residential,DG CHANGE & DELIVERY,ISS FACILITY SERVICES LTD FCO OP - POE,9000171,"13,718.46",
FCO,FCO,24-Apr-12,Water Non-Residential,#N/A,ISS FACILITY SERVICES LTD FCO OP - POE,9000171,34.48,
FCO,FCO,24-Apr-12,Telephone Call Charges,#N/A,ISS FACILITY SERVICES LTD FCO OP - POE,9000171,329.29,
FCO,FCO,24-Apr-12,Electricity Non-Residential,#N/A,ISS FACILITY SERVICES LTD FCO OP - POE,9000171,561.27,
FCO,FCO,24-Apr-12,Waste Disposal,#N/A,ISS FACILITY SERVICES LTD FCO OP - POE,9000171,55.18,
FCO,FCO,24-Apr-12,Waste Disposal,#N/A,ISS FACILITY SERVICES LTD FCO OP - POE,9000171,31.04,
FCO,FCO,24-Apr-12,Water Residential,#N/A,ISS FACILITY SERVICES LTD FCO OP - POE,9000171,13.79,
FCO,FCO,24-Apr-12,Waste Disposal,#N/A,ISS FACILITY SERVICES LTD FCO OP - POE,9000171,88.11,
FCO,FCO,24-Apr-12,Electricity Residential,#N/A,ISS FACILITY SERVICES LTD FCO OP - POE,9000171,275.41,
FCO,FCO,24-Apr-12,Rental Payments - residential,#N/A,ISS FACILITY SERVICES LTD FCO OP - POE,9000171,88.11,
FCO,FCO,24-Apr-12,Water Residential,#N/A,ISS FACILITY SERVICES LTD FCO OP - POE,9000171,13.79,
FCO,FCO,24-Apr-12,Waste Disposal,#N/A,ISS FACILITY SERVICES LTD FCO OP - POE,9000171,88.11,
FCO,FCO,24-Apr-12,Electricity Residential,#N/A,ISS FACILITY SERVICES LTD FCO OP - POE,9000171,267.56,
FCO,FCO,24-Apr-12,Rental Payments - residential,#N/A,ISS FACILITY SERVICES LTD FCO OP - POE,9000171,88.11,
FCO,FCO,24-Apr-12,Water Residential,#N/A,ISS FACILITY SERVICES LTD FCO OP - POE,9000171,29.45,
FCO,FCO,24-Apr-12,Telephone Call Charges,#N/A,ISS FACILITY SERVICES LTD FCO OP - POE,9000171,"1,025.21",
FCO,FCO,24-Apr-12,Electricity Residential,#N/A,ISS FACILITY SERVICES LTD FCO OP - POE,9000171,229.74,
FCO,FCO,24-Apr-12,Waste Disposal,#N/A,ISS FACILITY SERVICES LTD FCO OP - POE,9000171,6.9,
FCO,FCO,24-Apr-12,Water Residential,#N/A,ISS FACILITY SERVICES LTD FCO OP - POE,9000171,1.34,
FCO,FCO,24-Apr-12,Electricity Residential,#N/A,ISS FACILITY SERVICES LTD FCO OP - POE,9000171,241.56,
FCO,FCO,24-Apr-12,Electricity Residential,#N/A,ISS FACILITY SERVICES LTD FCO OP - POE,9000171,114.34,
FCO,FCO,24-Apr-12,Water Residential,#N/A,ISS FACILITY SERVICES LTD FCO OP - POE,9000171,13.63,
FCO,FCO,24-Apr-12,Electricity Residential,#N/A,ISS FACILITY SERVICES LTD FCO OP - POE,9000171,33.59,
FCO,FCO,24-Apr-12,Water Residential,#N/A,ISS FACILITY SERVICES LTD FCO OP - POE,9000171,6.38,
FCO,FCO,24-Apr-12,Rental Payments - residential,#N/A,ISS FACILITY SERVICES LTD FCO OP - POE,9000171,248.29,
FCO,FCO,24-Apr-12,Electricity Residential,#N/A,ISS FACILITY SERVICES LTD FCO OP - POE,9000171,155.64,
FCO,FCO,24-Apr-12,Water Non-Residential,#N/A,ISS FACILITY SERVICES LTD FCO OP - POE,9000171,265.28,
FCO,FCO,24-Apr-12,Water Residential,#N/A,ISS FACILITY SERVICES LTD FCO OP - POE,9000171,28.04,
FCO,FCO,24-Apr-12,Water Residential,#N/A,ISS FACILITY SERVICES LTD FCO OP - POE,9000171,13.79,
FCO,FCO,24-Apr-12,Waste Disposal,#N/A,ISS FACILITY SERVICES LTD FCO OP - POE,9000171,6.9,
FCO,FCO,24-Apr-12,Electricity Residential,#N/A,ISS FACILITY SERVICES LTD FCO OP - POE,9000171,418.79,
FCO,FCO,24-Apr-12,Water Residential,#N/A,ISS FACILITY SERVICES LTD FCO OP - POE,9000171,15.19,
FCO,FCO,24-Apr-12,Electricity Residential,#N/A,ISS FACILITY SERVICES LTD FCO OP - POE,9000171,245.71,
FCO,FCO,24-Apr-12,Water Residential,#N/A,ISS FACILITY SERVICES LTD FCO OP - POE,9000171,13.79,
FCO,FCO,24-Apr-12,Waste Disposal,#N/A,ISS FACILITY SERVICES LTD FCO OP - POE,9000171,6.9,
FCO,FCO,24-Apr-12,Electricity Residential,#N/A,ISS FACILITY SERVICES LTD FCO OP - POE,9000171,134.2,
FCO,FCO,24-Apr-12,Water Residential,#N/A,ISS FACILITY SERVICES LTD FCO OP - POE,9000171,13.79,
FCO,FCO,24-Apr-12,Water Residential,#N/A,ISS FACILITY SERVICES LTD FCO OP - POE,9000171,14.37,
FCO,FCO,24-Apr-12,Waste Disposal,#N/A,ISS FACILITY SERVICES LTD FCO OP - POE,9000171,88.11,
FCO,FCO,24-Apr-12,Electricity Residential,#N/A,ISS FACILITY SERVICES LTD FCO OP - POE,9000171,359.87,
FCO,FCO,24-Apr-12,Waste Disposal,#N/A,ISS FACILITY SERVICES LTD FCO OP - POE,9000171,124.14,
FCO,FCO,24-Apr-12,Electricity Residential,#N/A,ISS FACILITY SERVICES LTD FCO OP - POE,9000171,117.21,
FCO,FCO,24-Apr-12,Rental Payments - residential,#N/A,ISS FACILITY SERVICES LTD FCO OP - POE,9000171,"26,432.48",
FCO,FCO,24-Apr-12,Water Residential,#N/A,ISS FACILITY SERVICES LTD FCO OP - POE,9000171,11.72,
FCO,FCO,24-Apr-12,Water Residential,#N/A,ISS FACILITY SERVICES LTD FCO OP - POE,9000171,13.79,
FCO,FCO,24-Apr-12,Waste Disposal,#N/A,ISS FACILITY SERVICES LTD FCO OP - POE,9000171,6.9,
FCO,FCO,24-Apr-12,Electricity Residential,#N/A,ISS FACILITY SERVICES LTD FCO OP - POE,9000171,308.22,
FCO,FCO,24-Apr-12,Electricity Residential,#N/A,ISS FACILITY SERVICES LTD FCO OP - POE,9000171,64.94,
FCO,FCO,24-Apr-12,Electricity Residential,#N/A,ISS FACILITY SERVICES LTD FCO OP - POE,9000171,364.07,
FCO,FCO,24-Apr-12,Water Residential,#N/A,ISS FACILITY SERVICES LTD FCO OP - POE,9000171,13.79,
FCO,FCO,24-Apr-12,Water Residential,#N/A,ISS FACILITY SERVICES LTD FCO OP - POE,9000171,1.34,
FCO,FCO,24-Apr-12,Electricity Residential,#N/A,ISS FACILITY SERVICES LTD FCO OP - POE,9000171,329.6,
FCO,FCO,24-Apr-12,Waste Disposal,#N/A,ISS FACILITY SERVICES LTD FCO OP - POE,9000171,88.11,
FCO,FCO,24-Apr-12,Electricity Residential,#N/A,ISS FACILITY SERVICES LTD FCO OP - POE,9000171,130.69,
FCO,FCO,24-Apr-12,Water Residential,#N/A,ISS FACILITY SERVICES LTD FCO OP - POE,9000171,11.72,
FCO,FCO,24-Apr-12,Water Residential,#N/A,ISS FACILITY SERVICES LTD FCO OP - POE,9000171,9.98,
FCO,FCO,24-Apr-12,Electricity Residential,#N/A,ISS FACILITY SERVICES LTD FCO OP - POE,9000171,69.57,
FCO,FCO,24-Apr-12,Electricity Residential,#N/A,ISS FACILITY SERVICES LTD FCO OP - POE,9000171,152.39,
FCO,FCO,24-Apr-12,Water Residential,#N/A,ISS FACILITY SERVICES LTD FCO OP - POE,9000171,15.18,
FCO,FCO,24-Apr-12,Waste Disposal,#N/A,ISS FACILITY SERVICES LTD FCO OP - POE,9000171,6.9,
FCO,FCO,24-Apr-12,Waste Disposal,#N/A,ISS FACILITY SERVICES LTD FCO OP - POE,9000171,88.11,
FCO,FCO,24-Apr-12,Water Residential,#N/A,ISS FACILITY SERVICES LTD FCO OP - POE,9000171,19.04,
FCO,FCO,24-Apr-12,Rental Payments - residential,#N/A,ISS FACILITY SERVICES LTD FCO OP - POE,9000171,88.11,
FCO,FCO,24-Apr-12,Electricity Residential,#N/A,ISS FACILITY SERVICES LTD FCO OP - POE,9000171,176.6,
FCO,FCO,24-Apr-12,Electricity Residential,#N/A,ISS FACILITY SERVICES LTD FCO OP - POE,9000171,105.85,
FCO,FCO,24-Apr-12,Water Residential,#N/A,ISS FACILITY SERVICES LTD FCO OP - POE,9000171,9.12,
FCO,FCO,24-Apr-12,Rental Payments - residential,#N/A,ISS FACILITY SERVICES LTD FCO OP - POE,9000171,"24,922.06",
FCO,FCO,24-Apr-12,Water Residential,#N/A,ISS FACILITY SERVICES LTD FCO OP - POE,9000171,8.36,
FCO,FCO,24-Apr-12,Electricity Residential,#N/A,ISS FACILITY SERVICES LTD FCO OP - POE,9000171,122.7,
FCO,FCO,24-Apr-12,Electricity Residential,#N/A,ISS FACILITY SERVICES LTD FCO OP - POE,9000171,120.51,
FCO,FCO,24-Apr-12,Water Residential,#N/A,ISS FACILITY SERVICES LTD FCO OP - POE,9000171,68.65,
FCO,FCO,24-Apr-12,Water Residential,#N/A,ISS FACILITY SERVICES LTD FCO OP - POE,9000171,16.56,
FCO,FCO,24-Apr-12,Water Residential,#N/A,ISS FACILITY SERVICES LTD FCO OP - POE,9000171,19.04,
FCO,FCO,24-Apr-12,Electricity Residential,#N/A,ISS FACILITY SERVICES LTD FCO OP - POE,9000171,196.46,
FCO,FCO,24-Apr-12,Electricity Residential,#N/A,ISS FACILITY SERVICES LTD FCO OP - POE,9000171,196.46,
FCO,FCO,24-Apr-12,Water Residential,#N/A,ISS FACILITY SERVICES LTD FCO OP - POE,9000171,19.04,
FCO,FCO,24-Apr-12,Water Residential,#N/A,ISS FACILITY SERVICES LTD FCO OP - POE,9000171,19.04,
FCO,FCO,24-Apr-12,Electricity Residential,#N/A,ISS FACILITY SERVICES LTD FCO OP - POE,9000171,196.46,
FCO,FCO,24-Apr-12,Waste Disposal,#N/A,ISS FACILITY SERVICES LTD FCO OP - POE,9000171,6.9,
FCO,FCO,24-Apr-12,Water Residential,#N/A,ISS FACILITY SERVICES LTD FCO OP - POE,9000171,19.04,
FCO,FCO,24-Apr-12,Electricity Residential,#N/A,ISS FACILITY SERVICES LTD FCO OP - POE,9000171,81.95,
FCO,FCO,24-Apr-12,Electricity Residential,#N/A,ISS FACILITY SERVICES LTD FCO OP - POE,9000171,236.47,
FCO,FCO,24-Apr-12,Electricity Residential,#N/A,ISS FACILITY SERVICES LTD FCO OP - POE,9000171,301.04,
FCO,FCO,24-Apr-12,Water Residential,#N/A,ISS FACILITY SERVICES LTD FCO OP - POE,9000171,1.34,
FCO,FCO,24-Apr-12,Waste Disposal,#N/A,ISS FACILITY SERVICES LTD FCO OP - POE,9000171,6.9,
FCO,FCO,24-Apr-12,Water Residential,#N/A,ISS FACILITY SERVICES LTD FCO OP - POE,9000171,20.57,
FCO,FCO,24-Apr-12,Electricity Residential,#N/A,ISS FACILITY SERVICES LTD FCO OP - POE,9000171,288.14,
FCO,FCO,24-Apr-12,Rental Payments - residential,#N/A,ISS FACILITY SERVICES LTD FCO OP - POE,9000171,248.29,
FCO,FCO,24-Apr-12,Waste Disposal,#N/A,ISS FACILITY SERVICES LTD FCO OP - POE,9000171,124.14,
FCO,FCO,24-Apr-12,Rental Payments - residential,#N/A,ISS FACILITY SERVICES LTD FCO OP - POE,9000171,"25,173.79",
FCO,FCO,24-Apr-12,Electricity Residential,#N/A,ISS FACILITY SERVICES LTD FCO OP - POE,9000171,113.9,
FCO,FCO,24-Apr-12,Water Residential,#N/A,ISS FACILITY SERVICES LTD FCO OP - POE,9000171,19.04,
FCO,FCO,24-Apr-12,Electricity Non-Residential,#N/A,ISS FACILITY SERVICES LTD FCO OP - POE,9000172,380.56,
FCO,FCO,24-Apr-12,Waste Disposal,#N/A,ISS FACILITY SERVICES LTD FCO OP - POE,9000172,22.83,
FCO,FCO,24-Apr-12,Fuel Oil Residential,#N/A,ISS FACILITY SERVICES LTD FCO OP - POE,9000172,380.55,
FCO,FCO,24-Apr-12,Telephone line and equipment rental charges,#N/A,ISS FACILITY SERVICES LTD FCO OP - POE,9000172,38.05,
FCO,FCO,24-Apr-12,Waste Disposal,#N/A,ISS FACILITY SERVICES LTD FCO OP - POE,9000172,22.83,
FCO,FCO,24-Apr-12,Gas Residential,#N/A,ISS FACILITY SERVICES LTD FCO OP - POE,9000172,38.05,
FCO,FCO,24-Apr-12,Gas Residential,#N/A,ISS FACILITY SERVICES LTD FCO OP - POE,9000172,26.64,
FCO,FCO,24-Apr-12,Telephone Call Charges,#N/A,ISS FACILITY SERVICES LTD FCO OP - POE,9000172,38.06,
FCO,FCO,24-Apr-12,Telephone line and equipment rental charges,#N/A,ISS FACILITY SERVICES LTD FCO OP - POE,9000172,38.06,
FCO,FCO,24-Apr-12,Electricity Residential,#N/A,ISS FACILITY SERVICES LTD FCO OP - POE,9000172,199.41,
FCO,FCO,24-Apr-12,Electricity Residential,#N/A,ISS FACILITY SERVICES LTD FCO OP - POE,9000172,152.22,
FCO,FCO,24-Apr-12,Electricity Residential,#N/A,ISS FACILITY SERVICES LTD FCO OP - POE,9000172,184.95,
FCO,FCO,24-Apr-12,Gas Residential,#N/A,ISS FACILITY SERVICES LTD FCO OP - POE,9000172,37.29,
FCO,FCO,24-Apr-12,Gas Residential,#N/A,ISS FACILITY SERVICES LTD FCO OP - POE,9000172,6.32,
FCO,FCO,24-Apr-12,Rental Payments - non residential,DG CHANGE & DELIVERY,ISS FACILITY SERVICES LTD FCO OP - POE,9000172,"22,016.25",
FCO,FCO,24-Apr-12,Gas Residential,#N/A,ISS FACILITY SERVICES LTD FCO OP - POE,9000172,63.17,
FCO,FCO,24-Apr-12,Waste Disposal,#N/A,ISS FACILITY SERVICES LTD FCO OP - POE,9000172,898.12,
FCO,FCO,24-Apr-12,Rental Payments - residential,#N/A,ISS FACILITY SERVICES LTD FCO OP - POE,9000172,"40,187.24",
FCO,FCO,24-Apr-12,Telephone Call Charges,#N/A,ISS FACILITY SERVICES LTD FCO OP - POE,9000172,228.34,
FCO,FCO,24-Apr-12,Electricity Residential,#N/A,ISS FACILITY SERVICES LTD FCO OP - POE,9000172,66.98,
FCO,FCO,24-Apr-12,Rental Payments - residential,#N/A,ISS FACILITY SERVICES LTD FCO OP - POE,9000172,"42,927.27",
FCO,FCO,24-Apr-12,Telephone line and equipment rental charges,#N/A,ISS FACILITY SERVICES LTD FCO OP - POE,9000172,"1,141.68",
FCO,FCO,24-Apr-12,Fuel Oil Non-Residential,#N/A,ISS FACILITY SERVICES LTD FCO OP - POE,9000172,91.33,
FCO,FCO,24-Apr-12,Fuel Oil Non-Residential,#N/A,ISS FACILITY SERVICES LTD FCO OP - POE,9000172,"2,587.82",
FCO,FCO,24-Apr-12,Gas Residential,#N/A,ISS FACILITY SERVICES LTD FCO OP - POE,9000172,37.29,
FCO,FCO,24-Apr-12,Gas Non-Residential,#N/A,ISS FACILITY SERVICES LTD FCO OP - POE,9000172,91.33,
FCO,FCO,24-Apr-12,Gas Residential,#N/A,ISS FACILITY SERVICES LTD FCO OP - POE,9000172,38.06,
FCO,FCO,24-Apr-12,Electricity Residential,#N/A,ISS FACILITY SERVICES LTD FCO OP - POE,9000172,152.22,
FCO,FCO,24-Apr-12,Electricity Residential,#N/A,ISS FACILITY SERVICES LTD FCO OP - POE,9000172,380.56,
FCO,FCO,24-Apr-12,Electricity Residential,#N/A,ISS FACILITY SERVICES LTD FCO OP - POE,9000172,239.24,
FCO,FCO,24-Apr-12,Electricity Residential,#N/A,ISS FACILITY SERVICES LTD FCO OP - POE,9000172,91.33,
FCO,FCO,24-Apr-12,Electricity Residential,#N/A,ISS FACILITY SERVICES LTD FCO OP - POE,9000172,121.78,
FCO,FCO,24-Apr-12,Gas Residential,#N/A,ISS FACILITY SERVICES LTD FCO OP - POE,9000172,57.08,
FCO,FCO,24-Apr-12,Electricity Residential,#N/A,ISS FACILITY SERVICES LTD FCO OP - POE,9000172,35.01,
FCO,FCO,24-Apr-12,Gas Residential,#N/A,ISS FACILITY SERVICES LTD FCO OP - POE,9000172,57.08,
FCO,FCO,24-Apr-12,Electricity Residential,#N/A,ISS FACILITY SERVICES LTD FCO OP - POE,9000172,63.17,
FCO,FCO,24-Apr-12,Electricity Residential,#N/A,ISS FACILITY SERVICES LTD FCO OP - POE,9000172,175.06,
FCO,FCO,24-Apr-12,Electricity Non-Residential,#N/A,ISS FACILITY SERVICES LTD FCO OP - POE,9000172,"10,807.93",
FCO,FCO,24-Apr-12,Gas Residential,#N/A,ISS FACILITY SERVICES LTD FCO OP - POE,9000172,7.61,
FCO,FCO,24-Apr-12,Rental Payments - residential,#N/A,ISS FACILITY SERVICES LTD FCO OP - POE,9000172,"49,914.37",
FCO,FCO,24-Apr-12,Gas Residential,#N/A,ISS FACILITY SERVICES LTD FCO OP - POE,9000172,31.97,
FCO,FCO,24-Apr-12,Electricity Residential,#N/A,ISS FACILITY SERVICES LTD FCO OP - POE,9000172,342.5,
FCO,FCO,24-Apr-12,Gas Residential,#N/A,ISS FACILITY SERVICES LTD FCO OP - POE,9000172,7.61,
FCO,FCO,24-Apr-12,Electricity Residential,#N/A,ISS FACILITY SERVICES LTD FCO OP - POE,9000172,106.56,
FCO,FCO,24-Apr-12,Rental Payments - residential,#N/A,ISS FACILITY SERVICES LTD FCO OP - POE,9000172,"15,983.56",
FCO,FCO,24-Apr-12,Gas Residential,#N/A,ISS FACILITY SERVICES LTD FCO OP - POE,9000172,26.64,
FCO,FCO,24-Apr-12,Electricity Residential,#N/A,ISS FACILITY SERVICES LTD FCO OP - POE,9000172,152.22,
FCO,FCO,24-Apr-12,Electricity Residential,#N/A,ISS FACILITY SERVICES LTD FCO OP - POE,9000172,175.06,
FCO,FCO,24-Apr-12,Gas Non-Residential,#N/A,ISS FACILITY SERVICES LTD FCO OP - POE,9000172,"4,490.62",
FCO,FCO,24-Apr-12,Gas Residential,#N/A,ISS FACILITY SERVICES LTD FCO OP - POE,9000172,37.29,
FCO,FCO,24-Apr-12,Gas Residential,#N/A,ISS FACILITY SERVICES LTD FCO OP - POE,9000172,37.29,
FCO,FCO,24-Apr-12,Electricity Residential,#N/A,ISS FACILITY SERVICES LTD FCO OP - POE,9000172,152.22,
FCO,FCO,24-Apr-12,Electricity Residential,#N/A,ISS FACILITY SERVICES LTD FCO OP - POE,9000172,152.22,
FCO,FCO,24-Apr-12,Gas Residential,#N/A,ISS FACILITY SERVICES LTD FCO OP - POE,9000172,37.29,
FCO,FCO,24-Apr-12,Gas Residential,#N/A,ISS FACILITY SERVICES LTD FCO OP - POE,9000172,37.29,
FCO,FCO,24-Apr-12,Electricity Residential,#N/A,ISS FACILITY SERVICES LTD FCO OP - POE,9000172,152.22,
FCO,FCO,24-Apr-12,Telephone Call Charges,#N/A,ISS FACILITY SERVICES LTD FCO OP - POE,9000172,913.35,
FCO,FCO,24-Apr-12,Telephone line and equipment rental charges,#N/A,ISS FACILITY SERVICES LTD FCO OP - POE,9000172,"1,141.68",
FCO,FCO,24-Apr-12,Waste Disposal,#N/A,ISS FACILITY SERVICES LTD FCO OP - POE,9000172,22.83,
FCO,FCO,24-Apr-12,Telephone Call Charges,#N/A,ISS FACILITY SERVICES LTD FCO OP - POE,9000172,38.05,
FCO,FCO,24-Apr-12,Electricity Residential,#N/A,ISS FACILITY SERVICES LTD FCO OP - POE,9000172,380.56,
FCO,FCO,24-Apr-12,Electricity Non-Residential,#N/A,ISS FACILITY SERVICES LTD FCO OP - POE,9000173,"2,875.13",
FCO,FCO,24-Apr-12,Gas Residential,#N/A,ISS FACILITY SERVICES LTD FCO OP - POE,9000173,30.22,
FCO,FCO,24-Apr-12,Gas Residential,#N/A,ISS FACILITY SERVICES LTD FCO OP - POE,9000173,28.84,
FCO,FCO,24-Apr-12,Electricity Residential,#N/A,ISS FACILITY SERVICES LTD FCO OP - POE,9000173,94.46,
FCO,FCO,24-Apr-12,Gas Residential,#N/A,ISS FACILITY SERVICES LTD FCO OP - POE,9000173,16.9,
FCO,FCO,24-Apr-12,Water Residential,#N/A,ISS FACILITY SERVICES LTD FCO OP - POE,9000173,24.08,
FCO,FCO,24-Apr-12,Rental Payments - residential,#N/A,ISS FACILITY SERVICES LTD FCO OP - POE,9000173,242.97,
FCO,FCO,24-Apr-12,Rental Payments - residential,#N/A,ISS FACILITY SERVICES LTD FCO OP - POE,9000173,187.38,
FCO,FCO,24-Apr-12,Gas Residential,#N/A,ISS FACILITY SERVICES LTD FCO OP - POE,9000173,3.95,
FCO,FCO,24-Apr-12,Electricity Residential,#N/A,ISS FACILITY SERVICES LTD FCO OP - POE,9000173,79.01,
FCO,FCO,24-Apr-12,Gas Residential,#N/A,ISS FACILITY SERVICES LTD FCO OP - POE,9000173,0.47,
FCO,FCO,24-Apr-12,Telephone line and equipment rental charges,#N/A,ISS FACILITY SERVICES LTD FCO OP - POE,9000173,611.24,
FCO,FCO,24-Apr-12,Rental Payments - residential,#N/A,ISS FACILITY SERVICES LTD FCO OP - POE,9000173,187.38,
FCO,FCO,24-Apr-12,Water Residential,#N/A,ISS FACILITY SERVICES LTD FCO OP - POE,9000173,40.41,
FCO,FCO,24-Apr-12,Gas Residential,#N/A,ISS FACILITY SERVICES LTD FCO OP - POE,9000173,27.22,
FCO,FCO,24-Apr-12,Electricity Residential,#N/A,ISS FACILITY SERVICES LTD FCO OP - POE,9000173,56.1,
FCO,FCO,24-Apr-12,Rental Payments - residential,#N/A,ISS FACILITY SERVICES LTD FCO OP - POE,9000173,392.78,
FCO,FCO,24-Apr-12,Gas Residential,#N/A,ISS FACILITY SERVICES LTD FCO OP - POE,9000173,28.79,
FCO,FCO,24-Apr-12,Electricity Residential,#N/A,ISS FACILITY SERVICES LTD FCO OP - POE,9000173,92.66,
FCO,FCO,24-Apr-12,Water Residential,#N/A,ISS FACILITY SERVICES LTD FCO OP - POE,9000173,24.08,
FCO,FCO,24-Apr-12,Electricity Residential,#N/A,ISS FACILITY SERVICES LTD FCO OP - POE,9000173,245.88,
FCO,FCO,24-Apr-12,Gas Residential,#N/A,ISS FACILITY SERVICES LTD FCO OP - POE,9000173,31.15,
FCO,FCO,24-Apr-12,Telephone Call Charges,#N/A,ISS FACILITY SERVICES LTD FCO OP - POE,9000173,611.24,
FCO,FCO,24-Apr-12,Electricity Residential,#N/A,ISS FACILITY SERVICES LTD FCO OP - POE,9000173,85.2,
FCO,FCO,24-Apr-12,Gas Residential,#N/A,ISS FACILITY SERVICES LTD FCO OP - POE,9000173,24.13,
FCO,FCO,24-Apr-12,Rental Payments - residential,#N/A,ISS FACILITY SERVICES LTD FCO OP - POE,9000173,353.77,
FCO,FCO,24-Apr-12,Water Residential,#N/A,ISS FACILITY SERVICES LTD FCO OP - POE,9000173,23.09,
FCO,FCO,24-Apr-12,Electricity Residential,#N/A,ISS FACILITY SERVICES LTD FCO OP - POE,9000173,94.46,
FCO,FCO,24-Apr-12,Rental Payments - residential,#N/A,ISS FACILITY SERVICES LTD FCO OP - POE,9000173,360.89,
FCO,FCO,24-Apr-12,Gas Residential,#N/A,ISS FACILITY SERVICES LTD FCO OP - POE,9000173,28.89,
FCO,FCO,24-Apr-12,Water Residential,#N/A,ISS FACILITY SERVICES LTD FCO OP - POE,9000173,24.08,
FCO,FCO,24-Apr-12,Electricity Residential,#N/A,ISS FACILITY SERVICES LTD FCO OP - POE,9000173,68.09,
FCO,FCO,24-Apr-12,Gas Residential,#N/A,ISS FACILITY SERVICES LTD FCO OP - POE,9000173,35.09,
FCO,FCO,24-Apr-12,Gas Non-Residential,#N/A,ISS FACILITY SERVICES LTD FCO OP - POE,9000173,619.48,
FCO,FCO,24-Apr-12,Water Residential,#N/A,ISS FACILITY SERVICES LTD FCO OP - POE,9000173,19.12,
FCO,FCO,24-Apr-12,Rental Payments - residential,#N/A,ISS FACILITY SERVICES LTD FCO OP - POE,9000173,365.38,
FCO,FCO,24-Apr-12,Water Residential,#N/A,ISS FACILITY SERVICES LTD FCO OP - POE,9000173,24.08,
FCO,FCO,24-Apr-12,Gas Residential,#N/A,ISS FACILITY SERVICES LTD FCO OP - POE,9000173,28.89,
FCO,FCO,24-Apr-12,Electricity Residential,#N/A,ISS FACILITY SERVICES LTD FCO OP - POE,9000173,94.46,
FCO,FCO,24-Apr-12,Rental Payments - residential,#N/A,ISS FACILITY SERVICES LTD FCO OP - POE,9000173,215.51,
FCO,FCO,24-Apr-12,Water Residential,#N/A,ISS FACILITY SERVICES LTD FCO OP - POE,9000173,24.08,
FCO,FCO,24-Apr-12,Rental Payments - residential,#N/A,ISS FACILITY SERVICES LTD FCO OP - POE,9000173,166.21,
FCO,FCO,24-Apr-12,Electricity Residential,#N/A,ISS FACILITY SERVICES LTD FCO OP - POE,9000173,94.46,
FCO,FCO,24-Apr-12,Gas Residential,#N/A,ISS FACILITY SERVICES LTD FCO OP - POE,9000173,9.25,
FCO,FCO,24-Apr-12,Water Non-Residential,#N/A,ISS FACILITY SERVICES LTD FCO OP - POE,9000173,"1,278.90",
FCO,FCO,24-Apr-12,Water Residential,#N/A,ISS FACILITY SERVICES LTD FCO OP - POE,9000173,24.08,
FCO,FCO,24-Apr-12,Electricity Residential,#N/A,ISS FACILITY SERVICES LTD FCO OP - POE,9000173,94.46,
FCO,FCO,24-Apr-12,Rental Payments - residential,#N/A,ISS FACILITY SERVICES LTD FCO OP - POE,9000173,"53,344.30",
FCO,FCO,24-Apr-12,Rental Payments - residential,#N/A,ISS FACILITY SERVICES LTD FCO OP - POE,9000173,500.1,
FCO,FCO,24-Apr-12,Gas Residential,#N/A,ISS FACILITY SERVICES LTD FCO OP - POE,9000173,28.89,
FCO,FCO,24-Apr-12,Electricity Residential,#N/A,ISS FACILITY SERVICES LTD FCO OP - POE,9000173,94.46,
FCO,FCO,24-Apr-12,Gas Residential,#N/A,ISS FACILITY SERVICES LTD FCO OP - POE,9000173,28.89,
FCO,FCO,24-Apr-12,Water Residential,#N/A,ISS FACILITY SERVICES LTD FCO OP - POE,9000173,24.08,
FCO,FCO,24-Apr-12,Rental Payments - residential,#N/A,ISS FACILITY SERVICES LTD FCO OP - POE,9000173,183.37,
FCO,FCO,24-Apr-12,Water Residential,#N/A,ISS FACILITY SERVICES LTD FCO OP - POE,9000173,24.08,
FCO,FCO,24-Apr-12,Gas Residential,#N/A,ISS FACILITY SERVICES LTD FCO OP - POE,9000173,128.38,
FCO,FCO,24-Apr-12,Rental Payments - residential,#N/A,ISS FACILITY SERVICES LTD FCO OP - POE,9000173,356.82,
FCO,FCO,24-Apr-12,Electricity Residential,#N/A,ISS FACILITY SERVICES LTD FCO OP - POE,9000173,94.46,
FCO,FCO,24-Apr-12,Gas Residential,#N/A,ISS FACILITY SERVICES LTD FCO OP - POE,9000173,28.89,
FCO,FCO,24-Apr-12,Gas Residential,#N/A,ISS FACILITY SERVICES LTD FCO OP - POE,9000173,30.22,
FCO,FCO,24-Apr-12,Gas Residential,#N/A,ISS FACILITY SERVICES LTD FCO OP - POE,9000173,30.22,
FCO,FCO,24-Apr-12,Gas Residential,#N/A,ISS FACILITY SERVICES LTD FCO OP - POE,9000173,104.92,
FCO,FCO,24-Apr-12,Telephone line and equipment rental charges,#N/A,ISS FACILITY SERVICES LTD FCO OP - POE,9000174,69.4,
FCO,FCO,24-Apr-12,Water Non-Residential,#N/A,ISS FACILITY SERVICES LTD FCO OP - POE,9000174,6.96,
FCO,FCO,24-Apr-12,Electricity Non-Residential,#N/A,ISS FACILITY SERVICES LTD FCO OP - POE,9000174,"6,920.98",
FCO,FCO,24-Apr-12,Electricity Residential,#N/A,ISS FACILITY SERVICES LTD FCO OP - POE,9000174,15.79,
FCO,FCO,24-Apr-12,Electricity Residential,#N/A,ISS FACILITY SERVICES LTD FCO OP - POE,9000174,21.83,
FCO,FCO,24-Apr-12,Electricity Residential,#N/A,ISS FACILITY SERVICES LTD FCO OP - POE,9000174,10.55,
FCO,FCO,24-Apr-12,Electricity Residential,#N/A,ISS FACILITY SERVICES LTD FCO OP - POE,9000174,158.69,
FCO,FCO,24-Apr-12,Electricity Residential,#N/A,ISS FACILITY SERVICES LTD FCO OP - POE,9000174,52.16,
FCO,FCO,24-Apr-12,Electricity Residential,#N/A,ISS FACILITY SERVICES LTD FCO OP - POE,9000174,57.15,
FCO,FCO,24-Apr-12,Telephone line and equipment rental charges,#N/A,ISS FACILITY SERVICES LTD FCO OP - POE,9000174,22.65,
FCO,FCO,24-Apr-12,Telephone Call Charges,#N/A,ISS FACILITY SERVICES LTD FCO OP - POE,9000174,6.98,
FCO,FCO,24-Apr-12,Telephone Call Charges,#N/A,ISS FACILITY SERVICES LTD FCO OP - POE,9000174,13.5,
FCO,FCO,24-Apr-12,Telephone Call Charges,#N/A,ISS FACILITY SERVICES LTD FCO OP - POE,9000174,12.03,
FCO,FCO,24-Apr-12,Electricity Residential,#N/A,ISS FACILITY SERVICES LTD FCO OP - POE,9000174,81.76,
FCO,FCO,24-Apr-12,Electricity Residential,#N/A,ISS FACILITY SERVICES LTD FCO OP - POE,9000174,416.79,
FCO,FCO,24-Apr-12,Water Residential,#N/A,ISS FACILITY SERVICES LTD FCO OP - POE,9000174,2.5,
FCO,FCO,24-Apr-12,Water Residential,DG CHANGE & DELIVERY,ISS FACILITY SERVICES LTD FCO OP - POE,9000174,4.12,
FCO,FCO,24-Apr-12,Electricity Residential,DG CHANGE & DELIVERY,ISS FACILITY SERVICES LTD FCO OP - POE,9000174,308.91,
FCO,FCO,24-Apr-12,Electricity Residential,#N/A,ISS FACILITY SERVICES LTD FCO OP - POE,9000174,308.91,
FCO,FCO,24-Apr-12,Water Residential,#N/A,ISS FACILITY SERVICES LTD FCO OP - POE,9000174,4.12,
FCO,FCO,24-Apr-12,Water Residential,#N/A,ISS FACILITY SERVICES LTD FCO OP - POE,9000174,1.24,
FCO,FCO,24-Apr-12,Telephone line and equipment rental charges,#N/A,ISS FACILITY SERVICES LTD FCO OP - POE,9000174,20.39,
FCO,FCO,24-Apr-12,Telephone line and equipment rental charges,#N/A,ISS FACILITY SERVICES LTD FCO OP - POE,9000174,162.28,
FCO,FCO,24-Apr-12,Electricity Residential,#N/A,ISS FACILITY SERVICES LTD FCO OP - POE,9000174,300.24,
FCO,FCO,24-Apr-12,Electricity Residential,#N/A,ISS FACILITY SERVICES LTD FCO OP - POE,9000174,218.21,
FCO,FCO,24-Apr-12,Water Residential,#N/A,ISS FACILITY SERVICES LTD FCO OP - POE,9000174,1.24,
FCO,FCO,24-Apr-12,Rental Payments - residential,#N/A,ISS FACILITY SERVICES LTD FCO OP - POE,9000174,"18,534.54",
FCO,FCO,24-Apr-12,Water Residential,#N/A,ISS FACILITY SERVICES LTD FCO OP - POE,9000174,4.78,
FCO,FCO,24-Apr-12,Electricity Residential,#N/A,ISS FACILITY SERVICES LTD FCO OP - POE,9000174,548.52,
FCO,FCO,24-Apr-12,Water Residential,#N/A,ISS FACILITY SERVICES LTD FCO OP - POE,9000174,3.89,
FCO,FCO,24-Apr-12,Electricity Residential,#N/A,ISS FACILITY SERVICES LTD FCO OP - POE,9000174,135.15,
FCO,FCO,24-Apr-12,Waste Disposal,#N/A,ISS FACILITY SERVICES LTD FCO OP - POE,9000174,1.65,
FCO,FCO,24-Apr-12,Electricity Residential,#N/A,ISS FACILITY SERVICES LTD FCO OP - POE,9000174,359.47,
FCO,FCO,24-Apr-12,Water Residential,#N/A,ISS FACILITY SERVICES LTD FCO OP - POE,9000174,37.46,
FCO,FCO,24-Apr-12,Water Residential,#N/A,ISS FACILITY SERVICES LTD FCO OP - POE,9000174,6.31,
FCO,FCO,24-Apr-12,Electricity Residential,#N/A,ISS FACILITY SERVICES LTD FCO OP - POE,9000174,617.82,
FCO,FCO,24-Apr-12,Water Residential,#N/A,ISS FACILITY SERVICES LTD FCO OP - POE,9000174,7.96,
FCO,FCO,24-Apr-12,Electricity Residential,#N/A,ISS FACILITY SERVICES LTD FCO OP - POE,9000174,"2,397.04",
FCO,FCO,24-Apr-12,Mobile Telephone Equipment,#N/A,ISS FACILITY SERVICES LTD FCO OP - POE,9000174,66.93,
FCO,FCO,24-Apr-12,Telephone line and equipment rental charges,#N/A,ISS FACILITY SERVICES LTD FCO OP - POE,9000174,284.62,
FCO,FCO,24-Apr-12,Telephone Call Charges,#N/A,ISS FACILITY SERVICES LTD FCO OP - POE,9000174,"3,821.69",
FCO,FCO,24-Apr-12,Mobile Telephone Equipment,#N/A,ISS FACILITY SERVICES LTD FCO OP - POE,9000174,"1,083.45",
FCO,FCO,24-Apr-12,Telephone Call Charges,#N/A,ISS FACILITY SERVICES LTD FCO OP - POE,9000176,29.38,
FCO,FCO,24-Apr-12,Electricity Residential,#N/A,ISS FACILITY SERVICES LTD FCO OP - POE,9000176,402.05,
FCO,FCO,24-Apr-12,Water Non-Residential,#N/A,ISS FACILITY SERVICES LTD FCO OP - POE,9000176,220.34,
FCO,FCO,24-Apr-12,Electricity Non-Residential,#N/A,ISS FACILITY SERVICES LTD FCO OP - POE,9000176,"9,547.89",
FCO,FCO,24-Apr-12,Gas Non-Residential,#N/A,ISS FACILITY SERVICES LTD FCO OP - POE,9000176,59.64,
FCO,FCO,24-Apr-12,Telephone Call Charges,#N/A,ISS FACILITY SERVICES LTD FCO OP - POE,9000176,"1,615.80",
FCO,FCO,24-Apr-12,Telephone line and equipment rental charges,#N/A,ISS FACILITY SERVICES LTD FCO OP - POE,9000176,"1,645.17",
FCO,FCO,24-Apr-12,Rental Payments - residential,#N/A,ISS FACILITY SERVICES LTD FCO OP - POE,9000176,"4,701.97",
FCO,FCO,24-Apr-12,Gas Residential,#N/A,ISS FACILITY SERVICES LTD FCO OP - POE,9000176,17.54,
FCO,FCO,24-Apr-12,Water Residential,#N/A,ISS FACILITY SERVICES LTD FCO OP - POE,9000176,67.07,
FCO,FCO,24-Apr-12,Electricity Residential,#N/A,ISS FACILITY SERVICES LTD FCO OP - POE,9000176,514.51,
FCO,FCO,24-Apr-12,Telephone line and equipment rental charges,#N/A,ISS FACILITY SERVICES LTD FCO OP - POE,9000176,161.58,
FCO,FCO,24-Apr-12,Water Residential,#N/A,ISS FACILITY SERVICES LTD FCO OP - POE,9000176,189.43,
FCO,FCO,24-Apr-12,Gas Residential,#N/A,ISS FACILITY SERVICES LTD FCO OP - POE,9000176,17.54,
FCO,FCO,24-Apr-12,Electricity Residential,#N/A,ISS FACILITY SERVICES LTD FCO OP - POE,9000176,335.91,
FCO,FCO,24-Apr-12,Rental Payments - residential,#N/A,ISS FACILITY SERVICES LTD FCO OP - POE,9000176,"3,438.78",
FCO,FCO,24-Apr-12,Water Residential,#N/A,ISS FACILITY SERVICES LTD FCO OP - POE,9000176,258.11,
FCO,FCO,24-Apr-12,Electricity Residential,#N/A,ISS FACILITY SERVICES LTD FCO OP - POE,9000176,210.91,
FCO,FCO,24-Apr-12,Gas Residential,#N/A,ISS FACILITY SERVICES LTD FCO OP - POE,9000176,17.54,
FCO,FCO,24-Apr-12,Electricity Residential,#N/A,ISS FACILITY SERVICES LTD FCO OP - POE,9000176,210.91,
FCO,FCO,24-Apr-12,Water Residential,#N/A,ISS FACILITY SERVICES LTD FCO OP - POE,9000176,42.72,
FCO,FCO,24-Apr-12,Gas Residential,#N/A,ISS FACILITY SERVICES LTD FCO OP - POE,9000176,12.22,
FCO,FCO,24-Apr-12,Water Residential,#N/A,ISS FACILITY SERVICES LTD FCO OP - POE,9000176,239.78,
FCO,FCO,24-Apr-12,Rental Payments - residential,#N/A,ISS FACILITY SERVICES LTD FCO OP - POE,9000176,"19,433.62",
FCO,FCO,24-Apr-12,Electricity Residential,#N/A,ISS FACILITY SERVICES LTD FCO OP - POE,9000176,277.53,
FCO,FCO,24-Apr-12,Gas Residential,#N/A,ISS FACILITY SERVICES LTD FCO OP - POE,9000176,17.54,
FCO,FCO,24-Apr-12,Water Residential,#N/A,ISS FACILITY SERVICES LTD FCO OP - POE,9000176,42.72,
FCO,FCO,24-Apr-12,Water Residential,#N/A,ISS FACILITY SERVICES LTD FCO OP - POE,9000176,127.52,
FCO,FCO,24-Apr-12,Gas Residential,#N/A,ISS FACILITY SERVICES LTD FCO OP - POE,9000176,17.63,
FCO,FCO,24-Apr-12,Electricity Residential,#N/A,ISS FACILITY SERVICES LTD FCO OP - POE,9000176,220.34,
FCO,FCO,24-Apr-12,Gas Residential,#N/A,ISS FACILITY SERVICES LTD FCO OP - POE,9000176,17.63,
FCO,FCO,24-Apr-12,Water Residential,#N/A,ISS FACILITY SERVICES LTD FCO OP - POE,9000176,127.52,
FCO,FCO,24-Apr-12,Electricity Residential,#N/A,ISS FACILITY SERVICES LTD FCO OP - POE,9000176,220.34,
FCO,FCO,24-Apr-12,Electricity Residential,#N/A,ISS FACILITY SERVICES LTD FCO OP - POE,9000176,"2,203.36",
FCO,FCO,24-Apr-12,Electricity Residential,#N/A,ISS FACILITY SERVICES LTD FCO OP - POE,9000176,210.91,
FCO,FCO,24-Apr-12,Water Residential,#N/A,ISS FACILITY SERVICES LTD FCO OP - POE,9000176,42.72,
FCO,FCO,24-Apr-12,Gas Residential,#N/A,ISS FACILITY SERVICES LTD FCO OP - POE,9000176,17.54,
FCO,FCO,24-Apr-12,Water Residential,#N/A,ISS FACILITY SERVICES LTD FCO OP - POE,9000176,127.52,
FCO,FCO,24-Apr-12,Gas Residential,#N/A,ISS FACILITY SERVICES LTD FCO OP - POE,9000176,17.63,
FCO,FCO,24-Apr-12,Electricity Residential,#N/A,ISS FACILITY SERVICES LTD FCO OP - POE,9000176,220.34,
FCO,FCO,24-Apr-12,Electricity Residential,#N/A,ISS FACILITY SERVICES LTD FCO OP - POE,9000176,210.91,
FCO,FCO,24-Apr-12,Gas Residential,#N/A,ISS FACILITY SERVICES LTD FCO OP - POE,9000176,17.54,
FCO,FCO,24-Apr-12,Water Residential,#N/A,ISS FACILITY SERVICES LTD FCO OP - POE,9000176,42.72,
FCO,FCO,24-Apr-12,Water Residential,#N/A,ISS FACILITY SERVICES LTD FCO OP - POE,9000176,42.72,
FCO,FCO,24-Apr-12,Gas Residential,#N/A,ISS FACILITY SERVICES LTD FCO OP - POE,9000176,59.64,
FCO,FCO,24-Apr-12,Gas Residential,#N/A,ISS FACILITY SERVICES LTD FCO OP - POE,9000176,17.54,
FCO,FCO,24-Apr-12,Electricity Residential,#N/A,ISS FACILITY SERVICES LTD FCO OP - POE,9000176,210.91,
FCO,FCO,24-Apr-12,Water Residential,#N/A,ISS FACILITY SERVICES LTD FCO OP - POE,9000176,42.72,
FCO,FCO,24-Apr-12,Gas Residential,#N/A,ISS FACILITY SERVICES LTD FCO OP - POE,9000176,17.54,
FCO,FCO,24-Apr-12,Electricity Residential,#N/A,ISS FACILITY SERVICES LTD FCO OP - POE,9000176,276.66,
FCO,FCO,24-Apr-12,Water Residential,#N/A,ISS FACILITY SERVICES LTD FCO OP - POE,9000176,42.72,
FCO,FCO,24-Apr-12,Gas Residential,#N/A,ISS FACILITY SERVICES LTD FCO OP - POE,9000176,17.54,
FCO,FCO,24-Apr-12,Electricity Residential,#N/A,ISS FACILITY SERVICES LTD FCO OP - POE,9000176,210.91,
FCO,FCO,24-Apr-12,Gas Residential,#N/A,ISS FACILITY SERVICES LTD FCO OP - POE,9000176,17.54,
FCO,FCO,24-Apr-12,Water Residential,#N/A,ISS FACILITY SERVICES LTD FCO OP - POE,9000176,42.72,
FCO,FCO,24-Apr-12,Electricity Residential,#N/A,ISS FACILITY SERVICES LTD FCO OP - POE,9000176,210.91,
FCO,FCO,24-Apr-12,Electricity Residential,#N/A,ISS FACILITY SERVICES LTD FCO OP - POE,9000176,210.91,
FCO,FCO,24-Apr-12,Electricity Residential,#N/A,ISS FACILITY SERVICES LTD FCO OP - POE,9000176,210.91,
FCO,FCO,24-Apr-12,Gas Residential,#N/A,ISS FACILITY SERVICES LTD FCO OP - POE,9000176,17.54,
FCO,FCO,24-Apr-12,Water Residential,#N/A,ISS FACILITY SERVICES LTD FCO OP - POE,9000176,42.72,
FCO,FCO,24-Apr-12,Rental Payments - residential,#N/A,ISS FACILITY SERVICES LTD FCO OP - POE,9000176,229.95,
FCO,FCO,24-Apr-12,Electricity Residential,#N/A,ISS FACILITY SERVICES LTD FCO OP - POE,9000176,210.91,
FCO,FCO,24-Apr-12,Gas Residential,#N/A,ISS FACILITY SERVICES LTD FCO OP - POE,9000176,17.54,
FCO,FCO,24-Apr-12,Water Residential,#N/A,ISS FACILITY SERVICES LTD FCO OP - POE,9000176,42.72,
FCO,FCO,24-Apr-12,Gas Residential,#N/A,ISS FACILITY SERVICES LTD FCO OP - POE,9000176,59.64,
FCO,FCO,24-Apr-12,Water Residential,#N/A,ISS FACILITY SERVICES LTD FCO OP - POE,9000176,239.78,
FCO,FCO,24-Apr-12,Gas Residential,#N/A,ISS FACILITY SERVICES LTD FCO OP - POE,9000176,17.54,
FCO,FCO,24-Apr-12,Rental Payments - residential,#N/A,ISS FACILITY SERVICES LTD FCO OP - POE,9000176,562.62,
FCO,FCO,24-Apr-12,Electricity Residential,#N/A,ISS FACILITY SERVICES LTD FCO OP - POE,9000176,382.46,
FCO,FCO,24-Apr-12,Electricity Residential,#N/A,ISS FACILITY SERVICES LTD FCO OP - POE,9000176,382.46,
FCO,FCO,24-Apr-12,Gas Residential,#N/A,ISS FACILITY SERVICES LTD FCO OP - POE,9000176,59.64,
FCO,FCO,24-Apr-12,Rental Payments - residential,#N/A,ISS FACILITY SERVICES LTD FCO OP - POE,9000176,229.95,
FCO,FCO,24-Apr-12,Water Residential,#N/A,ISS FACILITY SERVICES LTD FCO OP - POE,9000176,19.98,
FCO,FCO,24-Apr-12,Water Residential,#N/A,ISS FACILITY SERVICES LTD FCO OP - POE,9000176,258.11,
FCO,FCO,24-Apr-12,Gas Residential,#N/A,ISS FACILITY SERVICES LTD FCO OP - POE,9000176,17.54,
FCO,FCO,24-Apr-12,Electricity Residential,#N/A,ISS FACILITY SERVICES LTD FCO OP - POE,9000176,225.43,
FCO,FCO,24-Apr-12,Rental Payments - residential,#N/A,ISS FACILITY SERVICES LTD FCO OP - POE,9000176,560.37,
FCO,FCO,24-Apr-12,Water Residential,#N/A,ISS FACILITY SERVICES LTD FCO OP - POE,9000176,42.72,
FCO,FCO,24-Apr-12,Rental Payments - residential,#N/A,ISS FACILITY SERVICES LTD FCO OP - POE,9000176,533.37,
FCO,FCO,24-Apr-12,Electricity Residential,#N/A,ISS FACILITY SERVICES LTD FCO OP - POE,9000176,400.43,
FCO,FCO,24-Apr-12,Gas Residential,#N/A,ISS FACILITY SERVICES LTD FCO OP - POE,9000176,59.64,
FCO,FCO,24-Apr-12,Water Residential,#N/A,ISS FACILITY SERVICES LTD FCO OP - POE,9000176,239.78,
FCO,FCO,24-Apr-12,Rental Payments - residential,#N/A,ISS FACILITY SERVICES LTD FCO OP - POE,9000176,"27,497.91",
FCO,FCO,24-Apr-12,Gas Residential,#N/A,ISS FACILITY SERVICES LTD FCO OP - POE,9000176,3.51,
FCO,FCO,24-Apr-12,Electricity Residential,#N/A,ISS FACILITY SERVICES LTD FCO OP - POE,9000176,440.67,
FCO,FCO,24-Apr-12,Water Residential,#N/A,ISS FACILITY SERVICES LTD FCO OP - POE,9000176,440.67,
FCO,FCO,24-Apr-12,Rental Payments - residential,#N/A,ISS FACILITY SERVICES LTD FCO OP - POE,9000176,"25,558.96",
FCO,FCO,24-Apr-12,Water Residential,#N/A,ISS FACILITY SERVICES LTD FCO OP - POE,9000176,42.72,
FCO,FCO,24-Apr-12,Water Residential,#N/A,ISS FACILITY SERVICES LTD FCO OP - POE,9000176,89.81,
FCO,FCO,24-Apr-12,Rental Payments - residential,#N/A,ISS FACILITY SERVICES LTD FCO OP - POE,9000176,"30,847.01",
FCO,FCO,24-Apr-12,Rental Payments - residential,#N/A,ISS FACILITY SERVICES LTD FCO OP - POE,9000176,"26,440.30",
FCO,FCO,24-Apr-12,Gas Residential,#N/A,ISS FACILITY SERVICES LTD FCO OP - POE,9000176,17.54,
FCO,FCO,24-Apr-12,Electricity Residential,#N/A,ISS FACILITY SERVICES LTD FCO OP - POE,9000176,210.91,
FCO,FCO,24-Apr-12,Water Non-Residential,#N/A,ISS FACILITY SERVICES LTD FCO OP - POE,9000178,148.2,
FCO,FCO,24-Apr-12,Water Residential,#N/A,ISS FACILITY SERVICES LTD FCO OP - POE,9000178,24.62,
FCO,FCO,24-Apr-12,Electricity Residential,#N/A,ISS FACILITY SERVICES LTD FCO OP - POE,9000178,134.36,
FCO,FCO,24-Apr-12,Water Residential,#N/A,ISS FACILITY SERVICES LTD FCO OP - POE,9000178,24.62,
FCO,FCO,24-Apr-12,Gas Residential,#N/A,ISS FACILITY SERVICES LTD FCO OP - POE,9000178,8.21,
FCO,FCO,24-Apr-12,Electricity Residential,#N/A,ISS FACILITY SERVICES LTD FCO OP - POE,9000178,98.36,
FCO,FCO,24-Apr-12,Electricity Residential,#N/A,ISS FACILITY SERVICES LTD FCO OP - POE,9000178,79.7,
FCO,FCO,24-Apr-12,Water Residential,#N/A,ISS FACILITY SERVICES LTD FCO OP - POE,9000178,24.62,
FCO,FCO,24-Apr-12,Water Residential,#N/A,ISS FACILITY SERVICES LTD FCO OP - POE,9000178,24.62,
FCO,FCO,24-Apr-12,Electricity Residential,#N/A,ISS FACILITY SERVICES LTD FCO OP - POE,9000178,196.62,
FCO,FCO,24-Apr-12,Water Residential,#N/A,ISS FACILITY SERVICES LTD FCO OP - POE,9000178,59.25,
FCO,FCO,24-Apr-12,Telephone line and equipment rental charges,#N/A,ISS FACILITY SERVICES LTD FCO OP - POE,9000178,"1,528.26",
FCO,FCO,24-Apr-12,Electricity Residential,#N/A,ISS FACILITY SERVICES LTD FCO OP - POE,9000178,346.62,
FCO,FCO,24-Apr-12,Water Residential,#N/A,ISS FACILITY SERVICES LTD FCO OP - POE,9000178,20.51,
FCO,FCO,24-Apr-12,Electricity Residential,#N/A,ISS FACILITY SERVICES LTD FCO OP - POE,9000178,224.09,
FCO,FCO,24-Apr-12,Electricity Residential,#N/A,ISS FACILITY SERVICES LTD FCO OP - POE,9000178,427.31,
FCO,FCO,24-Apr-12,Water Residential,#N/A,ISS FACILITY SERVICES LTD FCO OP - POE,9000178,19.15,
FCO,FCO,24-Apr-12,Electricity Residential,#N/A,ISS FACILITY SERVICES LTD FCO OP - POE,9000178,534.03,
FCO,FCO,24-Apr-12,Water Residential,#N/A,ISS FACILITY SERVICES LTD FCO OP - POE,9000178,12.07,
FCO,FCO,24-Apr-12,Water Residential,#N/A,ISS FACILITY SERVICES LTD FCO OP - POE,9000178,20.51,
FCO,FCO,24-Apr-12,Electricity Residential,#N/A,ISS FACILITY SERVICES LTD FCO OP - POE,9000178,352.35,
FCO,FCO,24-Apr-12,Rental Payments - residential,#N/A,ISS FACILITY SERVICES LTD FCO OP - POE,9000178,"29,539.55",
FCO,FCO,24-Apr-12,Electricity Non-Residential,#N/A,ISS FACILITY SERVICES LTD FCO OP - POE,9000178,"15,066.72",
FCO,FCO,24-Apr-12,Electricity Residential,#N/A,ISS FACILITY SERVICES LTD FCO OP - POE,9000178,25.58,
FCO,FCO,24-Apr-12,Water Residential,#N/A,ISS FACILITY SERVICES LTD FCO OP - POE,9000178,20.51,
FCO,FCO,24-Apr-12,Rental Payments - residential,#N/A,ISS FACILITY SERVICES LTD FCO OP - POE,9000178,"24,616.29",
FCO,FCO,24-Apr-12,Electricity Residential,#N/A,ISS FACILITY SERVICES LTD FCO OP - POE,9000178,438.66,
FCO,FCO,24-Apr-12,Rental Payments - residential,#N/A,ISS FACILITY SERVICES LTD FCO OP - POE,9000178,"29,539.55",
FCO,FCO,24-Apr-12,Water Residential,#N/A,ISS FACILITY SERVICES LTD FCO OP - POE,9000178,20.51,
FCO,FCO,24-Apr-12,Electricity Residential,#N/A,ISS FACILITY SERVICES LTD FCO OP - POE,9000178,340.17,
FCO,FCO,24-Apr-12,Water Residential,#N/A,ISS FACILITY SERVICES LTD FCO OP - POE,9000178,9.66,
FCO,FCO,24-Apr-12,Rental Payments - residential,#N/A,ISS FACILITY SERVICES LTD FCO OP - POE,9000178,"27,077.92",
FCO,FCO,24-Apr-12,Electricity Residential,#N/A,ISS FACILITY SERVICES LTD FCO OP - POE,9000178,587.59,
FCO,FCO,24-Apr-12,Telephone Call Charges,#N/A,ISS FACILITY SERVICES LTD FCO OP - POE,9000178,"1,528.26",
FCO,FCO,24-Apr-12,Rental Payments - residential,#N/A,ISS FACILITY SERVICES LTD FCO OP - POE,9000178,"29,539.55",
FCO,FCO,24-Apr-12,Water Residential,#N/A,ISS FACILITY SERVICES LTD FCO OP - POE,9000178,20.51,
FCO,FCO,24-Apr-12,Electricity Residential,#N/A,ISS FACILITY SERVICES LTD FCO OP - POE,9000178,292.1,
FCO,FCO,24-Apr-12,Water Residential,#N/A,ISS FACILITY SERVICES LTD FCO OP - POE,9000178,7.02,
FCO,FCO,24-Apr-12,Rental Payments - residential,#N/A,ISS FACILITY SERVICES LTD FCO OP - POE,9000178,"24,616.29",
FCO,FCO,24-Apr-12,Electricity Residential,#N/A,ISS FACILITY SERVICES LTD FCO OP - POE,9000178,61.39,
FCO,FCO,24-Apr-12,Rental Payments - residential,#N/A,ISS FACILITY SERVICES LTD FCO OP - POE,9000178,"24,616.29",
FCO,FCO,24-Apr-12,Water Residential,#N/A,ISS FACILITY SERVICES LTD FCO OP - POE,9000178,20.51,
FCO,FCO,24-Apr-12,Rental Payments - residential,#N/A,ISS FACILITY SERVICES LTD FCO OP - POE,9000178,"22,154.66",
FCO,FCO,24-Apr-12,Water Residential,#N/A,ISS FACILITY SERVICES LTD FCO OP - POE,9000178,3.83,
FCO,FCO,24-Apr-12,Electricity Residential,#N/A,ISS FACILITY SERVICES LTD FCO OP - POE,9000178,442.11,
FCO,FCO,24-Apr-12,Electricity Residential,#N/A,ISS FACILITY SERVICES LTD FCO OP - POE,9000178,33.96,
FCO,FCO,24-Apr-12,Electricity Residential,#N/A,ISS FACILITY SERVICES LTD FCO OP - POE,9000178,95.41,
FCO,FCO,24-Apr-12,Rental Payments - residential,#N/A,ISS FACILITY SERVICES LTD FCO OP - POE,9000178,"24,616.29",
FCO,FCO,24-Apr-12,Water Residential,#N/A,ISS FACILITY SERVICES LTD FCO OP - POE,9000178,19.15,
FCO,FCO,24-Apr-12,Electricity Residential,#N/A,ISS FACILITY SERVICES LTD FCO OP - POE,9000178,68.86,
FCO,FCO,24-Apr-12,Water Residential,#N/A,ISS FACILITY SERVICES LTD FCO OP - POE,9000178,20.51,
FCO,FCO,24-Apr-12,Rental Payments - residential,#N/A,ISS FACILITY SERVICES LTD FCO OP - POE,9000178,"24,616.29",
FCO,FCO,24-Apr-12,Rental Payments - residential,#N/A,ISS FACILITY SERVICES LTD FCO OP - POE,9000178,"27,077.92",
FCO,FCO,24-Apr-12,Electricity Residential,#N/A,ISS FACILITY SERVICES LTD FCO OP - POE,9000178,292.1,
FCO,FCO,24-Apr-12,Water Residential,#N/A,ISS FACILITY SERVICES LTD FCO OP - POE,9000178,7.02,
FCO,FCO,24-Apr-12,Water Residential,#N/A,ISS FACILITY SERVICES LTD FCO OP - POE,9000178,762.04,
FCO,FCO,24-Apr-12,Rental Payments - residential,#N/A,ISS FACILITY SERVICES LTD FCO OP - POE,9000178,"24,616.29",
FCO,FCO,24-Apr-12,Water Residential,#N/A,ISS FACILITY SERVICES LTD FCO OP - POE,9000178,16.41,
FCO,FCO,24-Apr-12,Electricity Residential,#N/A,ISS FACILITY SERVICES LTD FCO OP - POE,9000178,151.64,
FCO,FCO,24-Apr-12,Rental Payments - residential,#N/A,ISS FACILITY SERVICES LTD FCO OP - POE,9000178,"20,923.85",
FCO,FCO,24-Apr-12,Electricity Residential,#N/A,ISS FACILITY SERVICES LTD FCO OP - POE,9000178,70.98,
FCO,FCO,24-Apr-12,Gas Residential,#N/A,ISS FACILITY SERVICES LTD FCO OP - POE,9000178,5.74,
FCO,FCO,24-Apr-12,Water Residential,#N/A,ISS FACILITY SERVICES LTD FCO OP - POE,9000178,32.19,
FCO,FCO,24-Apr-12,Water Residential,#N/A,ISS FACILITY SERVICES LTD FCO OP - POE,9000178,20.51,
FCO,FCO,24-Apr-12,Electricity Residential,#N/A,ISS FACILITY SERVICES LTD FCO OP - POE,9000178,40.97,
FCO,FCO,24-Apr-12,Rental Payments - residential,#N/A,ISS FACILITY SERVICES LTD FCO OP - POE,9000178,"24,616.29",
FCO,FCO,24-Apr-12,Telephone line and equipment rental charges,#N/A,ISS FACILITY SERVICES LTD FCO OP - POE,9000178,"1,528.26",
FCO,FCO,24-Apr-12,Water Residential,#N/A,ISS FACILITY SERVICES LTD FCO OP - POE,9000178,20.51,
FCO,FCO,24-Apr-12,Electricity Residential,#N/A,ISS FACILITY SERVICES LTD FCO OP - POE,9000178,224.09,
FCO,FCO,24-Apr-12,Electricity Residential,#N/A,ISS FACILITY SERVICES LTD FCO OP - POE,9000178,40.97,
FCO,FCO,24-Apr-12,Water Residential,#N/A,ISS FACILITY SERVICES LTD FCO OP - POE,9000178,19.91,
FCO,FCO,24-Apr-12,Electricity Residential,#N/A,ISS FACILITY SERVICES LTD FCO OP - POE,9000178,224.09,
FCO,FCO,24-Apr-12,Water Residential,#N/A,ISS FACILITY SERVICES LTD FCO OP - POE,9000178,20.51,
FCO,FCO,24-Apr-12,Water Residential,#N/A,ISS FACILITY SERVICES LTD FCO OP - POE,9000178,20.51,
FCO,FCO,24-Apr-12,Electricity Residential,#N/A,ISS FACILITY SERVICES LTD FCO OP - POE,9000178,224.09,
FCO,FCO,24-Apr-12,Electricity Residential,#N/A,ISS FACILITY SERVICES LTD FCO OP - POE,9000178,224.09,
FCO,FCO,24-Apr-12,Water Residential,#N/A,ISS FACILITY SERVICES LTD FCO OP - POE,9000178,20.51,
FCO,FCO,24-Apr-12,Telephone Call Charges,#N/A,ISS FACILITY SERVICES LTD FCO OP - POE,9000178,"1,528.26",
FCO,FCO,24-Apr-12,Water Residential,#N/A,ISS FACILITY SERVICES LTD FCO OP - POE,9000178,20.51,
FCO,FCO,24-Apr-12,Electricity Residential,#N/A,ISS FACILITY SERVICES LTD FCO OP - POE,9000178,224.09,
FCO,FCO,24-Apr-12,Water Residential,#N/A,ISS FACILITY SERVICES LTD FCO OP - POE,9000178,20.51,
FCO,FCO,24-Apr-12,Electricity Residential,#N/A,ISS FACILITY SERVICES LTD FCO OP - POE,9000178,224.09,
FCO,FCO,24-Apr-12,Water Residential,#N/A,ISS FACILITY SERVICES LTD FCO OP - POE,9000178,20.51,
FCO,FCO,24-Apr-12,Electricity Residential,#N/A,ISS FACILITY SERVICES LTD FCO OP - POE,9000178,224.09,
FCO,FCO,24-Apr-12,Rental Payments - residential,#N/A,ISS FACILITY SERVICES LTD FCO OP - POE,9000178,"29,539.55",
FCO,FCO,24-Apr-12,Electricity Residential,#N/A,ISS FACILITY SERVICES LTD FCO OP - POE,9000178,224.09,
FCO,FCO,24-Apr-12,Water Residential,#N/A,ISS FACILITY SERVICES LTD FCO OP - POE,9000178,20.51,
FCO,FCO,24-Apr-12,Rental Payments - residential,#N/A,ISS FACILITY SERVICES LTD FCO OP - POE,9000178,"29,539.55",
FCO,FCO,24-Apr-12,Gas Residential,#N/A,ISS FACILITY SERVICES LTD FCO OP - POE,9000178,8.21,
FCO,FCO,24-Apr-12,Telephone line and equipment rental charges,#N/A,ISS FACILITY SERVICES LTD FCO OP - POE,9000179,48.57,
FCO,FCO,24-Apr-12,Electricity Residential,#N/A,ISS FACILITY SERVICES LTD FCO OP - POE,9000179,21.71,
FCO,FCO,24-Apr-12,Water Residential,#N/A,ISS FACILITY SERVICES LTD FCO OP - POE,9000179,17.95,
FCO,FCO,24-Apr-12,Waste Disposal,#N/A,ISS FACILITY SERVICES LTD FCO OP - POE,9000179,2.18,
FCO,FCO,24-Apr-12,Waste Disposal,#N/A,ISS FACILITY SERVICES LTD FCO OP - POE,9000179,3.46,
FCO,FCO,24-Apr-12,Water Residential,#N/A,ISS FACILITY SERVICES LTD FCO OP - POE,9000179,19.13,
FCO,FCO,24-Apr-12,Rental Payments - residential,#N/A,ISS FACILITY SERVICES LTD FCO OP - POE,9000179,256.19,
FCO,FCO,24-Apr-12,Electricity Residential,#N/A,ISS FACILITY SERVICES LTD FCO OP - POE,9000179,44.56,
FCO,FCO,24-Apr-12,Rental Payments - residential,#N/A,ISS FACILITY SERVICES LTD FCO OP - POE,9000179,"3,317.13",
FCO,FCO,24-Apr-12,Rental Payments - residential,#N/A,ISS FACILITY SERVICES LTD FCO OP - POE,9000179,632.51,
FCO,FCO,24-Apr-12,Electricity Residential,#N/A,ISS FACILITY SERVICES LTD FCO OP - POE,9000179,106.75,
FCO,FCO,24-Apr-12,Telephone Call Charges,#N/A,ISS FACILITY SERVICES LTD FCO OP - POE,9000179,5.51,
FCO,FCO,24-Apr-12,Gas Residential,#N/A,ISS FACILITY SERVICES LTD FCO OP - POE,9000179,149.45,
FCO,FCO,24-Apr-12,Water Residential,#N/A,ISS FACILITY SERVICES LTD FCO OP - POE,9000179,8.54,
FCO,FCO,24-Apr-12,Electricity Residential,#N/A,ISS FACILITY SERVICES LTD FCO OP - POE,9000179,21.71,
FCO,FCO,24-Apr-12,Rental Payments - residential,#N/A,ISS FACILITY SERVICES LTD FCO OP - POE,9000179,256.19,
FCO,FCO,24-Apr-12,Waste Disposal,#N/A,ISS FACILITY SERVICES LTD FCO OP - POE,9000179,1.79,
FCO,FCO,24-Apr-12,Rental Payments - residential,#N/A,ISS FACILITY SERVICES LTD FCO OP - POE,9000179,"6,404.81",
FCO,FCO,24-Apr-12,Rental Payments - residential,#N/A,ISS FACILITY SERVICES LTD FCO OP - POE,9000179,"25,619.24",
FCO,FCO,24-Apr-12,Water Residential,#N/A,ISS FACILITY SERVICES LTD FCO OP - POE,9000179,17.61,
FCO,FCO,24-Apr-12,Water Residential,#N/A,ISS FACILITY SERVICES LTD FCO OP - POE,9000179,53.82,
FCO,FCO,24-Apr-12,Waste Disposal,#N/A,ISS FACILITY SERVICES LTD FCO OP - POE,9000179,109.39,
FCO,FCO,24-Apr-12,Telephone Call Charges,#N/A,ISS FACILITY SERVICES LTD FCO OP - POE,9000179,385.29,
FCO,FCO,24-Apr-12,Telephone line and equipment rental charges,#N/A,ISS FACILITY SERVICES LTD FCO OP - POE,9000179,498.14,
FCO,FCO,24-Apr-12,Electricity Non-Residential,#N/A,ISS FACILITY SERVICES LTD FCO OP - POE,9000179,"1,731.78",
FCO,FCO,24-Apr-12,Rental Payments - non residential,DG CHANGE & DELIVERY,ISS FACILITY SERVICES LTD FCO OP - POE,9000179,"3,655.33",
FCO,FCO,24-Apr-12,Rental Payments - residential,#N/A,ISS FACILITY SERVICES LTD FCO OP - POE,9000179,256.19,
FCO,FCO,24-Apr-12,Water Residential,#N/A,ISS FACILITY SERVICES LTD FCO OP - POE,9000180,43.7,
FCO,FCO,24-Apr-12,Telephone line and equipment rental charges,#N/A,ISS FACILITY SERVICES LTD FCO OP - POE,9000180,181.6,
FCO,FCO,24-Apr-12,Electricity Residential,#N/A,ISS FACILITY SERVICES LTD FCO OP - POE,9000180,169.32,
FCO,FCO,24-Apr-12,Water Residential,#N/A,ISS FACILITY SERVICES LTD FCO OP - POE,9000180,18.81,
FCO,FCO,24-Apr-12,Electricity Residential,#N/A,ISS FACILITY SERVICES LTD FCO OP - POE,9000180,121.06,
FCO,FCO,24-Apr-12,Water Residential,#N/A,ISS FACILITY SERVICES LTD FCO OP - POE,9000180,18.16,
FCO,FCO,24-Apr-12,Water Residential,#N/A,ISS FACILITY SERVICES LTD FCO OP - POE,9000180,18.16,
FCO,FCO,24-Apr-12,Electricity Residential,#N/A,ISS FACILITY SERVICES LTD FCO OP - POE,9000180,121.06,
FCO,FCO,24-Apr-12,Electricity Residential,#N/A,ISS FACILITY SERVICES LTD FCO OP - POE,9000180,55.12,
FCO,FCO,24-Apr-12,Water Residential,#N/A,ISS FACILITY SERVICES LTD FCO OP - POE,9000180,18.16,
FCO,FCO,24-Apr-12,Electricity Residential,#N/A,ISS FACILITY SERVICES LTD FCO OP - POE,9000180,69.76,
FCO,FCO,24-Apr-12,Electricity Residential,#N/A,ISS FACILITY SERVICES LTD FCO OP - POE,9000180,221.01,
FCO,FCO,24-Apr-12,Water Residential,#N/A,ISS FACILITY SERVICES LTD FCO OP - POE,9000180,18.16,
FCO,FCO,24-Apr-12,Electricity Residential,#N/A,ISS FACILITY SERVICES LTD FCO OP - POE,9000180,117.9,
FCO,FCO,24-Apr-12,Water Residential,#N/A,ISS FACILITY SERVICES LTD FCO OP - POE,9000180,10.5,
FCO,FCO,24-Apr-12,Electricity Residential,#N/A,ISS FACILITY SERVICES LTD FCO OP - POE,9000180,120.32,
FCO,FCO,24-Apr-12,Water Residential,#N/A,ISS FACILITY SERVICES LTD FCO OP - POE,9000180,10.5,
FCO,FCO,24-Apr-12,Electricity Residential,#N/A,ISS FACILITY SERVICES LTD FCO OP - POE,9000180,117.9,
FCO,FCO,24-Apr-12,Water Residential,#N/A,ISS FACILITY SERVICES LTD FCO OP - POE,9000180,10.5,
FCO,FCO,24-Apr-12,Rental Payments - residential,#N/A,ISS FACILITY SERVICES LTD FCO OP - POE,9000180,"2,902.12",
FCO,FCO,24-Apr-12,Water Residential,#N/A,ISS FACILITY SERVICES LTD FCO OP - POE,9000180,10.5,
FCO,FCO,24-Apr-12,Rental Payments - residential,#N/A,ISS FACILITY SERVICES LTD FCO OP - POE,9000180,"14,005.86",
FCO,FCO,24-Apr-12,Telephone line and equipment rental charges,#N/A,ISS FACILITY SERVICES LTD FCO OP - POE,9000180,181.6,
FCO,FCO,24-Apr-12,Electricity Residential,#N/A,ISS FACILITY SERVICES LTD FCO OP - POE,9000180,117.9,
FCO,FCO,24-Apr-12,Telephone Call Charges,#N/A,ISS FACILITY SERVICES LTD FCO OP - POE,9000180,202.78,
FCO,FCO,24-Apr-12,Telephone Call Charges,#N/A,ISS FACILITY SERVICES LTD FCO OP - POE,9000180,339.96,
FCO,FCO,24-Apr-12,Water Non-Residential,#N/A,ISS FACILITY SERVICES LTD FCO OP - POE,9000180,43.7,
FCO,FCO,24-Apr-12,Electricity Non-Residential,#N/A,ISS FACILITY SERVICES LTD FCO OP - POE,9000180,982.61,
FCO,FCO,24-Apr-12,Rental Payments - non residential,DG CHANGE & DELIVERY,ISS FACILITY SERVICES LTD FCO OP - POE,9000180,"75,290.98",
FCO,FCO,24-Apr-12,Rental Payments - non residential,DG CHANGE & DELIVERY,ISS FACILITY SERVICES LTD FCO OP - POE,9000180,"372,026.03",
FCO,FCO,18-Apr-12,Programme Spend (Oracle Projects Control Account),DG POLITICAL,ARTICLE 19,1043406,"25,482.00",
FCO,FCO,02-Apr-12,Programme Spend (Oracle Projects Control Account),UK TRADE AND INVESTMENT DIRECTORATE,MOTHER LONDON LTD,1041828,255,
FCO,FCO,02-Apr-12,Programme Spend (Oracle Projects Control Account),UK TRADE AND INVESTMENT DIRECTORATE,MOTHER LONDON LTD,1041828,"30,000.00",
FCO,FCO,02-Apr-12,Programme Spend (Oracle Projects Control Account),UK TRADE AND INVESTMENT DIRECTORATE,MOTHER LONDON LTD,1041828,51,
FCO,FCO,02-Apr-12,Programme Spend (Oracle Projects Control Account),UK TRADE AND INVESTMENT DIRECTORATE,MOTHER LONDON LTD,1041828,"6,000.00",
FCO,FCO,11-Apr-12,Programme Spend (Oracle Projects Control Account),DG EUROPE AND GLOBALISATION,The Bar Council,700002521,"45,894.27",
FCO,FCO,11-Apr-12,Programme Spend (Oracle Projects Control Account),DG EUROPE AND GLOBALISATION,The Bar Council,700002521,"-45,894.27",
FCO,FCO,11-Apr-12,Programme Spend (Oracle Projects Control Account),DG EUROPE AND GLOBALISATION,The Bar Council,700002521,"45,894.27",
FCO,FCO,05-Apr-12,Programme Spend (Oracle Projects Control Account),DG EUROPE AND GLOBALISATION,SEARCH FOR COMMON GROUND ANGOLA,200000849,"41,006.88",
FCO,FCO,02-Apr-12,Programme Spend (Oracle Projects Control Account),DG POLITICAL,ENTREPRENEURIAL & INVESTMENT PROJECT DEVELOPMENT CO.,473433,"25,891.98",
FCO,FCO,02-Apr-12,Programme Spend (Oracle Projects Control Account),DG POLITICAL,ENTREPRENEURIAL & INVESTMENT PROJECT DEVELOPMENT CO.,473433,"26,844.03",
FCO,FCO,10-Apr-12,Programme Spend (Oracle Projects Control Account),DG POLITICAL,ELECTORAL REFORM INTERNATIONAL SERVICES LTD,1042748,"38,911.20",
FCO,FCO,30-Apr-12,Programme Spend (Oracle Projects Control Account),DG POLITICAL,ELECTORAL REFORM INTERNATIONAL SERVICES LTD,1044265,"8,214.17",
FCO,FCO,30-Apr-12,Programme Spend (Oracle Projects Control Account),DG POLITICAL,ELECTORAL REFORM INTERNATIONAL SERVICES LTD,1044265,"25,000.00",
FCO,FCO,30-Apr-12,Programme Spend (Oracle Projects Control Account),DG POLITICAL,ELECTORAL REFORM INTERNATIONAL SERVICES LTD,1044265,"-8,214.17",
FCO,FCO,30-Apr-12,Programme Spend (Oracle Projects Control Account),DG POLITICAL,ELECTORAL REFORM INTERNATIONAL SERVICES LTD,1044265,"-25,000.00",
FCO,FCO,30-Apr-12,Programme Spend (Oracle Projects Control Account),DG POLITICAL,ELECTORAL REFORM INTERNATIONAL SERVICES LTD,1044265,"8,531.90",
FCO,FCO,30-Apr-12,Programme Spend (Oracle Projects Control Account),DG POLITICAL,ELECTORAL REFORM INTERNATIONAL SERVICES LTD,1044265,"24,682.27",
FCO,FCO,30-Apr-12,Programme Spend (Oracle Projects Control Account),DG POLITICAL,ELECTORAL REFORM INTERNATIONAL SERVICES LTD,1044265,"-8,531.90",
FCO,FCO,30-Apr-12,Programme Spend (Oracle Projects Control Account),DG POLITICAL,ELECTORAL REFORM INTERNATIONAL SERVICES LTD,1044265,"8,531.50",
FCO,FCO,30-Apr-12,Programme Spend (Oracle Projects Control Account),DG POLITICAL,ELECTORAL REFORM INTERNATIONAL SERVICES LTD,1044265,0.4,
FCO,FCO,19-Apr-12,Programme Spend (Oracle Projects Control Account),DG POLITICAL,PNUD MAROC,2000268,"69,990.99",
FCO,FCO,05-Apr-12,Residential Property Services,DG CHANGE & DELIVERY,DRIVERS JONAS DELOITTE,1042619,"29,000.00",
FCO,FCO,05-Apr-12,Assets Under Construction (Oracle PA Control Account),NON CASH & UNALLOCATED COSTS,DRIVERS JONAS DELOITTE,1042619,"15,000.00",
FCO,FCO,05-Apr-12,Assets Under Construction (Oracle PA Control Account),NON CASH & UNALLOCATED COSTS,DRIVERS JONAS DELOITTE,1042619,"9,329.38",
FCO,FCO,05-Apr-12,Residential Property Services,DG CHANGE & DELIVERY,DRIVERS JONAS DELOITTE,1042619,"5,463.13",
FCO,FCO,05-Apr-12,Residential Property Services,DG CHANGE & DELIVERY,DRIVERS JONAS DELOITTE,1042619,"5,800.00",
FCO,FCO,05-Apr-12,Assets Under Construction (Oracle PA Control Account),NON CASH & UNALLOCATED COSTS,DRIVERS JONAS DELOITTE,1042619,"3,000.00",
FCO,FCO,05-Apr-12,Assets Under Construction (Oracle PA Control Account),NON CASH & UNALLOCATED COSTS,DRIVERS JONAS DELOITTE,1042619,"1,865.88",
FCO,FCO,05-Apr-12,Residential Property Services,DG CHANGE & DELIVERY,DRIVERS JONAS DELOITTE,1042619,"1,092.63",
FCO,FCO,10-Apr-12,Programme Spend (Oracle Projects Control Account),UK TRADE AND INVESTMENT DIRECTORATE,MEDIAMIX SA,1003431,"39,549.80",
FCO,FCO,10-Apr-12,Programme Spend (Oracle Projects Control Account),UK TRADE AND INVESTMENT DIRECTORATE,MEDIAMIX SA,1003431,"49,845.74",
FCO,FCO,02-Apr-12,Programme Spend (Oracle Projects Control Account),UK TRADE AND INVESTMENT DIRECTORATE,INNOVISION EVENTS LTD,1041648,"837,648.26",
FCO,FCO,02-Apr-12,Programme Spend (Oracle Projects Control Account),UK TRADE AND INVESTMENT DIRECTORATE,INNOVISION EVENTS LTD,1041648,"233,755.00",
FCO,FCO,02-Apr-12,VAT (Input) (Oracle Sub-Ledger Control Account),NON CASH & UNALLOCATED COSTS,INNOVISION EVENTS LTD,1041648,"46,751.00",
FCO,FCO,02-Apr-12,VAT (Input) (Oracle Sub-Ledger Control Account),NON CASH & UNALLOCATED COSTS,INNOVISION EVENTS LTD,1041648,"167,529.65",
FCO,FCO,03-Apr-12,Programme Spend (Oracle Projects Control Account),UK TRADE AND INVESTMENT DIRECTORATE,INNOVISION EVENTS LTD,1042180,"124,365.00",
FCO,FCO,03-Apr-12,VAT (Input) (Oracle Sub-Ledger Control Account),NON CASH & UNALLOCATED COSTS,INNOVISION EVENTS LTD,1042180,"24,873.00",
FCO,FCO,11-Apr-12,General Information Services,DG CHANGE & DELIVERY,WADDINGTON + LEDGER LTD,1043001,"30,878.00",
FCO,FCO,17-Apr-12,Programme Spend (Oracle Projects Control Account),DG CENTRAL GROUP,RIOH8,1008683,"48,144.65",
FCO,FCO,02-Apr-12,IT/IS Consultancy,DG CENTRAL GROUP,KPMG LLP,1041738,"15,300.00",
FCO,FCO,02-Apr-12,IT/IS Consultancy,DG CENTRAL GROUP,KPMG LLP,1041738,"16,065.00",
FCO,FCO,02-Apr-12,IT/IS Consultancy,DG CENTRAL GROUP,KPMG LLP,1041738,"11,440.00",
FCO,FCO,02-Apr-12,IT/IS Consultancy,DG CENTRAL GROUP,KPMG LLP,1041738,"15,015.00",
FCO,FCO,02-Apr-12,IT/IS Consultancy,DG CENTRAL GROUP,KPMG LLP,1041738,"14,790.00",
FCO,FCO,02-Apr-12,IT/IS Consultancy,DG CENTRAL GROUP,KPMG LLP,1041738,"17,340.00",
FCO,FCO,02-Apr-12,IT/IS Consultancy,DG CENTRAL GROUP,KPMG LLP,1041738,"13,005.00",
FCO,FCO,02-Apr-12,IT/IS Consultancy,DG CENTRAL GROUP,KPMG LLP,1041738,"8,415.00",
FCO,FCO,02-Apr-12,IT/IS Consultancy,DG CENTRAL GROUP,KPMG LLP,1041738,"18,060.00",
FCO,FCO,02-Apr-12,IT/IS Consultancy,DG CENTRAL GROUP,KPMG LLP,1041738,"20,210.00",
FCO,FCO,02-Apr-12,IT/IS Consultancy,DG CENTRAL GROUP,KPMG LLP,1041738,"11,092.50",
FCO,FCO,02-Apr-12,IT/IS Consultancy,DG CENTRAL GROUP,KPMG LLP,1041738,"11,857.50",
FCO,FCO,02-Apr-12,Assets Under Construction (Oracle PA Control Account),NON CASH & UNALLOCATED COSTS,KPMG LLP,1041738,"10,710.00",
FCO,FCO,02-Apr-12,Assets Under Construction (Oracle PA Control Account),NON CASH & UNALLOCATED COSTS,KPMG LLP,1041738,"13,005.00",
FCO,FCO,02-Apr-12,Assets Under Construction (Oracle PA Control Account),NON CASH & UNALLOCATED COSTS,KPMG LLP,1041738,"18,060.00",
FCO,FCO,02-Apr-12,Assets Under Construction (Oracle PA Control Account),NON CASH & UNALLOCATED COSTS,KPMG LLP,1041738,"7,350.00",
FCO,FCO,02-Apr-12,Assets Under Construction (Oracle PA Control Account),NON CASH & UNALLOCATED COSTS,KPMG LLP,1041738,"13,760.00",
FCO,FCO,02-Apr-12,Assets Under Construction (Oracle PA Control Account),NON CASH & UNALLOCATED COSTS,KPMG LLP,1041738,"13,760.00",
FCO,FCO,02-Apr-12,Assets Under Construction (Oracle PA Control Account),NON CASH & UNALLOCATED COSTS,KPMG LLP,1041738,"18,060.00",
FCO,FCO,02-Apr-12,Assets Under Construction (Oracle PA Control Account),NON CASH & UNALLOCATED COSTS,KPMG LLP,1041738,"13,005.00",
FCO,FCO,02-Apr-12,Assets Under Construction (Oracle PA Control Account),NON CASH & UNALLOCATED COSTS,KPMG LLP,1041738,"16,065.00",
FCO,FCO,02-Apr-12,Assets Under Construction (Oracle PA Control Account),NON CASH & UNALLOCATED COSTS,KPMG LLP,1041738,"12,240.00",
FCO,FCO,02-Apr-12,Assets Under Construction (Oracle PA Control Account),NON CASH & UNALLOCATED COSTS,KPMG LLP,1041738,"12,622.50",
FCO,FCO,02-Apr-12,Assets Under Construction (Oracle PA Control Account),NON CASH & UNALLOCATED COSTS,KPMG LLP,1041738,"13,005.00",
FCO,FCO,02-Apr-12,Assets Under Construction (Oracle PA Control Account),NON CASH & UNALLOCATED COSTS,KPMG LLP,1041738,"15,300.00",
FCO,FCO,02-Apr-12,IT/IS Consultancy,DG CENTRAL GROUP,KPMG LLP,1041738,"6,650.00",
FCO,FCO,02-Apr-12,IT/IS Consultancy,DG CENTRAL GROUP,KPMG LLP,1041738,"17,200.00",
FCO,FCO,02-Apr-12,IT/IS Consultancy,DG CENTRAL GROUP,KPMG LLP,1041738,"16,340.00",
FCO,FCO,02-Apr-12,UK - Air Travel,DG CENTRAL GROUP,KPMG LLP,1041738,638.17,
FCO,FCO,02-Apr-12,UK - Air Travel,DG CENTRAL GROUP,KPMG LLP,1041738,118.41,
FCO,FCO,02-Apr-12,VAT (Input) (Oracle Sub-Ledger Control Account),NON CASH & UNALLOCATED COSTS,KPMG LLP,1041738,"34,769.68",
FCO,FCO,02-Apr-12,VAT (Input) (Oracle Sub-Ledger Control Account),NON CASH & UNALLOCATED COSTS,KPMG LLP,1041738,"35,288.13",
FCO,FCO,02-Apr-12,IT/IS Consultancy,DG CENTRAL GROUP,KPMG LLP,1041738,"3,268.00",
FCO,FCO,02-Apr-12,IT/IS Consultancy,DG CENTRAL GROUP,KPMG LLP,1041738,"1,330.00",
FCO,FCO,02-Apr-12,IT/IS Consultancy,DG CENTRAL GROUP,KPMG LLP,1041738,"3,440.00",
FCO,FCO,10-Apr-12,Programme Spend (Oracle Projects Control Account),UK TRADE AND INVESTMENT DIRECTORATE,WARREN INTERNATIONAL MEDIA,11548,"33,951.28",
FCO,FCO,10-Apr-12,Programme Spend (Oracle Projects Control Account),UK TRADE AND INVESTMENT DIRECTORATE,WARREN INTERNATIONAL MEDIA,11548,"-33,951.28",
FCO,FCO,10-Apr-12,Programme Spend (Oracle Projects Control Account),UK TRADE AND INVESTMENT DIRECTORATE,WARREN INTERNATIONAL MEDIA,11548,"33,951.27",
FCO,FCO,16-Apr-12,Programme Spend (Oracle Projects Control Account),DG CENTRAL GROUP,MOTHER INDUSTRIES LLC,40000007865,"58,104.91",
FCO,FCO,02-Apr-12,Programme Spend (Oracle Projects Control Account),DG POLITICAL,WIENER LIBRARY ITS ARCHIVE,1042119,"500,000.00",
FCO,FCO,02-Apr-12,Programme Spend (Oracle Projects Control Account),DG CHANGE & DELIVERY,AUSTRALIAN GOVERNMENT,11542,"44,437.81",
FCO,FCO,17-Apr-12,Programme Spend (Oracle Projects Control Account),DG CENTRAL GROUP,LINN ADVERTISING,17157762,"25,011.76",
FCO,FCO,22-Apr-12,Programme Spend (Oracle Projects Control Account),DG POLITICAL,EGYPTIAN PARALYMPIC COMMITTEE,2000000086,"42,741.78",
FCO,FCO,13-Apr-12,Residential Property Services,DG CHANGE & DELIVERY,FONNEGRA GERLEIN S.A,32226,"41,275.70",
FCO,FCO,19-Apr-12,Programme Spend (Oracle Projects Control Account),DG CHANGE & DELIVERY,BAA BUSINESS SUPPORT CENTRE LTD,1043595,"29,000.00",
FCO,FCO,19-Apr-12,VAT (Input) (Oracle Sub-Ledger Control Account),NON CASH & UNALLOCATED COSTS,BAA BUSINESS SUPPORT CENTRE LTD,1043595,"5,800.00",
FCO,FCO,19-Apr-12,Programme Spend (Oracle Projects Control Account),DG CHANGE & DELIVERY,BAA BUSINESS SUPPORT CENTRE LTD,1043595,"-29,000.00",
FCO,FCO,19-Apr-12,VAT (Input) (Oracle Sub-Ledger Control Account),NON CASH & UNALLOCATED COSTS,BAA BUSINESS SUPPORT CENTRE LTD,1043595,"-5,800.00",
FCO,FCO,19-Apr-12,Programme Spend (Oracle Projects Control Account),DG CHANGE & DELIVERY,BAA BUSINESS SUPPORT CENTRE LTD,1043595,"26,000.00",
FCO,FCO,19-Apr-12,Programme Spend (Oracle Projects Control Account),DG CHANGE & DELIVERY,BAA BUSINESS SUPPORT CENTRE LTD,1043595,"3,000.00",
FCO,FCO,19-Apr-12,VAT (Input) (Oracle Sub-Ledger Control Account),NON CASH & UNALLOCATED COSTS,BAA BUSINESS SUPPORT CENTRE LTD,1043595,"5,200.00",
FCO,FCO,02-Apr-12,Programme Spend (Oracle Projects Control Account),DG EUROPE AND GLOBALISATION,THE MET OFFICE GOVERNMENT SERVICES,1042039,"49,418.00",
FCO,FCO,02-Apr-12,Programme Spend (Oracle Projects Control Account),DG POLITICAL,BBC - BRITISH BROADCASTING CORPORATION,1041334,"86,000.00",
FCO,FCO,13-Apr-12,Programme Spend (Oracle Projects Control Account),DG CENTRAL GROUP,BBC - BRITISH BROADCASTING CORPORATION,1043103,"500,000.00",
FCO,FCO,13-Apr-12,Programme Spend (Oracle Projects Control Account),DG CENTRAL GROUP,BBC - BRITISH BROADCASTING CORPORATION,1043103,"12,700,000.00",
FCO,FCO,24-Apr-12,Training Courses,DG CHANGE & DELIVERY,ASHRIDGE MANAGEMENT COLLEGE,1043835,"44,974.70",
FCO,FCO,24-Apr-12,VAT (Input) (Oracle Sub-Ledger Control Account),NON CASH & UNALLOCATED COSTS,ASHRIDGE MANAGEMENT COLLEGE,1043835,"8,994.94",
FCO,FCO,27-Apr-12,Training Courses,DG CHANGE & DELIVERY,ASHRIDGE MANAGEMENT COLLEGE,1044185,"31,906.00",
FCO,FCO,27-Apr-12,Training Courses,DG CHANGE & DELIVERY,ASHRIDGE MANAGEMENT COLLEGE,1044185,544,
FCO,FCO,27-Apr-12,Training Courses,DG CHANGE & DELIVERY,ASHRIDGE MANAGEMENT COLLEGE,1044185,"6,381.20",
FCO,FCO,27-Apr-12,Training Courses,DG CHANGE & DELIVERY,ASHRIDGE MANAGEMENT COLLEGE,1044185,"-31,906.00",
FCO,FCO,27-Apr-12,Training Courses,DG CHANGE & DELIVERY,ASHRIDGE MANAGEMENT COLLEGE,1044185,-544,
FCO,FCO,27-Apr-12,Training Courses,DG CHANGE & DELIVERY,ASHRIDGE MANAGEMENT COLLEGE,1044185,"31,906.00",
FCO,FCO,27-Apr-12,Training Courses,DG CHANGE & DELIVERY,ASHRIDGE MANAGEMENT COLLEGE,1044185,544,
FCO,FCO,27-Apr-12,Training Courses,DG CHANGE & DELIVERY,ASHRIDGE MANAGEMENT COLLEGE,1044185,108.8,
FCO,FCO,27-Apr-12,Training Courses,DG CHANGE & DELIVERY,ASHRIDGE MANAGEMENT COLLEGE,1044185,-544,
FCO,FCO,27-Apr-12,Training Courses,DG CHANGE & DELIVERY,ASHRIDGE MANAGEMENT COLLEGE,1044185,-108.8,
FCO,FCO,27-Apr-12,Training Courses,DG CHANGE & DELIVERY,ASHRIDGE MANAGEMENT COLLEGE,1044185,544,
FCO,FCO,02-Apr-12,Nursery Childcare Subsidy,DG CHANGE & DELIVERY,BRIGHT HORIZONS FAMILY SOLUTION LTD,1041365,"41,619.66",
FCO,FCO,16-Apr-12,Programme Spend (Oracle Projects Control Account),DG CENTRAL GROUP,BRITISH COUNCIL,1043259,"727,828.00",
FCO,FCO,24-Apr-12,Programme Spend (Oracle Projects Control Account),DG CENTRAL GROUP,BRITISH COUNCIL,1043841,"13,440,000.00",
FCO,FCO,24-Apr-12,Programme Spend (Oracle Projects Control Account),DG CENTRAL GROUP,BRITISH COUNCIL,1043841,"280,000.00",
FCO,FCO,02-Apr-12,Programme Spend (Oracle Projects Control Account),DG DEFENCE AND INTELLIGENCE,NATO,1003416,"50,642.65",
FCO,FCO,02-Apr-12,Programme Spend (Oracle Projects Control Account),DG DEFENCE AND INTELLIGENCE,NATO,1003417,"50,642.65",
FCO,FCO,02-Apr-12,Programme Spend (Oracle Projects Control Account),DG DEFENCE AND INTELLIGENCE,NATO,1003418,"50,642.65",
FCO,FCO,25-Apr-12,Programme Spend (Oracle Projects Control Account),DG POLITICAL,INTERNATIONAL CRIMINAL COURT,1003496,"6,695,058.69",
FCO,FCO,02-Apr-12,FCO Healthcare Scheme,DG CHANGE & DELIVERY,HEALIX INTERNATIONAL LTD,1041606,"47,490.63",
FCO,FCO,02-Apr-12,FCO Healthcare Scheme,DG CHANGE & DELIVERY,HEALIX INTERNATIONAL LTD,1041606,"9,498.13",
FCO,FCO,02-Apr-12,Hospital/Specialist Treatment,DG CHANGE & DELIVERY,HEALIX INTERNATIONAL LTD,1041607,"46,744.30",
FCO,FCO,02-Apr-12,Hospital/Specialist Treatment,DG CHANGE & DELIVERY,HEALIX INTERNATIONAL LTD,1041607,"44,526.44",
FCO,FCO,02-Apr-12,Hospital/Specialist Treatment,DG CHANGE & DELIVERY,HEALIX INTERNATIONAL LTD,1041607,"20,015.12",
FCO,FCO,11-Apr-12,Miscellaneous Expenditure: inc subscriptions and equipment maintenance,DG POLITICAL,CABINET OFFICE,4001673,"92,752.00",
FCO,FCO,02-Apr-12,Information Systems Maintenance,DG CHANGE & DELIVERY,CAPGEMINI  UK PLC,1041388,"46,497.06",
FCO,FCO,02-Apr-12,Estates Management Services,DG CHANGE & DELIVERY,CAPGEMINI  UK PLC,1041388,"25,205.00",
FCO,FCO,02-Apr-12,IT/IS Consultancy,DG CENTRAL GROUP,CAPGEMINI  UK PLC,1041388,"32,186.31",
FCO,FCO,02-Apr-12,VAT (Input) (Oracle Sub-Ledger Control Account),NON CASH & UNALLOCATED COSTS,CAPGEMINI  UK PLC,1041388,"6,437.26",
FCO,FCO,02-Apr-12,VAT (Input) (Oracle Sub-Ledger Control Account),NON CASH & UNALLOCATED COSTS,CAPGEMINI  UK PLC,1041388,"9,299.41",
FCO,FCO,02-Apr-12,VAT (Input) (Oracle Sub-Ledger Control Account),NON CASH & UNALLOCATED COSTS,CAPGEMINI  UK PLC,1041388,"5,041.00",
FCO,FCO,02-Apr-12,Information Systems Maintenance,DG CHANGE & DELIVERY,CAPGEMINI  UK PLC,1041388,"-46,497.06",
FCO,FCO,02-Apr-12,Estates Management Services,DG CHANGE & DELIVERY,CAPGEMINI  UK PLC,1041388,"-25,205.00",
FCO,FCO,02-Apr-12,Information Systems Maintenance,DG CHANGE & DELIVERY,CAPGEMINI  UK PLC,1041388,"46,497.06",
FCO,FCO,02-Apr-12,Estates Management Services,DG CHANGE & DELIVERY,CAPGEMINI  UK PLC,1041388,"25,205.00",
FCO,FCO,02-Apr-12,Estates Management Services,DG CHANGE & DELIVERY,CAPGEMINI  UK PLC,1041388,"-25,205.00",
FCO,FCO,02-Apr-12,Estates Management Services,DG CHANGE & DELIVERY,CAPGEMINI  UK PLC,1041388,"4,458.00",
FCO,FCO,02-Apr-12,Estates Management Services,DG CHANGE & DELIVERY,CAPGEMINI  UK PLC,1041388,11.1,
FCO,FCO,02-Apr-12,Estates Management Services,DG CHANGE & DELIVERY,CAPGEMINI  UK PLC,1041388,"20,735.90",
FCO,FCO,11-Apr-12,IT/IS Consultancy,DG CENTRAL GROUP,CAPGEMINI  UK PLC,1042878,"112,301.98",
FCO,FCO,11-Apr-12,VAT (Input) (Oracle Sub-Ledger Control Account),NON CASH & UNALLOCATED COSTS,CAPGEMINI  UK PLC,1042878,"22,460.40",
FCO,FCO,12-Apr-12,IT/IS Consultancy,DG CENTRAL GROUP,CAPGEMINI  UK PLC,1043020,"69,563.30",
FCO,FCO,12-Apr-12,IT/IS Consultancy,DG CENTRAL GROUP,CAPGEMINI  UK PLC,1043020,"32,186.31",
FCO,FCO,12-Apr-12,VAT (Input) (Oracle Sub-Ledger Control Account),NON CASH & UNALLOCATED COSTS,CAPGEMINI  UK PLC,1043020,"13,912.66",
FCO,FCO,12-Apr-12,VAT (Input) (Oracle Sub-Ledger Control Account),NON CASH & UNALLOCATED COSTS,CAPGEMINI  UK PLC,1043020,"6,437.26",
FCO,FCO,02-Apr-12,"HR, Training and Education Consultancy",DG CHANGE & DELIVERY,INSPIRING BUSINESS PERFORMANCE LTD,1041649,"21,726.25",
FCO,FCO,02-Apr-12,"HR, Training and Education Consultancy",DG CHANGE & DELIVERY,INSPIRING BUSINESS PERFORMANCE LTD,1041649,"4,345.25",
FCO,FCO,02-Apr-12,Programme Spend (Oracle Projects Control Account),DG POLITICAL,CHATHAM HOUSE,1041409,"37,990.00",
FCO,FCO,02-Apr-12,Programme Spend (Oracle Projects Control Account),DG POLITICAL,CHATHAM HOUSE,1041409,"15,000.00",
FCO,FCO,05-Apr-12,Rates Taxes Non-Residential,DG CHANGE & DELIVERY,CITY OF WESTMINSTER,1042610,"1,620,420.00",
FCO,FCO,11-Apr-12,Rates Taxes Non-Residential,DG CHANGE & DELIVERY,CITY OF WESTMINSTER,1042885,"676,987.75",
FCO,FCO,23-Apr-12,Rates Taxes Non-Residential,DG CHANGE & DELIVERY,CITY OF WESTMINSTER,1043790,"3,996,080.00",
FCO,FCO,13-Apr-12,Specialist Contractors,DG CENTRAL GROUP,CMC COMMUNICATIONS LTD,1043119,"30,960.00",
FCO,FCO,13-Apr-12,Specialist Contractors,DG CENTRAL GROUP,CMC COMMUNICATIONS LTD,1043119,"6,192.00",
FCO,FCO,04-Apr-12,Information Systems Under 3000 (non-capitalised),DG CENTRAL GROUP,COMPUWARE LTD,1042301,"38,475.00",
FCO,FCO,04-Apr-12,Information Systems Under 3000 (non-capitalised),DG CENTRAL GROUP,COMPUWARE LTD,1042301,"7,695.00",
FCO,FCO,02-Apr-12,Equipment and Services For Disabled Staff,DG CHANGE & DELIVERY,KEY 4 LEARNING LTD,1041728,"2,100.00",
FCO,FCO,02-Apr-12,Equipment and Services For Disabled Staff,DG CHANGE & DELIVERY,KEY 4 LEARNING LTD,1041728,800,
FCO,FCO,02-Apr-12,Equipment and Services For Disabled Staff,DG CHANGE & DELIVERY,KEY 4 LEARNING LTD,1041728,"2,100.00",
FCO,FCO,02-Apr-12,Equipment and Services For Disabled Staff,DG CHANGE & DELIVERY,KEY 4 LEARNING LTD,1041728,"1,200.00",
FCO,FCO,02-Apr-12,Equipment and Services For Disabled Staff,DG CHANGE & DELIVERY,KEY 4 LEARNING LTD,1041728,"1,157.35",
FCO,FCO,02-Apr-12,Equipment and Services For Disabled Staff,DG CHANGE & DELIVERY,KEY 4 LEARNING LTD,1041728,428.7,
FCO,FCO,02-Apr-12,Equipment and Services For Disabled Staff,DG CHANGE & DELIVERY,KEY 4 LEARNING LTD,1041728,"2,400.00",
FCO,FCO,02-Apr-12,Equipment and Services For Disabled Staff,DG CHANGE & DELIVERY,KEY 4 LEARNING LTD,1041728,"4,000.00",
FCO,FCO,02-Apr-12,Equipment and Services For Disabled Staff,DG CHANGE & DELIVERY,KEY 4 LEARNING LTD,1041728,181,
FCO,FCO,02-Apr-12,Equipment and Services For Disabled Staff,DG CHANGE & DELIVERY,KEY 4 LEARNING LTD,1041728,450,
FCO,FCO,02-Apr-12,Equipment and Services For Disabled Staff,DG CHANGE & DELIVERY,KEY 4 LEARNING LTD,1041728,"1,400.00",
FCO,FCO,02-Apr-12,Equipment and Services For Disabled Staff,DG CHANGE & DELIVERY,KEY 4 LEARNING LTD,1041728,"4,000.00",
FCO,FCO,02-Apr-12,Equipment and Services For Disabled Staff,DG CHANGE & DELIVERY,KEY 4 LEARNING LTD,1041728,28.45,
FCO,FCO,02-Apr-12,Equipment and Services For Disabled Staff,DG CHANGE & DELIVERY,KEY 4 LEARNING LTD,1041728,"1,600.00",
FCO,FCO,02-Apr-12,Equipment and Services For Disabled Staff,DG CHANGE & DELIVERY,KEY 4 LEARNING LTD,1041728,84.55,
FCO,FCO,02-Apr-12,VAT (Input) (Oracle Sub-Ledger Control Account),NON CASH & UNALLOCATED COSTS,KEY 4 LEARNING LTD,1041728,"3,263.11",
FCO,FCO,02-Apr-12,Equipment and Services For Disabled Staff,DG CHANGE & DELIVERY,KEY 4 LEARNING LTD,1041728,231.47,
FCO,FCO,02-Apr-12,Equipment and Services For Disabled Staff,DG CHANGE & DELIVERY,KEY 4 LEARNING LTD,1041728,5.69,
FCO,FCO,02-Apr-12,Equipment and Services For Disabled Staff,DG CHANGE & DELIVERY,KEY 4 LEARNING LTD,1041728,85.74,
FCO,FCO,02-Apr-12,Equipment and Services For Disabled Staff,DG CHANGE & DELIVERY,KEY 4 LEARNING LTD,1041728,800,
FCO,FCO,20-Apr-12,Programme Spend (Oracle Projects Control Account),DG POLITICAL,CONCILIATION RESOURCES,1043739,"83,802.00",
FCO,FCO,20-Apr-12,Programme Spend (Oracle Projects Control Account),DG POLITICAL,CONCILIATION RESOURCES,1043739,"100,000.00",
FCO,FCO,20-Apr-12,Programme Spend (Oracle Projects Control Account),DG POLITICAL,CONCILIATION RESOURCES,1043739,"45,955.00",
FCO,FCO,12-Apr-12,Programme Spend (Oracle Projects Control Account),DG DEFENCE AND INTELLIGENCE,CROWN AGENTS,1043025,"16,250.00",
FCO,FCO,12-Apr-12,Programme Spend (Oracle Projects Control Account),DG DEFENCE AND INTELLIGENCE,CROWN AGENTS,1043025,"9,010.68",
FCO,FCO,12-Apr-12,Programme Spend (Oracle Projects Control Account),DG DEFENCE AND INTELLIGENCE,CROWN AGENTS,1043025,"3,250.00",
FCO,FCO,13-Apr-12,Programme Spend (Oracle Projects Control Account),DG DEFENCE AND INTELLIGENCE,CROWN AGENTS,1043125,"35,564.00",
FCO,FCO,13-Apr-12,Programme Spend (Oracle Projects Control Account),DG DEFENCE AND INTELLIGENCE,CROWN AGENTS,1043125,"44,709.90",
FCO,FCO,13-Apr-12,Programme Spend (Oracle Projects Control Account),DG DEFENCE AND INTELLIGENCE,CROWN AGENTS,1043125,"-44,709.90",
FCO,FCO,13-Apr-12,Programme Spend (Oracle Projects Control Account),DG DEFENCE AND INTELLIGENCE,CROWN AGENTS,1043125,"44,709.90",
FCO,FCO,16-Apr-12,Programme Spend (Oracle Projects Control Account),DG DEFENCE AND INTELLIGENCE,CROWN AGENTS,1043275,"34,304.00",
FCO,FCO,27-Apr-12,Programme Spend (Oracle Projects Control Account),DG EUROPE AND GLOBALISATION,CROWN AGENTS,1044199,"39,605.80",
FCO,FCO,05-Apr-12,Rental Payments - non residential,DG CHANGE & DELIVERY,CROWN ESTATE COMMIS CASH A/C,1042614,"122,500.00",
FCO,FCO,05-Apr-12,Rental Payments - non residential,DG CHANGE & DELIVERY,CROWN ESTATE COMMIS CASH A/C,1042614,"24,500.00",
FCO,FCO,11-Apr-12,Construction Project more than 10k,DG CHANGE & DELIVERY,CROWN ESTATE COMMIS CASH A/C,1042894,"70,701.47",
FCO,FCO,11-Apr-12,VAT (Input) (Oracle Sub-Ledger Control Account),NON CASH & UNALLOCATED COSTS,CROWN ESTATE COMMIS CASH A/C,1042894,"14,140.29",
FCO,FCO,20-Apr-12,Rental Payments - non residential,DG CHANGE & DELIVERY,DEKA IMMOBILIEN INVESTMENT GMBH,1017132,"319,979.90",
FCO,FCO,13-Apr-12,Temporary Staff (Admin and Clerical Only),DG CENTRAL GROUP,FUJITSU SERVICES LIMITED,1043147,"98,158.71",
FCO,FCO,13-Apr-12,Temporary Staff (Admin and Clerical Only),DG CENTRAL GROUP,FUJITSU SERVICES LIMITED,1043147,"51,412.68",
FCO,FCO,13-Apr-12,VAT (Input) (Oracle Sub-Ledger Control Account),NON CASH & UNALLOCATED COSTS,FUJITSU SERVICES LIMITED,1043147,"29,914.28",
FCO,FCO,13-Apr-12,VAT (Input) (Oracle Sub-Ledger Control Account),NON CASH & UNALLOCATED COSTS,FUJITSU SERVICES LIMITED,1043147,-0.01,
FCO,FCO,27-Apr-12,Rental Payments - non residential,DG CHANGE & DELIVERY,PLAZA TOWER LLC,40000008004,"177,498.47",
FCO,FCO,27-Apr-12,Electricity Non-Residential,DG POLITICAL,PLAZA TOWER LLC,40000008004,"3,200.64",
FCO,FCO,27-Apr-12,Water Non-Residential,DG POLITICAL,PLAZA TOWER LLC,40000008004,"10,039.38",
FCO,FCO,27-Apr-12,Miscellaneous Expenditure: inc subscriptions and equipment maintenance,DG POLITICAL,PLAZA TOWER LLC,40000008004,485.77,
FCO,FCO,23-Apr-12,Programme Spend (Oracle Projects Control Account),DG POLITICAL,THE LIVING HISTORY FORUM,1003495,"25,150.91",
FCO,FCO,05-Apr-12,Rental Payments - non residential,DG CHANGE & DELIVERY,LUCONEX SRL,1003197,"16,027.78",
FCO,FCO,05-Apr-12,Rental Payments - non residential,DG CHANGE & DELIVERY,LUCONEX SRL,1003197,"49,139.22",
FCO,FCO,05-Apr-12,Rental Payments - non residential,DG CHANGE & DELIVERY,LUCONEX SRL,1003197,543.02,
FCO,FCO,16-Apr-12,Rental Payments - non residential,DG CHANGE & DELIVERY,BRICKELL BAY TOWER LTD,40000007838,"25,825.94",
FCO,FCO,02-Apr-12,Telephone Call Charges,DG CENTRAL GROUP,GLOBAL CROSSING,1041576,"32,750.32",
FCO,FCO,02-Apr-12,Telephone Call Charges,DG CENTRAL GROUP,GLOBAL CROSSING,1041576,"6,550.06",
FCO,FCO,16-Apr-12,Telephone Call Charges,DG CENTRAL GROUP,GLOBAL CROSSING,1043296,"39,272.69",
FCO,FCO,16-Apr-12,Telephone Call Charges,DG CENTRAL GROUP,GLOBAL CROSSING,1043296,"7,854.54",
FCO,FCO,02-Apr-12,IT/IS Consultancy,DG CENTRAL GROUP,HEWLETT-PACKARD LTD,1041615,"177,793.91",
FCO,FCO,02-Apr-12,IT/IS Consultancy,DG CENTRAL GROUP,HEWLETT-PACKARD LTD,1041615,"35,558.78",
FCO,FCO,05-Apr-12,IT/IS Consultancy,DG CENTRAL GROUP,HEWLETT-PACKARD LTD,1042636,"24,780.00",
FCO,FCO,05-Apr-12,IT/IS Consultancy,DG CENTRAL GROUP,HEWLETT-PACKARD LTD,1042636,"91,750.72",
FCO,FCO,05-Apr-12,VAT (Input) (Oracle Sub-Ledger Control Account),NON CASH & UNALLOCATED COSTS,HEWLETT-PACKARD LTD,1042636,"18,350.14",
FCO,FCO,05-Apr-12,IT/IS Consultancy,DG CENTRAL GROUP,HEWLETT-PACKARD LTD,1042636,"-24,780.00",
FCO,FCO,05-Apr-12,IT/IS Consultancy,DG CENTRAL GROUP,HEWLETT-PACKARD LTD,1042636,"24,779.00",
FCO,FCO,05-Apr-12,IT/IS Consultancy,DG CENTRAL GROUP,HEWLETT-PACKARD LTD,1042636,"4,955.80",
FCO,FCO,23-Apr-12,IT/IS Consultancy,DG CENTRAL GROUP,HEWLETT-PACKARD LTD,1043799,"21,745.00",
FCO,FCO,23-Apr-12,IT/IS Consultancy,DG CENTRAL GROUP,HEWLETT-PACKARD LTD,1043799,"26,492.50",
FCO,FCO,23-Apr-12,IT/IS Consultancy,DG CENTRAL GROUP,HEWLETT-PACKARD LTD,1043799,"4,349.00",
FCO,FCO,23-Apr-12,IT/IS Consultancy,DG CENTRAL GROUP,HEWLETT-PACKARD LTD,1043799,"5,298.50",
FCO,FCO,30-Apr-12,Temporary Staff (Admin and Clerical Only),DG CENTRAL GROUP,HEWLETT-PACKARD LTD,1044276,"20,000.00",
FCO,FCO,30-Apr-12,IT/IS Consultancy,DG CENTRAL GROUP,HEWLETT-PACKARD LTD,1044276,"35,000.00",
FCO,FCO,30-Apr-12,VAT (Input) (Oracle Sub-Ledger Control Account),NON CASH & UNALLOCATED COSTS,HEWLETT-PACKARD LTD,1044276,"7,000.00",
FCO,FCO,30-Apr-12,IT/IS Consultancy,DG CENTRAL GROUP,HEWLETT-PACKARD LTD,1044276,"11,240.00",
FCO,FCO,30-Apr-12,Temporary Staff (Admin and Clerical Only),DG CENTRAL GROUP,HEWLETT-PACKARD LTD,1044276,"10,000.00",
FCO,FCO,30-Apr-12,VAT (Input) (Oracle Sub-Ledger Control Account),NON CASH & UNALLOCATED COSTS,HEWLETT-PACKARD LTD,1044276,"8,248.00",
FCO,FCO,25-Apr-12,Home Office Visa Fees: Post Collection-Payment In UK,DG CHANGE & DELIVERY,HOME OFFICE,4001757,"4,130.76",
FCO,FCO,25-Apr-12,Home Office Visa Fees: Post Collection-Payment In UK,DG CHANGE & DELIVERY,HOME OFFICE,4001757,756,
FCO,FCO,25-Apr-12,Home Office Visa Fees: Post Collection-Payment In UK,DG CHANGE & DELIVERY,HOME OFFICE,4001757,"1,156.02",
FCO,FCO,25-Apr-12,Home Office Visa Fees: Post Collection-Payment In UK,DG CHANGE & DELIVERY,HOME OFFICE,4001757,540,
FCO,FCO,25-Apr-12,Home Office Visa Fees: Post Collection-Payment In UK,DG CHANGE & DELIVERY,HOME OFFICE,4001757,"1,305.10",
FCO,FCO,25-Apr-12,Home Office Visa Fees: Post Collection-Payment In UK,DG CHANGE & DELIVERY,HOME OFFICE,4001757,"11,138.46",
FCO,FCO,25-Apr-12,Home Office Visa Fees: Post Collection-Payment In UK,DG CHANGE & DELIVERY,HOME OFFICE,4001757,604.45,
FCO,FCO,25-Apr-12,Home Office Visa Fees: Post Collection-Payment In UK,DG CHANGE & DELIVERY,HOME OFFICE,4001757,"21,602.68",
FCO,FCO,25-Apr-12,Home Office Visa Fees: Post Collection-Payment In UK,DG CHANGE & DELIVERY,HOME OFFICE,4001757,"2,248.72",
FCO,FCO,25-Apr-12,Home Office Visa Fees: Post Collection-Payment In UK,DG CHANGE & DELIVERY,HOME OFFICE,4001757,"3,813.95",
FCO,FCO,25-Apr-12,Home Office Visa Fees: Post Collection-Payment In UK,DG CHANGE & DELIVERY,HOME OFFICE,4001757,223.14,
FCO,FCO,25-Apr-12,Home Office Visa Fees: Post Collection-Payment In UK,DG CHANGE & DELIVERY,HOME OFFICE,4001757,540,
FCO,FCO,25-Apr-12,Home Office Visa Fees: Post Collection-Payment In UK,DG CHANGE & DELIVERY,HOME OFFICE,4001757,538.6,
FCO,FCO,25-Apr-12,Home Office Visa Fees: Post Collection-Payment In UK,DG CHANGE & DELIVERY,HOME OFFICE,4001757,"1,135.53",
FCO,FCO,25-Apr-12,Home Office Visa Fees: Post Collection-Payment In UK,DG CHANGE & DELIVERY,HOME OFFICE,4001757,"1,135.30",
FCO,FCO,25-Apr-12,Home Office Visa Fees: Post Collection-Payment In UK,DG CHANGE & DELIVERY,HOME OFFICE,4001757,540.01,
FCO,FCO,25-Apr-12,Home Office Visa Fees: Post Collection-Payment In UK,DG CHANGE & DELIVERY,HOME OFFICE,4001757,"3,018.53",
FCO,FCO,25-Apr-12,Home Office Visa Fees: Post Collection-Payment In UK,DG CHANGE & DELIVERY,HOME OFFICE,4001757,"15,058.36",
FCO,FCO,25-Apr-12,Home Office Visa Fees: Post Collection-Payment In UK,DG CHANGE & DELIVERY,HOME OFFICE,4001757,"9,811.33",
FCO,FCO,25-Apr-12,Home Office Visa Fees: Post Collection-Payment In UK,DG CHANGE & DELIVERY,HOME OFFICE,4001757,776.85,
FCO,FCO,25-Apr-12,Home Office Visa Fees: Post Collection-Payment In UK,DG CHANGE & DELIVERY,HOME OFFICE,4001757,"1,080.96",
FCO,FCO,25-Apr-12,Home Office Visa Fees: Post Collection-Payment In UK,DG CHANGE & DELIVERY,HOME OFFICE,4001757,"7,105.97",
FCO,FCO,25-Apr-12,Home Office Visa Fees: Post Collection-Payment In UK,DG CHANGE & DELIVERY,HOME OFFICE,4001757,"1,040.35",
FCO,FCO,25-Apr-12,Home Office Visa Fees: Post Collection-Payment In UK,DG CHANGE & DELIVERY,HOME OFFICE,4001757,466.43,
FCO,FCO,25-Apr-12,Programme Spend (Oracle Projects Control Account),DG DEFENCE AND INTELLIGENCE,HOME OFFICE,4001759,"40,626.51",
FCO,FCO,02-Apr-12,Construction Project more than 10k,#N/A,HITT CONTRACTING INC,40000007719,"40,760.20",
FCO,FCO,09-Apr-12,Construction Project more than 10k,#N/A,HITT CONTRACTING INC,40000007810,"35,991.42",
FCO,FCO,09-Apr-12,Construction Project more than 10k,#N/A,HITT CONTRACTING INC,40000007810,"68,714.28",
FCO,FCO,09-Apr-12,Construction Project more than 10k,#N/A,HITT CONTRACTING INC,40000007810,"29,266.29",
FCO,FCO,16-Apr-12,Construction Project more than 10k,#N/A,HITT CONTRACTING INC,40000007849,"63,087.50",
FCO,FCO,16-Apr-12,Construction Project more than 10k,#N/A,HITT CONTRACTING INC,40000007849,"21,965.18",
FCO,FCO,16-Apr-12,Construction Project more than 10k,#N/A,HITT CONTRACTING INC,40000007849,"126,175.00",
FCO,FCO,16-Apr-12,Construction Project more than 10k,#N/A,HITT CONTRACTING INC,40000007849,"10,094.00",
FCO,FCO,23-Apr-12,Construction Project more than 10k,#N/A,HITT CONTRACTING INC,40000007909,"10,756.42",
FCO,FCO,23-Apr-12,Construction Project more than 10k,#N/A,HITT CONTRACTING INC,40000007909,"77,379.98",
FCO,FCO,23-Apr-12,Construction Project more than 10k,#N/A,HITT CONTRACTING INC,40000007909,"18,926.25",
FCO,FCO,23-Apr-12,Construction Project more than 10k,#N/A,HITT CONTRACTING INC,40000007909,"50,470.00",
FCO,FCO,10-Apr-12,Building Mechanical and Engineering Services,DG CHANGE & DELIVERY,INTERSERVE FM LTD,11545,"3,548.68",
FCO,FCO,10-Apr-12,Building Mechanical and Engineering Services,DG CHANGE & DELIVERY,INTERSERVE FM LTD,11545,"2,604.95",
FCO,FCO,10-Apr-12,Building Fabric Services,DG CHANGE & DELIVERY,INTERSERVE FM LTD,11545,289.1,
FCO,FCO,10-Apr-12,Minor New Works <10K,DG CHANGE & DELIVERY,INTERSERVE FM LTD,11545,702.84,
FCO,FCO,10-Apr-12,Minor New Works <10K,DG CHANGE & DELIVERY,INTERSERVE FM LTD,11545,"1,010.60",
FCO,FCO,10-Apr-12,Grounds Maintenance,DG CHANGE & DELIVERY,INTERSERVE FM LTD,11545,509.17,
FCO,FCO,10-Apr-12,Grounds Maintenance,DG CHANGE & DELIVERY,INTERSERVE FM LTD,11545,258.9,
FCO,FCO,10-Apr-12,Cleaning & Waste,DG CHANGE & DELIVERY,INTERSERVE FM LTD,11545,"4,111.87",
FCO,FCO,10-Apr-12,Cleaning & Waste,DG CHANGE & DELIVERY,INTERSERVE FM LTD,11545,"11,379.75",
FCO,FCO,10-Apr-12,Cleaning & Waste,DG CHANGE & DELIVERY,INTERSERVE FM LTD,11545,405.57,
FCO,FCO,10-Apr-12,Cleaning & Waste,DG CHANGE & DELIVERY,INTERSERVE FM LTD,11545,370.46,
FCO,FCO,10-Apr-12,Miscellaneous Expenditure: inc subscriptions and equipment maintenance,DG CHANGE & DELIVERY,INTERSERVE FM LTD,11545,69.58,
FCO,FCO,10-Apr-12,Miscellaneous Expenditure: inc subscriptions and equipment maintenance,DG CHANGE & DELIVERY,INTERSERVE FM LTD,11545,128.52,
FCO,FCO,10-Apr-12,Waste Disposal,DG CHANGE & DELIVERY,INTERSERVE FM LTD,11545,384.53,
FCO,FCO,10-Apr-12,Waste Disposal,DG CHANGE & DELIVERY,INTERSERVE FM LTD,11545,289.47,
FCO,FCO,10-Apr-12,Reception Services,DG CHANGE & DELIVERY,INTERSERVE FM LTD,11545,"7,065.43",
FCO,FCO,10-Apr-12,Mail & Porterage Services,DG CHANGE & DELIVERY,INTERSERVE FM LTD,11545,"5,042.67",
FCO,FCO,10-Apr-12,Reception Services,DG CHANGE & DELIVERY,INTERSERVE FM LTD,11545,"7,730.48",
FCO,FCO,10-Apr-12,Office Support Services,DG CHANGE & DELIVERY,INTERSERVE FM LTD,11545,"1,766.35",
FCO,FCO,10-Apr-12,Mail & Porterage Services,DG CHANGE & DELIVERY,INTERSERVE FM LTD,11545,"6,057.28",
FCO,FCO,10-Apr-12,Residential Property Services,DG CHANGE & DELIVERY,INTERSERVE FM LTD,11545,"1,057.11",
FCO,FCO,10-Apr-12,Office Support Services,DG CHANGE & DELIVERY,INTERSERVE FM LTD,11545,"1,932.62",
FCO,FCO,10-Apr-12,Estates Management Services,DG CHANGE & DELIVERY,INTERSERVE FM LTD,11545,167.4,
FCO,FCO,10-Apr-12,Rematching / Reinstatement,DG CHANGE & DELIVERY,INTERSERVE FM LTD,11545,747.45,
FCO,FCO,10-Apr-12,Contract Fees,DG CHANGE & DELIVERY,INTERSERVE FM LTD,11545,"5,466.31",
FCO,FCO,10-Apr-12,Residential Property Services,DG CHANGE & DELIVERY,INTERSERVE FM LTD,11545,"13,042.40",
FCO,FCO,10-Apr-12,Rematching / Reinstatement,DG CHANGE & DELIVERY,INTERSERVE FM LTD,11545,197.66,
FCO,FCO,10-Apr-12,Contract Fees,DG CHANGE & DELIVERY,INTERSERVE FM LTD,11545,"6,822.28",
FCO,FCO,10-Apr-12,Building Mechanical and Engineering Services,DG CHANGE & DELIVERY,INTERSERVE FM LTD,11547,"4,248.64",
FCO,FCO,10-Apr-12,Building Fabric Services,DG CHANGE & DELIVERY,INTERSERVE FM LTD,11547,144.02,
FCO,FCO,10-Apr-12,Minor New Works <10K,DG CHANGE & DELIVERY,INTERSERVE FM LTD,11547,"1,316.68",
FCO,FCO,10-Apr-12,Grounds Maintenance,DG CHANGE & DELIVERY,INTERSERVE FM LTD,11547,19.11,
FCO,FCO,10-Apr-12,Cleaning & Waste,DG CHANGE & DELIVERY,INTERSERVE FM LTD,11547,"4,349.73",
FCO,FCO,10-Apr-12,Cleaning & Waste,DG CHANGE & DELIVERY,INTERSERVE FM LTD,11547,188.81,
FCO,FCO,10-Apr-12,Miscellaneous Expenditure: inc subscriptions and equipment maintenance,DG CHANGE & DELIVERY,INTERSERVE FM LTD,11547,155.95,
FCO,FCO,10-Apr-12,Waste Disposal,DG CHANGE & DELIVERY,INTERSERVE FM LTD,11547,147.24,
FCO,FCO,10-Apr-12,Reception Services,DG CHANGE & DELIVERY,INTERSERVE FM LTD,11547,"1,896.45",
FCO,FCO,10-Apr-12,Mail & Porterage Services,DG CHANGE & DELIVERY,INTERSERVE FM LTD,11547,"2,443.84",
FCO,FCO,10-Apr-12,Office Support Services,DG CHANGE & DELIVERY,INTERSERVE FM LTD,11547,474.11,
FCO,FCO,10-Apr-12,Estates Management Services,DG CHANGE & DELIVERY,INTERSERVE FM LTD,11547,326.94,
FCO,FCO,10-Apr-12,Residential Property Services,DG CHANGE & DELIVERY,INTERSERVE FM LTD,11547,"4,396.49",
FCO,FCO,10-Apr-12,Contract Fees,DG CHANGE & DELIVERY,INTERSERVE FM LTD,11547,"4,835.12",
FCO,FCO,10-Apr-12,Contract Fees,DG CHANGE & DELIVERY,INTERSERVE FM LTD,11547,186.45,
FCO,FCO,10-Apr-12,FM Interserve Overseas Reclaimable Tax,DG CHANGE & DELIVERY,INTERSERVE FM LTD,11547,977.19,
FCO,FCO,10-Apr-12,FM Interserve Overseas Reclaimable Tax,DG CHANGE & DELIVERY,INTERSERVE FM LTD,11547,33.12,
FCO,FCO,10-Apr-12,FM Interserve Overseas Reclaimable Tax,DG CHANGE & DELIVERY,INTERSERVE FM LTD,11547,302.84,
FCO,FCO,10-Apr-12,FM Interserve Overseas Reclaimable Tax,DG CHANGE & DELIVERY,INTERSERVE FM LTD,11547,4.4,
FCO,FCO,10-Apr-12,FM Interserve Overseas Reclaimable Tax,DG CHANGE & DELIVERY,INTERSERVE FM LTD,11547,"1,000.44",
FCO,FCO,10-Apr-12,FM Interserve Overseas Reclaimable Tax,DG CHANGE & DELIVERY,INTERSERVE FM LTD,11547,43.43,
FCO,FCO,10-Apr-12,FM Interserve Overseas Reclaimable Tax,DG CHANGE & DELIVERY,INTERSERVE FM LTD,11547,35.87,
FCO,FCO,10-Apr-12,FM Interserve Overseas Reclaimable Tax,DG CHANGE & DELIVERY,INTERSERVE FM LTD,11547,33.86,
FCO,FCO,10-Apr-12,FM Interserve Overseas Reclaimable Tax,DG CHANGE & DELIVERY,INTERSERVE FM LTD,11547,436.18,
FCO,FCO,10-Apr-12,FM Interserve Overseas Reclaimable Tax,DG CHANGE & DELIVERY,INTERSERVE FM LTD,11547,562.08,
FCO,FCO,10-Apr-12,FM Interserve Overseas Reclaimable Tax,DG CHANGE & DELIVERY,INTERSERVE FM LTD,11547,109.05,
FCO,FCO,10-Apr-12,FM Interserve Overseas Reclaimable Tax,DG CHANGE & DELIVERY,INTERSERVE FM LTD,11547,75.2,
FCO,FCO,10-Apr-12,FM Interserve Overseas Reclaimable Tax,DG CHANGE & DELIVERY,INTERSERVE FM LTD,11547,"1,011.19",
FCO,FCO,10-Apr-12,FM Interserve Overseas Reclaimable Tax,DG CHANGE & DELIVERY,INTERSERVE FM LTD,11547,"1,112.08",
FCO,FCO,10-Apr-12,FM Interserve Overseas Reclaimable Tax,DG CHANGE & DELIVERY,INTERSERVE FM LTD,11547,42.88,
FCO,FCO,16-Apr-12,Building Mechanical and Engineering Services,DG CHANGE & DELIVERY,INTERSERVE FM LTD,11573,"2,604.95",
FCO,FCO,16-Apr-12,Building Mechanical and Engineering Services,DG CHANGE & DELIVERY,INTERSERVE FM LTD,11573,"3,548.68",
FCO,FCO,16-Apr-12,Minor New Works <10K,DG CHANGE & DELIVERY,INTERSERVE FM LTD,11573,702.84,
FCO,FCO,16-Apr-12,Building Fabric Services,DG CHANGE & DELIVERY,INTERSERVE FM LTD,11573,289.1,
FCO,FCO,16-Apr-12,Minor New Works <10K,DG CHANGE & DELIVERY,INTERSERVE FM LTD,11573,"1,010.60",
FCO,FCO,16-Apr-12,Grounds Maintenance,DG CHANGE & DELIVERY,INTERSERVE FM LTD,11573,509.17,
FCO,FCO,16-Apr-12,Cleaning & Waste,DG CHANGE & DELIVERY,INTERSERVE FM LTD,11573,"4,111.87",
FCO,FCO,16-Apr-12,Grounds Maintenance,DG CHANGE & DELIVERY,INTERSERVE FM LTD,11573,258.9,
FCO,FCO,16-Apr-12,Cleaning & Waste,DG CHANGE & DELIVERY,INTERSERVE FM LTD,11573,405.57,
FCO,FCO,16-Apr-12,Cleaning & Waste,DG CHANGE & DELIVERY,INTERSERVE FM LTD,11573,"11,379.75",
FCO,FCO,16-Apr-12,Cleaning & Waste,DG CHANGE & DELIVERY,INTERSERVE FM LTD,11573,370.46,
FCO,FCO,16-Apr-12,Miscellaneous Expenditure: inc subscriptions and equipment maintenance,DG CHANGE & DELIVERY,INTERSERVE FM LTD,11573,69.58,
FCO,FCO,16-Apr-12,Miscellaneous Expenditure: inc subscriptions and equipment maintenance,DG CHANGE & DELIVERY,INTERSERVE FM LTD,11573,128.52,
FCO,FCO,16-Apr-12,Waste Disposal,DG CHANGE & DELIVERY,INTERSERVE FM LTD,11573,384.53,
FCO,FCO,16-Apr-12,Waste Disposal,DG CHANGE & DELIVERY,INTERSERVE FM LTD,11573,289.47,
FCO,FCO,16-Apr-12,Reception Services,DG CHANGE & DELIVERY,INTERSERVE FM LTD,11573,"7,065.43",
FCO,FCO,16-Apr-12,Mail & Porterage Services,DG CHANGE & DELIVERY,INTERSERVE FM LTD,11573,"5,042.67",
FCO,FCO,16-Apr-12,Reception Services,DG CHANGE & DELIVERY,INTERSERVE FM LTD,11573,"7,730.48",
FCO,FCO,16-Apr-12,Office Support Services,DG CHANGE & DELIVERY,INTERSERVE FM LTD,11573,"1,766.35",
FCO,FCO,16-Apr-12,Mail & Porterage Services,DG CHANGE & DELIVERY,INTERSERVE FM LTD,11573,"6,057.28",
FCO,FCO,16-Apr-12,Residential Property Services,DG CHANGE & DELIVERY,INTERSERVE FM LTD,11573,"1,057.11",
FCO,FCO,16-Apr-12,Office Support Services,DG CHANGE & DELIVERY,INTERSERVE FM LTD,11573,"1,932.62",
FCO,FCO,16-Apr-12,Rematching / Reinstatement,DG CHANGE & DELIVERY,INTERSERVE FM LTD,11573,747.45,
FCO,FCO,16-Apr-12,Estates Management Services,DG CHANGE & DELIVERY,INTERSERVE FM LTD,11573,167.4,
FCO,FCO,16-Apr-12,Contract Fees,DG CHANGE & DELIVERY,INTERSERVE FM LTD,11573,"5,466.31",
FCO,FCO,16-Apr-12,Residential Property Services,DG CHANGE & DELIVERY,INTERSERVE FM LTD,11573,"13,042.40",
FCO,FCO,16-Apr-12,Rematching / Reinstatement,DG CHANGE & DELIVERY,INTERSERVE FM LTD,11573,197.66,
FCO,FCO,16-Apr-12,Contract Fees,DG CHANGE & DELIVERY,INTERSERVE FM LTD,11573,"6,822.28",
FCO,FCO,16-Apr-12,Building Mechanical and Engineering Services,DG CHANGE & DELIVERY,INTERSERVE FM LTD,11577,"4,248.64",
FCO,FCO,16-Apr-12,Building Fabric Services,DG CHANGE & DELIVERY,INTERSERVE FM LTD,11577,144.02,
FCO,FCO,16-Apr-12,Minor New Works <10K,DG CHANGE & DELIVERY,INTERSERVE FM LTD,11577,"1,316.68",
FCO,FCO,16-Apr-12,Grounds Maintenance,DG CHANGE & DELIVERY,INTERSERVE FM LTD,11577,19.11,
FCO,FCO,16-Apr-12,Cleaning & Waste,DG CHANGE & DELIVERY,INTERSERVE FM LTD,11577,"4,349.73",
FCO,FCO,16-Apr-12,Cleaning & Waste,DG CHANGE & DELIVERY,INTERSERVE FM LTD,11577,188.81,
FCO,FCO,16-Apr-12,Miscellaneous Expenditure: inc subscriptions and equipment maintenance,DG CHANGE & DELIVERY,INTERSERVE FM LTD,11577,155.95,
FCO,FCO,16-Apr-12,Waste Disposal,DG CHANGE & DELIVERY,INTERSERVE FM LTD,11577,147.24,
FCO,FCO,16-Apr-12,Reception Services,DG CHANGE & DELIVERY,INTERSERVE FM LTD,11577,"1,896.45",
FCO,FCO,16-Apr-12,Mail & Porterage Services,DG CHANGE & DELIVERY,INTERSERVE FM LTD,11577,"2,443.84",
FCO,FCO,16-Apr-12,Office Support Services,DG CHANGE & DELIVERY,INTERSERVE FM LTD,11577,474.11,
FCO,FCO,16-Apr-12,Estates Management Services,DG CHANGE & DELIVERY,INTERSERVE FM LTD,11577,326.94,
FCO,FCO,16-Apr-12,Residential Property Services,DG CHANGE & DELIVERY,INTERSERVE FM LTD,11577,"4,396.49",
FCO,FCO,16-Apr-12,Contract Fees,DG CHANGE & DELIVERY,INTERSERVE FM LTD,11577,"4,835.12",
FCO,FCO,16-Apr-12,Contract Fees,DG CHANGE & DELIVERY,INTERSERVE FM LTD,11577,186.45,
FCO,FCO,16-Apr-12,FM Interserve Overseas Reclaimable Tax,DG CHANGE & DELIVERY,INTERSERVE FM LTD,11577,977.19,
FCO,FCO,16-Apr-12,FM Interserve Overseas Reclaimable Tax,DG CHANGE & DELIVERY,INTERSERVE FM LTD,11577,33.12,
FCO,FCO,16-Apr-12,FM Interserve Overseas Reclaimable Tax,DG CHANGE & DELIVERY,INTERSERVE FM LTD,11577,302.84,
FCO,FCO,16-Apr-12,FM Interserve Overseas Reclaimable Tax,DG CHANGE & DELIVERY,INTERSERVE FM LTD,11577,4.4,
FCO,FCO,16-Apr-12,FM Interserve Overseas Reclaimable Tax,DG CHANGE & DELIVERY,INTERSERVE FM LTD,11577,"1,000.44",
FCO,FCO,16-Apr-12,FM Interserve Overseas Reclaimable Tax,DG CHANGE & DELIVERY,INTERSERVE FM LTD,11577,43.43,
FCO,FCO,16-Apr-12,FM Interserve Overseas Reclaimable Tax,DG CHANGE & DELIVERY,INTERSERVE FM LTD,11577,35.87,
FCO,FCO,16-Apr-12,FM Interserve Overseas Reclaimable Tax,DG CHANGE & DELIVERY,INTERSERVE FM LTD,11577,33.86,
FCO,FCO,16-Apr-12,FM Interserve Overseas Reclaimable Tax,DG CHANGE & DELIVERY,INTERSERVE FM LTD,11577,436.18,
FCO,FCO,16-Apr-12,FM Interserve Overseas Reclaimable Tax,DG CHANGE & DELIVERY,INTERSERVE FM LTD,11577,562.08,
FCO,FCO,16-Apr-12,FM Interserve Overseas Reclaimable Tax,DG CHANGE & DELIVERY,INTERSERVE FM LTD,11577,109.05,
FCO,FCO,16-Apr-12,FM Interserve Overseas Reclaimable Tax,DG CHANGE & DELIVERY,INTERSERVE FM LTD,11577,75.2,
FCO,FCO,16-Apr-12,FM Interserve Overseas Reclaimable Tax,DG CHANGE & DELIVERY,INTERSERVE FM LTD,11577,"1,011.19",
FCO,FCO,16-Apr-12,FM Interserve Overseas Reclaimable Tax,DG CHANGE & DELIVERY,INTERSERVE FM LTD,11577,"1,112.08",
FCO,FCO,16-Apr-12,FM Interserve Overseas Reclaimable Tax,DG CHANGE & DELIVERY,INTERSERVE FM LTD,11577,42.88,
FCO,FCO,23-Apr-12,Construction Project more than 10k,DG CHANGE & DELIVERY,INTERSERVE FM LTD,11622,"126,147.88",
FCO,FCO,10-Apr-12,Building Mechanical and Engineering Services,DG CHANGE & DELIVERY,INTERSERVE FM LTD,1003429,"6,686.30",
FCO,FCO,10-Apr-12,Building Mechanical and Engineering Services,DG CHANGE & DELIVERY,INTERSERVE FM LTD,1003429,"2,306.51",
FCO,FCO,10-Apr-12,Minor New Works <10K,DG CHANGE & DELIVERY,INTERSERVE FM LTD,1003429,524.2,
FCO,FCO,10-Apr-12,Minor New Works <10K,DG CHANGE & DELIVERY,INTERSERVE FM LTD,1003429,"1,116.77",
FCO,FCO,10-Apr-12,Grounds Maintenance,DG CHANGE & DELIVERY,INTERSERVE FM LTD,1003429,362.43,
FCO,FCO,10-Apr-12,Grounds Maintenance,DG CHANGE & DELIVERY,INTERSERVE FM LTD,1003429,"1,024.29",
FCO,FCO,10-Apr-12,Cleaning & Waste,DG CHANGE & DELIVERY,INTERSERVE FM LTD,1003429,"5,309.53",
FCO,FCO,10-Apr-12,Cleaning & Waste,DG CHANGE & DELIVERY,INTERSERVE FM LTD,1003429,"2,962.13",
FCO,FCO,10-Apr-12,Cleaning & Waste,DG CHANGE & DELIVERY,INTERSERVE FM LTD,1003429,221.72,
FCO,FCO,10-Apr-12,Cleaning & Waste,DG CHANGE & DELIVERY,INTERSERVE FM LTD,1003429,419.79,
FCO,FCO,10-Apr-12,Miscellaneous Expenditure: inc subscriptions and equipment maintenance,DG CHANGE & DELIVERY,INTERSERVE FM LTD,1003429,462.73,
FCO,FCO,10-Apr-12,Miscellaneous Expenditure: inc subscriptions and equipment maintenance,DG CHANGE & DELIVERY,INTERSERVE FM LTD,1003429,414.7,
FCO,FCO,10-Apr-12,Waste Disposal,DG CHANGE & DELIVERY,INTERSERVE FM LTD,1003429,496.08,
FCO,FCO,10-Apr-12,Waste Disposal,DG CHANGE & DELIVERY,INTERSERVE FM LTD,1003429,155,
FCO,FCO,10-Apr-12,Reception Services,DG CHANGE & DELIVERY,INTERSERVE FM LTD,1003429,"4,228.29",
FCO,FCO,10-Apr-12,Reception Services,DG CHANGE & DELIVERY,INTERSERVE FM LTD,1003429,"3,338.77",
FCO,FCO,10-Apr-12,Mail & Porterage Services,DG CHANGE & DELIVERY,INTERSERVE FM LTD,1003429,"2,307.49",
FCO,FCO,10-Apr-12,Mail & Porterage Services,DG CHANGE & DELIVERY,INTERSERVE FM LTD,1003429,"4,121.67",
FCO,FCO,10-Apr-12,Office Support Services,DG CHANGE & DELIVERY,INTERSERVE FM LTD,1003429,834.69,
FCO,FCO,10-Apr-12,Office Support Services,DG CHANGE & DELIVERY,INTERSERVE FM LTD,1003429,"1,057.07",
FCO,FCO,10-Apr-12,Estates Management Services,DG CHANGE & DELIVERY,INTERSERVE FM LTD,1003429,131.93,
FCO,FCO,10-Apr-12,Estates Management Services,DG CHANGE & DELIVERY,INTERSERVE FM LTD,1003429,253.35,
FCO,FCO,10-Apr-12,Residential Property Services,DG CHANGE & DELIVERY,INTERSERVE FM LTD,1003429,"6,696.05",
FCO,FCO,10-Apr-12,Residential Property Services,DG CHANGE & DELIVERY,INTERSERVE FM LTD,1003429,"10,800.24",
FCO,FCO,10-Apr-12,Rematching / Reinstatement,DG CHANGE & DELIVERY,INTERSERVE FM LTD,1003429,"3,134.81",
FCO,FCO,10-Apr-12,Contract Fees,DG CHANGE & DELIVERY,INTERSERVE FM LTD,1003429,"9,124.75",
FCO,FCO,10-Apr-12,Contract Fees,DG CHANGE & DELIVERY,INTERSERVE FM LTD,1003429,"4,102.31",
FCO,FCO,10-Apr-12,FM Interserve Overseas Reclaimable Tax,DG CHANGE & DELIVERY,INTERSERVE FM LTD,1003429,"1,337.26",
FCO,FCO,10-Apr-12,FM Interserve Overseas Reclaimable Tax,DG CHANGE & DELIVERY,INTERSERVE FM LTD,1003429,223.36,
FCO,FCO,10-Apr-12,FM Interserve Overseas Reclaimable Tax,DG CHANGE & DELIVERY,INTERSERVE FM LTD,1003429,438.24,
FCO,FCO,10-Apr-12,FM Interserve Overseas Reclaimable Tax,DG CHANGE & DELIVERY,INTERSERVE FM LTD,1003429,204.85,
FCO,FCO,10-Apr-12,FM Interserve Overseas Reclaimable Tax,DG CHANGE & DELIVERY,INTERSERVE FM LTD,1003429,99.6,
FCO,FCO,10-Apr-12,FM Interserve Overseas Reclaimable Tax,DG CHANGE & DELIVERY,INTERSERVE FM LTD,1003429,68.86,
FCO,FCO,10-Apr-12,FM Interserve Overseas Reclaimable Tax,DG CHANGE & DELIVERY,INTERSERVE FM LTD,1003429,"1,061.90",
FCO,FCO,10-Apr-12,FM Interserve Overseas Reclaimable Tax,DG CHANGE & DELIVERY,INTERSERVE FM LTD,1003429,562.8,
FCO,FCO,10-Apr-12,FM Interserve Overseas Reclaimable Tax,DG CHANGE & DELIVERY,INTERSERVE FM LTD,1003429,83.95,
FCO,FCO,10-Apr-12,FM Interserve Overseas Reclaimable Tax,DG CHANGE & DELIVERY,INTERSERVE FM LTD,1003429,82.94,
FCO,FCO,10-Apr-12,FM Interserve Overseas Reclaimable Tax,DG CHANGE & DELIVERY,INTERSERVE FM LTD,1003429,42.13,
FCO,FCO,10-Apr-12,FM Interserve Overseas Reclaimable Tax,DG CHANGE & DELIVERY,INTERSERVE FM LTD,1003429,87.92,
FCO,FCO,10-Apr-12,FM Interserve Overseas Reclaimable Tax,DG CHANGE & DELIVERY,INTERSERVE FM LTD,1003429,99.21,
FCO,FCO,10-Apr-12,FM Interserve Overseas Reclaimable Tax,DG CHANGE & DELIVERY,INTERSERVE FM LTD,1003429,29.45,
FCO,FCO,10-Apr-12,FM Interserve Overseas Reclaimable Tax,DG CHANGE & DELIVERY,INTERSERVE FM LTD,1003429,667.76,
FCO,FCO,10-Apr-12,FM Interserve Overseas Reclaimable Tax,DG CHANGE & DELIVERY,INTERSERVE FM LTD,1003429,803.38,
FCO,FCO,10-Apr-12,FM Interserve Overseas Reclaimable Tax,DG CHANGE & DELIVERY,INTERSERVE FM LTD,1003429,824.34,
FCO,FCO,10-Apr-12,FM Interserve Overseas Reclaimable Tax,DG CHANGE & DELIVERY,INTERSERVE FM LTD,1003429,166.93,
FCO,FCO,10-Apr-12,FM Interserve Overseas Reclaimable Tax,DG CHANGE & DELIVERY,INTERSERVE FM LTD,1003429,438.42,
FCO,FCO,10-Apr-12,FM Interserve Overseas Reclaimable Tax,DG CHANGE & DELIVERY,INTERSERVE FM LTD,1003429,50.67,
FCO,FCO,10-Apr-12,FM Interserve Overseas Reclaimable Tax,DG CHANGE & DELIVERY,INTERSERVE FM LTD,1003429,200.85,
FCO,FCO,10-Apr-12,FM Interserve Overseas Reclaimable Tax,DG CHANGE & DELIVERY,INTERSERVE FM LTD,1003429,25.07,
FCO,FCO,10-Apr-12,FM Interserve Overseas Reclaimable Tax,DG CHANGE & DELIVERY,INTERSERVE FM LTD,1003429,"2,160.05",
FCO,FCO,10-Apr-12,FM Interserve Overseas Reclaimable Tax,DG CHANGE & DELIVERY,INTERSERVE FM LTD,1003429,"1,272.25",
FCO,FCO,10-Apr-12,FM Interserve Overseas Reclaimable Tax,DG CHANGE & DELIVERY,INTERSERVE FM LTD,1003429,"1,824.95",
FCO,FCO,10-Apr-12,FM Interserve Overseas Reclaimable Tax,DG CHANGE & DELIVERY,INTERSERVE FM LTD,1003429,595.62,
FCO,FCO,10-Apr-12,FM Interserve Overseas Reclaimable Tax,DG CHANGE & DELIVERY,INTERSERVE FM LTD,1003429,779.43,
FCO,FCO,16-Apr-12,Building Mechanical and Engineering Services,DG CHANGE & DELIVERY,INTERSERVE FM LTD,1003458,"4,229.86",
FCO,FCO,16-Apr-12,Building Mechanical and Engineering Services,DG CHANGE & DELIVERY,INTERSERVE FM LTD,1003458,"3,949.61",
FCO,FCO,16-Apr-12,Building Mechanical and Engineering Services,DG CHANGE & DELIVERY,INTERSERVE FM LTD,1003458,"3,949.61",
FCO,FCO,16-Apr-12,Building Mechanical and Engineering Services,DG CHANGE & DELIVERY,INTERSERVE FM LTD,1003458,"8,224.36",
FCO,FCO,16-Apr-12,Building Mechanical and Engineering Services,DG CHANGE & DELIVERY,INTERSERVE FM LTD,1003458,"6,686.30",
FCO,FCO,16-Apr-12,Building Mechanical and Engineering Services,DG CHANGE & DELIVERY,INTERSERVE FM LTD,1003458,"8,224.36",
FCO,FCO,16-Apr-12,Building Mechanical and Engineering Services,DG CHANGE & DELIVERY,INTERSERVE FM LTD,1003458,"2,306.51",
FCO,FCO,16-Apr-12,Building Mechanical and Engineering Services,DG CHANGE & DELIVERY,INTERSERVE FM LTD,1003458,"4,229.86",
FCO,FCO,16-Apr-12,Minor New Works <10K,DG CHANGE & DELIVERY,INTERSERVE FM LTD,1003458,"3,414.72",
FCO,FCO,16-Apr-12,Minor New Works <10K,DG CHANGE & DELIVERY,INTERSERVE FM LTD,1003458,"3,414.72",
FCO,FCO,16-Apr-12,Minor New Works <10K,DG CHANGE & DELIVERY,INTERSERVE FM LTD,1003458,524.2,
FCO,FCO,16-Apr-12,Minor New Works <10K,DG CHANGE & DELIVERY,INTERSERVE FM LTD,1003458,"2,856.99",
FCO,FCO,16-Apr-12,Minor New Works <10K,DG CHANGE & DELIVERY,INTERSERVE FM LTD,1003458,"2,439.09",
FCO,FCO,16-Apr-12,Minor New Works <10K,DG CHANGE & DELIVERY,INTERSERVE FM LTD,1003458,"2,856.99",
FCO,FCO,16-Apr-12,Minor New Works <10K,DG CHANGE & DELIVERY,INTERSERVE FM LTD,1003458,"2,439.09",
FCO,FCO,16-Apr-12,Minor New Works <10K,DG CHANGE & DELIVERY,INTERSERVE FM LTD,1003458,"1,116.77",
FCO,FCO,16-Apr-12,Cleaning & Waste,DG CHANGE & DELIVERY,INTERSERVE FM LTD,1003458,366.96,
FCO,FCO,16-Apr-12,Cleaning & Waste,DG CHANGE & DELIVERY,INTERSERVE FM LTD,1003458,"13,055.94",
FCO,FCO,16-Apr-12,Grounds Maintenance,DG CHANGE & DELIVERY,INTERSERVE FM LTD,1003458,362.43,
FCO,FCO,16-Apr-12,Grounds Maintenance,DG CHANGE & DELIVERY,INTERSERVE FM LTD,1003458,182.97,
FCO,FCO,16-Apr-12,Grounds Maintenance,DG CHANGE & DELIVERY,INTERSERVE FM LTD,1003458,182.97,
FCO,FCO,16-Apr-12,Cleaning & Waste,DG CHANGE & DELIVERY,INTERSERVE FM LTD,1003458,"13,055.94",
FCO,FCO,16-Apr-12,Grounds Maintenance,DG CHANGE & DELIVERY,INTERSERVE FM LTD,1003458,"1,024.29",
FCO,FCO,16-Apr-12,Cleaning & Waste,DG CHANGE & DELIVERY,INTERSERVE FM LTD,1003458,366.96,
FCO,FCO,16-Apr-12,Miscellaneous Expenditure: inc subscriptions and equipment maintenance,DG CHANGE & DELIVERY,INTERSERVE FM LTD,1003458,10.96,
FCO,FCO,16-Apr-12,Cleaning & Waste,DG CHANGE & DELIVERY,INTERSERVE FM LTD,1003458,76.5,
FCO,FCO,16-Apr-12,Cleaning & Waste,DG CHANGE & DELIVERY,INTERSERVE FM LTD,1003458,"2,962.13",
FCO,FCO,16-Apr-12,Cleaning & Waste,DG CHANGE & DELIVERY,INTERSERVE FM LTD,1003458,"10,769.83",
FCO,FCO,16-Apr-12,Cleaning & Waste,DG CHANGE & DELIVERY,INTERSERVE FM LTD,1003458,76.5,
FCO,FCO,16-Apr-12,Cleaning & Waste,DG CHANGE & DELIVERY,INTERSERVE FM LTD,1003458,"10,769.83",
FCO,FCO,16-Apr-12,Cleaning & Waste,DG CHANGE & DELIVERY,INTERSERVE FM LTD,1003458,"5,309.53",
FCO,FCO,16-Apr-12,Miscellaneous Expenditure: inc subscriptions and equipment maintenance,DG CHANGE & DELIVERY,INTERSERVE FM LTD,1003458,10.96,
FCO,FCO,16-Apr-12,Miscellaneous Expenditure: inc subscriptions and equipment maintenance,DG CHANGE & DELIVERY,INTERSERVE FM LTD,1003458,103.16,
FCO,FCO,16-Apr-12,Miscellaneous Expenditure: inc subscriptions and equipment maintenance,DG CHANGE & DELIVERY,INTERSERVE FM LTD,1003458,116.99,
FCO,FCO,16-Apr-12,Cleaning & Waste,DG CHANGE & DELIVERY,INTERSERVE FM LTD,1003458,419.79,
FCO,FCO,16-Apr-12,Cleaning & Waste,DG CHANGE & DELIVERY,INTERSERVE FM LTD,1003458,221.72,
FCO,FCO,16-Apr-12,Mail & Porterage Services,DG CHANGE & DELIVERY,INTERSERVE FM LTD,1003458,647.18,
FCO,FCO,16-Apr-12,Miscellaneous Expenditure: inc subscriptions and equipment maintenance,DG CHANGE & DELIVERY,INTERSERVE FM LTD,1003458,116.99,
FCO,FCO,16-Apr-12,Miscellaneous Expenditure: inc subscriptions and equipment maintenance,DG CHANGE & DELIVERY,INTERSERVE FM LTD,1003458,103.16,
FCO,FCO,16-Apr-12,Mail & Porterage Services,DG CHANGE & DELIVERY,INTERSERVE FM LTD,1003458,647.18,
FCO,FCO,16-Apr-12,Miscellaneous Expenditure: inc subscriptions and equipment maintenance,DG CHANGE & DELIVERY,INTERSERVE FM LTD,1003458,462.73,
FCO,FCO,16-Apr-12,Waste Disposal,DG CHANGE & DELIVERY,INTERSERVE FM LTD,1003458,17.61,
FCO,FCO,16-Apr-12,Rematching / Reinstatement,DG CHANGE & DELIVERY,INTERSERVE FM LTD,1003458,"1,151.04",
FCO,FCO,16-Apr-12,Waste Disposal,DG CHANGE & DELIVERY,INTERSERVE FM LTD,1003458,17.61,
FCO,FCO,16-Apr-12,Waste Disposal,DG CHANGE & DELIVERY,INTERSERVE FM LTD,1003458,17.61,
FCO,FCO,16-Apr-12,Rematching / Reinstatement,DG CHANGE & DELIVERY,INTERSERVE FM LTD,1003458,"1,151.04",
FCO,FCO,16-Apr-12,Waste Disposal,DG CHANGE & DELIVERY,INTERSERVE FM LTD,1003458,17.61,
FCO,FCO,16-Apr-12,Miscellaneous Expenditure: inc subscriptions and equipment maintenance,DG CHANGE & DELIVERY,INTERSERVE FM LTD,1003458,414.7,
FCO,FCO,16-Apr-12,Reception Services,DG CHANGE & DELIVERY,INTERSERVE FM LTD,1003458,"5,268.04",
FCO,FCO,16-Apr-12,Office Support Services,DG CHANGE & DELIVERY,INTERSERVE FM LTD,1003458,81.87,
FCO,FCO,16-Apr-12,Waste Disposal,DG CHANGE & DELIVERY,INTERSERVE FM LTD,1003458,155,
FCO,FCO,16-Apr-12,Office Support Services,DG CHANGE & DELIVERY,INTERSERVE FM LTD,1003458,81.87,
FCO,FCO,16-Apr-12,Waste Disposal,DG CHANGE & DELIVERY,INTERSERVE FM LTD,1003458,496.08,
FCO,FCO,16-Apr-12,Reception Services,DG CHANGE & DELIVERY,INTERSERVE FM LTD,1003458,"5,268.04",
FCO,FCO,16-Apr-12,Residential Property Services,DG CHANGE & DELIVERY,INTERSERVE FM LTD,1003458,"34,329.49",
FCO,FCO,16-Apr-12,Mail & Porterage Services,DG CHANGE & DELIVERY,INTERSERVE FM LTD,1003458,"3,190.01",
FCO,FCO,16-Apr-12,Residential Property Services,DG CHANGE & DELIVERY,INTERSERVE FM LTD,1003458,"34,329.49",
FCO,FCO,16-Apr-12,Mail & Porterage Services,DG CHANGE & DELIVERY,INTERSERVE FM LTD,1003458,"3,190.01",
FCO,FCO,16-Apr-12,Reception Services,DG CHANGE & DELIVERY,INTERSERVE FM LTD,1003458,"4,228.29",
FCO,FCO,16-Apr-12,Reception Services,DG CHANGE & DELIVERY,INTERSERVE FM LTD,1003458,"3,338.77",
FCO,FCO,16-Apr-12,Mail & Porterage Services,DG CHANGE & DELIVERY,INTERSERVE FM LTD,1003458,"2,307.49",
FCO,FCO,16-Apr-12,Mail & Porterage Services,DG CHANGE & DELIVERY,INTERSERVE FM LTD,1003458,"4,121.67",
FCO,FCO,16-Apr-12,Office Support Services,DG CHANGE & DELIVERY,INTERSERVE FM LTD,1003458,"1,292.76",
FCO,FCO,16-Apr-12,Office Support Services,DG CHANGE & DELIVERY,INTERSERVE FM LTD,1003458,"1,292.76",
FCO,FCO,16-Apr-12,Rematching / Reinstatement,DG CHANGE & DELIVERY,INTERSERVE FM LTD,1003458,"4,900.95",
FCO,FCO,16-Apr-12,Rematching / Reinstatement,DG CHANGE & DELIVERY,INTERSERVE FM LTD,1003458,"4,900.95",
FCO,FCO,16-Apr-12,Contract Fees,DG CHANGE & DELIVERY,INTERSERVE FM LTD,1003458,"7,615.59",
FCO,FCO,16-Apr-12,Office Support Services,DG CHANGE & DELIVERY,INTERSERVE FM LTD,1003458,"1,057.07",
FCO,FCO,16-Apr-12,Rematching / Reinstatement,DG CHANGE & DELIVERY,INTERSERVE FM LTD,1003458,608.11,
FCO,FCO,16-Apr-12,Rematching / Reinstatement,DG CHANGE & DELIVERY,INTERSERVE FM LTD,1003458,608.11,
FCO,FCO,16-Apr-12,Office Support Services,DG CHANGE & DELIVERY,INTERSERVE FM LTD,1003458,834.69,
FCO,FCO,16-Apr-12,Contract Fees,DG CHANGE & DELIVERY,INTERSERVE FM LTD,1003458,"7,615.59",
FCO,FCO,16-Apr-12,Contract Fees,DG CHANGE & DELIVERY,INTERSERVE FM LTD,1003458,182.97,
FCO,FCO,16-Apr-12,Estates Management Services,DG CHANGE & DELIVERY,INTERSERVE FM LTD,1003458,253.35,
FCO,FCO,16-Apr-12,Contract Fees,DG CHANGE & DELIVERY,INTERSERVE FM LTD,1003458,182.97,
FCO,FCO,16-Apr-12,Contract Fees,DG CHANGE & DELIVERY,INTERSERVE FM LTD,1003458,944.94,
FCO,FCO,16-Apr-12,Estates Management Services,DG CHANGE & DELIVERY,INTERSERVE FM LTD,1003458,131.93,
FCO,FCO,16-Apr-12,Contract Fees,DG CHANGE & DELIVERY,INTERSERVE FM LTD,1003458,944.94,
FCO,FCO,16-Apr-12,FM Interserve Overseas Reclaimable Tax,DG CHANGE & DELIVERY,INTERSERVE FM LTD,1003458,888.27,
FCO,FCO,16-Apr-12,Residential Property Services,DG CHANGE & DELIVERY,INTERSERVE FM LTD,1003458,"10,800.24",
FCO,FCO,16-Apr-12,Residential Property Services,DG CHANGE & DELIVERY,INTERSERVE FM LTD,1003458,"6,696.05",
FCO,FCO,16-Apr-12,FM Interserve Overseas Reclaimable Tax,DG CHANGE & DELIVERY,INTERSERVE FM LTD,1003458,888.27,
FCO,FCO,16-Apr-12,FM Interserve Overseas Reclaimable Tax,DG CHANGE & DELIVERY,INTERSERVE FM LTD,1003458,512.21,
FCO,FCO,16-Apr-12,FM Interserve Overseas Reclaimable Tax,DG CHANGE & DELIVERY,INTERSERVE FM LTD,1003458,512.21,
FCO,FCO,16-Apr-12,Contract Fees,DG CHANGE & DELIVERY,INTERSERVE FM LTD,1003458,"9,124.75",
FCO,FCO,16-Apr-12,Rematching / Reinstatement,DG CHANGE & DELIVERY,INTERSERVE FM LTD,1003458,"3,134.81",
FCO,FCO,16-Apr-12,FM Interserve Overseas Reclaimable Tax,DG CHANGE & DELIVERY,INTERSERVE FM LTD,1003458,77.06,
FCO,FCO,16-Apr-12,FM Interserve Overseas Reclaimable Tax,DG CHANGE & DELIVERY,INTERSERVE FM LTD,1003458,"1,337.26",
FCO,FCO,16-Apr-12,Contract Fees,DG CHANGE & DELIVERY,INTERSERVE FM LTD,1003458,"4,102.31",
FCO,FCO,16-Apr-12,FM Interserve Overseas Reclaimable Tax,DG CHANGE & DELIVERY,INTERSERVE FM LTD,1003458,77.06,
FCO,FCO,16-Apr-12,FM Interserve Overseas Reclaimable Tax,DG CHANGE & DELIVERY,INTERSERVE FM LTD,1003458,16.06,
FCO,FCO,16-Apr-12,FM Interserve Overseas Reclaimable Tax,DG CHANGE & DELIVERY,INTERSERVE FM LTD,1003458,223.36,
FCO,FCO,16-Apr-12,FM Interserve Overseas Reclaimable Tax,DG CHANGE & DELIVERY,INTERSERVE FM LTD,1003458,438.24,
FCO,FCO,16-Apr-12,FM Interserve Overseas Reclaimable Tax,DG CHANGE & DELIVERY,INTERSERVE FM LTD,1003458,16.06,
FCO,FCO,16-Apr-12,FM Interserve Overseas Reclaimable Tax,DG CHANGE & DELIVERY,INTERSERVE FM LTD,1003458,99.6,
FCO,FCO,16-Apr-12,FM Interserve Overseas Reclaimable Tax,DG CHANGE & DELIVERY,INTERSERVE FM LTD,1003458,204.85,
FCO,FCO,16-Apr-12,FM Interserve Overseas Reclaimable Tax,DG CHANGE & DELIVERY,INTERSERVE FM LTD,1003458,24.57,
FCO,FCO,16-Apr-12,FM Interserve Overseas Reclaimable Tax,DG CHANGE & DELIVERY,INTERSERVE FM LTD,1003458,24.57,
FCO,FCO,16-Apr-12,FM Interserve Overseas Reclaimable Tax,DG CHANGE & DELIVERY,INTERSERVE FM LTD,1003458,3.7,
FCO,FCO,16-Apr-12,FM Interserve Overseas Reclaimable Tax,DG CHANGE & DELIVERY,INTERSERVE FM LTD,1003458,68.86,
FCO,FCO,16-Apr-12,FM Interserve Overseas Reclaimable Tax,DG CHANGE & DELIVERY,INTERSERVE FM LTD,1003458,3.7,
FCO,FCO,16-Apr-12,FM Interserve Overseas Reclaimable Tax,DG CHANGE & DELIVERY,INTERSERVE FM LTD,1003458,"1,061.90",
FCO,FCO,16-Apr-12,FM Interserve Overseas Reclaimable Tax,DG CHANGE & DELIVERY,INTERSERVE FM LTD,1003458,17.19,
FCO,FCO,16-Apr-12,FM Interserve Overseas Reclaimable Tax,DG CHANGE & DELIVERY,INTERSERVE FM LTD,1003458,562.8,
FCO,FCO,16-Apr-12,FM Interserve Overseas Reclaimable Tax,DG CHANGE & DELIVERY,INTERSERVE FM LTD,1003458,83.95,
FCO,FCO,16-Apr-12,FM Interserve Overseas Reclaimable Tax,DG CHANGE & DELIVERY,INTERSERVE FM LTD,1003458,17.19,
FCO,FCO,16-Apr-12,FM Interserve Overseas Reclaimable Tax,DG CHANGE & DELIVERY,INTERSERVE FM LTD,1003458,82.94,
FCO,FCO,16-Apr-12,FM Interserve Overseas Reclaimable Tax,DG CHANGE & DELIVERY,INTERSERVE FM LTD,1003458,"7,209.19",
FCO,FCO,16-Apr-12,FM Interserve Overseas Reclaimable Tax,DG CHANGE & DELIVERY,INTERSERVE FM LTD,1003458,42.13,
FCO,FCO,16-Apr-12,FM Interserve Overseas Reclaimable Tax,DG CHANGE & DELIVERY,INTERSERVE FM LTD,1003458,"7,209.19",
FCO,FCO,16-Apr-12,FM Interserve Overseas Reclaimable Tax,DG CHANGE & DELIVERY,INTERSERVE FM LTD,1003458,"1,029.20",
FCO,FCO,16-Apr-12,FM Interserve Overseas Reclaimable Tax,DG CHANGE & DELIVERY,INTERSERVE FM LTD,1003458,87.92,
FCO,FCO,16-Apr-12,FM Interserve Overseas Reclaimable Tax,DG CHANGE & DELIVERY,INTERSERVE FM LTD,1003458,"1,029.20",
FCO,FCO,16-Apr-12,FM Interserve Overseas Reclaimable Tax,DG CHANGE & DELIVERY,INTERSERVE FM LTD,1003458,99.21,
FCO,FCO,16-Apr-12,FM Interserve Overseas Reclaimable Tax,DG CHANGE & DELIVERY,INTERSERVE FM LTD,1003458,"1,599.27",
FCO,FCO,16-Apr-12,FM Interserve Overseas Reclaimable Tax,DG CHANGE & DELIVERY,INTERSERVE FM LTD,1003458,"1,599.27",
FCO,FCO,16-Apr-12,FM Interserve Overseas Reclaimable Tax,DG CHANGE & DELIVERY,INTERSERVE FM LTD,1003458,29.45,
FCO,FCO,16-Apr-12,FM Interserve Overseas Reclaimable Tax,DG CHANGE & DELIVERY,INTERSERVE FM LTD,1003458,667.76,
FCO,FCO,16-Apr-12,FM Interserve Overseas Reclaimable Tax,DG CHANGE & DELIVERY,INTERSERVE FM LTD,1003458,824.34,
FCO,FCO,16-Apr-12,FM Interserve Overseas Reclaimable Tax,DG CHANGE & DELIVERY,INTERSERVE FM LTD,1003458,803.38,
FCO,FCO,16-Apr-12,FM Interserve Overseas Reclaimable Tax,DG CHANGE & DELIVERY,INTERSERVE FM LTD,1003458,38.42,
FCO,FCO,16-Apr-12,FM Interserve Overseas Reclaimable Tax,DG CHANGE & DELIVERY,INTERSERVE FM LTD,1003458,38.42,
FCO,FCO,16-Apr-12,FM Interserve Overseas Reclaimable Tax,DG CHANGE & DELIVERY,INTERSERVE FM LTD,1003458,438.42,
FCO,FCO,16-Apr-12,FM Interserve Overseas Reclaimable Tax,DG CHANGE & DELIVERY,INTERSERVE FM LTD,1003458,166.93,
FCO,FCO,16-Apr-12,FM Interserve Overseas Reclaimable Tax,DG CHANGE & DELIVERY,INTERSERVE FM LTD,1003458,200.85,
FCO,FCO,16-Apr-12,FM Interserve Overseas Reclaimable Tax,DG CHANGE & DELIVERY,INTERSERVE FM LTD,1003458,50.67,
FCO,FCO,16-Apr-12,FM Interserve Overseas Reclaimable Tax,DG CHANGE & DELIVERY,INTERSERVE FM LTD,1003458,25.07,
FCO,FCO,16-Apr-12,FM Interserve Overseas Reclaimable Tax,DG CHANGE & DELIVERY,INTERSERVE FM LTD,1003458,"2,160.05",
FCO,FCO,16-Apr-12,FM Interserve Overseas Reclaimable Tax,DG CHANGE & DELIVERY,INTERSERVE FM LTD,1003458,"1,272.25",
FCO,FCO,16-Apr-12,FM Interserve Overseas Reclaimable Tax,DG CHANGE & DELIVERY,INTERSERVE FM LTD,1003458,"1,824.95",
FCO,FCO,16-Apr-12,FM Interserve Overseas Reclaimable Tax,DG CHANGE & DELIVERY,INTERSERVE FM LTD,1003458,595.62,
FCO,FCO,16-Apr-12,FM Interserve Overseas Reclaimable Tax,DG CHANGE & DELIVERY,INTERSERVE FM LTD,1003458,779.43,
FCO,FCO,04-Apr-12,Construction Project more than 10k,DG CHANGE & DELIVERY,INTERSERVE FM LTD,1042391,"25,989.37",
FCO,FCO,04-Apr-12,Construction Project more than 10k,DG CHANGE & DELIVERY,INTERSERVE FM LTD,1042391,"21,866.00",
FCO,FCO,04-Apr-12,Building Mechanical and Engineering Services,DG CHANGE & DELIVERY,INTERSERVE FM LTD,1042391,"118,949.05",
FCO,FCO,04-Apr-12,Energy Saving Measures,#N/A,INTERSERVE FM LTD,1042391,"27,450.89",
FCO,FCO,04-Apr-12,FM Interserve BES Maintenance,DG CHANGE & DELIVERY,INTERSERVE FM LTD,1042391,"47,359.93",
FCO,FCO,04-Apr-12,VAT (Input) (Oracle Sub-Ledger Control Account),NON CASH & UNALLOCATED COSTS,INTERSERVE FM LTD,1042391,"4,373.20",
FCO,FCO,04-Apr-12,VAT (Input) (Oracle Sub-Ledger Control Account),NON CASH & UNALLOCATED COSTS,INTERSERVE FM LTD,1042391,"5,197.87",
FCO,FCO,04-Apr-12,VAT (Input) (Oracle Sub-Ledger Control Account),NON CASH & UNALLOCATED COSTS,INTERSERVE FM LTD,1042391,"5,490.18",
FCO,FCO,04-Apr-12,VAT (Input) (Oracle Sub-Ledger Control Account),NON CASH & UNALLOCATED COSTS,INTERSERVE FM LTD,1042391,"9,471.99",
FCO,FCO,04-Apr-12,Building Fabric Services,DG CHANGE & DELIVERY,INTERSERVE FM LTD,1042391,"2,480.79",
FCO,FCO,04-Apr-12,Minor New Works <10K,DG CHANGE & DELIVERY,INTERSERVE FM LTD,1042391,"47,922.20",
FCO,FCO,04-Apr-12,Grounds Maintenance,DG CHANGE & DELIVERY,INTERSERVE FM LTD,1042391,"7,710.11",
FCO,FCO,04-Apr-12,Cleaning & Waste,DG CHANGE & DELIVERY,INTERSERVE FM LTD,1042391,"144,572.81",
FCO,FCO,04-Apr-12,Miscellaneous Expenditure: inc subscriptions and equipment maintenance,DG CHANGE & DELIVERY,INTERSERVE FM LTD,1042391,"2,621.16",
FCO,FCO,04-Apr-12,Waste Disposal,DG CHANGE & DELIVERY,INTERSERVE FM LTD,1042391,"6,324.34",
FCO,FCO,04-Apr-12,Mail & Porterage Services,DG CHANGE & DELIVERY,INTERSERVE FM LTD,1042391,"43,878.01",
FCO,FCO,04-Apr-12,Office Support Services,DG CHANGE & DELIVERY,INTERSERVE FM LTD,1042391,"4,819.22",
FCO,FCO,04-Apr-12,Estates Management Services,DG CHANGE & DELIVERY,INTERSERVE FM LTD,1042391,"2,734.39",
FCO,FCO,04-Apr-12,Rematching / Reinstatement,DG CHANGE & DELIVERY,INTERSERVE FM LTD,1042391,"10,954.16",
FCO,FCO,04-Apr-12,Contract Fees,DG CHANGE & DELIVERY,INTERSERVE FM LTD,1042391,"51,398.87",
FCO,FCO,04-Apr-12,Interim Helpdesk,DG CHANGE & DELIVERY,INTERSERVE FM LTD,1042391,"41,172.10",
FCO,FCO,04-Apr-12,VAT (Input) (Oracle Sub-Ledger Control Account),NON CASH & UNALLOCATED COSTS,INTERSERVE FM LTD,1042391,"23,789.81",
FCO,FCO,04-Apr-12,VAT (Input) (Oracle Sub-Ledger Control Account),NON CASH & UNALLOCATED COSTS,INTERSERVE FM LTD,1042391,496.16,
FCO,FCO,04-Apr-12,VAT (Input) (Oracle Sub-Ledger Control Account),NON CASH & UNALLOCATED COSTS,INTERSERVE FM LTD,1042391,"9,584.44",
FCO,FCO,04-Apr-12,VAT (Input) (Oracle Sub-Ledger Control Account),NON CASH & UNALLOCATED COSTS,INTERSERVE FM LTD,1042391,"1,542.02",
FCO,FCO,04-Apr-12,VAT (Input) (Oracle Sub-Ledger Control Account),NON CASH & UNALLOCATED COSTS,INTERSERVE FM LTD,1042391,"28,914.56",
FCO,FCO,04-Apr-12,VAT (Input) (Oracle Sub-Ledger Control Account),NON CASH & UNALLOCATED COSTS,INTERSERVE FM LTD,1042391,524.23,
FCO,FCO,04-Apr-12,VAT (Input) (Oracle Sub-Ledger Control Account),NON CASH & UNALLOCATED COSTS,INTERSERVE FM LTD,1042391,"1,264.87",
FCO,FCO,04-Apr-12,VAT (Input) (Oracle Sub-Ledger Control Account),NON CASH & UNALLOCATED COSTS,INTERSERVE FM LTD,1042391,"8,775.60",
FCO,FCO,04-Apr-12,VAT (Input) (Oracle Sub-Ledger Control Account),NON CASH & UNALLOCATED COSTS,INTERSERVE FM LTD,1042391,963.84,
FCO,FCO,04-Apr-12,VAT (Input) (Oracle Sub-Ledger Control Account),NON CASH & UNALLOCATED COSTS,INTERSERVE FM LTD,1042391,546.88,
FCO,FCO,04-Apr-12,VAT (Input) (Oracle Sub-Ledger Control Account),NON CASH & UNALLOCATED COSTS,INTERSERVE FM LTD,1042391,"2,190.83",
FCO,FCO,04-Apr-12,VAT (Input) (Oracle Sub-Ledger Control Account),NON CASH & UNALLOCATED COSTS,INTERSERVE FM LTD,1042391,"10,279.77",
FCO,FCO,04-Apr-12,VAT (Input) (Oracle Sub-Ledger Control Account),NON CASH & UNALLOCATED COSTS,INTERSERVE FM LTD,1042391,"8,234.42",
FCO,FCO,13-Apr-12,Construction Project more than 10k,DG CHANGE & DELIVERY,INTERSERVE FM LTD,1043163,"23,633.88",
FCO,FCO,13-Apr-12,Building Mechanical and Engineering Services,DG CHANGE & DELIVERY,INTERSERVE FM LTD,1043163,"118,949.05",
FCO,FCO,13-Apr-12,Construction Project more than 10k,DG CHANGE & DELIVERY,INTERSERVE FM LTD,1043163,"25,816.63",
FCO,FCO,13-Apr-12,VAT (Input) (Oracle Sub-Ledger Control Account),NON CASH & UNALLOCATED COSTS,INTERSERVE FM LTD,1043163,"5,163.33",
FCO,FCO,13-Apr-12,VAT (Input) (Oracle Sub-Ledger Control Account),NON CASH & UNALLOCATED COSTS,INTERSERVE FM LTD,1043163,"4,726.78",
FCO,FCO,13-Apr-12,Building Fabric Services,DG CHANGE & DELIVERY,INTERSERVE FM LTD,1043163,"2,480.79",
FCO,FCO,13-Apr-12,Minor New Works <10K,DG CHANGE & DELIVERY,INTERSERVE FM LTD,1043163,"47,922.20",
FCO,FCO,13-Apr-12,Grounds Maintenance,DG CHANGE & DELIVERY,INTERSERVE FM LTD,1043163,"7,710.11",
FCO,FCO,13-Apr-12,Cleaning & Waste,DG CHANGE & DELIVERY,INTERSERVE FM LTD,1043163,"144,572.81",
FCO,FCO,13-Apr-12,Miscellaneous Expenditure: inc subscriptions and equipment maintenance,DG CHANGE & DELIVERY,INTERSERVE FM LTD,1043163,"2,621.16",
FCO,FCO,13-Apr-12,Waste Disposal,DG CHANGE & DELIVERY,INTERSERVE FM LTD,1043163,"6,324.34",
FCO,FCO,13-Apr-12,Mail & Porterage Services,DG CHANGE & DELIVERY,INTERSERVE FM LTD,1043163,"43,878.01",
FCO,FCO,13-Apr-12,Office Support Services,DG CHANGE & DELIVERY,INTERSERVE FM LTD,1043163,"4,819.22",
FCO,FCO,13-Apr-12,Estates Management Services,DG CHANGE & DELIVERY,INTERSERVE FM LTD,1043163,"2,734.39",
FCO,FCO,13-Apr-12,Rematching / Reinstatement,DG CHANGE & DELIVERY,INTERSERVE FM LTD,1043163,"10,954.16",
FCO,FCO,13-Apr-12,Contract Fees,DG CHANGE & DELIVERY,INTERSERVE FM LTD,1043163,"51,398.87",
FCO,FCO,13-Apr-12,Interim Helpdesk,DG CHANGE & DELIVERY,INTERSERVE FM LTD,1043163,"41,172.10",
FCO,FCO,13-Apr-12,VAT (Input) (Oracle Sub-Ledger Control Account),NON CASH & UNALLOCATED COSTS,INTERSERVE FM LTD,1043163,"23,789.81",
FCO,FCO,13-Apr-12,VAT (Input) (Oracle Sub-Ledger Control Account),NON CASH & UNALLOCATED COSTS,INTERSERVE FM LTD,1043163,496.16,
FCO,FCO,13-Apr-12,VAT (Input) (Oracle Sub-Ledger Control Account),NON CASH & UNALLOCATED COSTS,INTERSERVE FM LTD,1043163,"9,584.44",
FCO,FCO,13-Apr-12,VAT (Input) (Oracle Sub-Ledger Control Account),NON CASH & UNALLOCATED COSTS,INTERSERVE FM LTD,1043163,"1,542.02",
FCO,FCO,13-Apr-12,VAT (Input) (Oracle Sub-Ledger Control Account),NON CASH & UNALLOCATED COSTS,INTERSERVE FM LTD,1043163,"28,914.56",
FCO,FCO,13-Apr-12,VAT (Input) (Oracle Sub-Ledger Control Account),NON CASH & UNALLOCATED COSTS,INTERSERVE FM LTD,1043163,524.23,
FCO,FCO,13-Apr-12,VAT (Input) (Oracle Sub-Ledger Control Account),NON CASH & UNALLOCATED COSTS,INTERSERVE FM LTD,1043163,"1,264.87",
FCO,FCO,13-Apr-12,VAT (Input) (Oracle Sub-Ledger Control Account),NON CASH & UNALLOCATED COSTS,INTERSERVE FM LTD,1043163,"8,775.60",
FCO,FCO,13-Apr-12,VAT (Input) (Oracle Sub-Ledger Control Account),NON CASH & UNALLOCATED COSTS,INTERSERVE FM LTD,1043163,963.84,
FCO,FCO,13-Apr-12,VAT (Input) (Oracle Sub-Ledger Control Account),NON CASH & UNALLOCATED COSTS,INTERSERVE FM LTD,1043163,546.88,
FCO,FCO,13-Apr-12,VAT (Input) (Oracle Sub-Ledger Control Account),NON CASH & UNALLOCATED COSTS,INTERSERVE FM LTD,1043163,"2,190.83",
FCO,FCO,13-Apr-12,VAT (Input) (Oracle Sub-Ledger Control Account),NON CASH & UNALLOCATED COSTS,INTERSERVE FM LTD,1043163,"10,279.77",
FCO,FCO,13-Apr-12,VAT (Input) (Oracle Sub-Ledger Control Account),NON CASH & UNALLOCATED COSTS,INTERSERVE FM LTD,1043163,"8,234.42",
FCO,FCO,16-Apr-12,FM Interserve Building Fabric Maintenance,DG CHANGE & DELIVERY,INTERSERVE FM LTD,1043306,"3,015.71",
FCO,FCO,16-Apr-12,FM Interserve Works,DG CHANGE & DELIVERY,INTERSERVE FM LTD,1043306,"4,926.37",
FCO,FCO,16-Apr-12,FM Interserve Works,DG CHANGE & DELIVERY,INTERSERVE FM LTD,1043306,"5,628.29",
FCO,FCO,16-Apr-12,FM Interserve Works,DG CHANGE & DELIVERY,INTERSERVE FM LTD,1043306,906.41,
FCO,FCO,16-Apr-12,FM Interserve BES Maintenance,DG CHANGE & DELIVERY,INTERSERVE FM LTD,1043306,"4,486.72",
FCO,FCO,16-Apr-12,FM Interserve Building Fabric Maintenance,DG CHANGE & DELIVERY,INTERSERVE FM LTD,1043306,"4,311.09",
FCO,FCO,16-Apr-12,Construction Project more than 10k,DG CHANGE & DELIVERY,INTERSERVE FM LTD,1043306,"46,782.25",
FCO,FCO,16-Apr-12,FM Interserve Works,DG CHANGE & DELIVERY,INTERSERVE FM LTD,1043306,"4,762.10",
FCO,FCO,16-Apr-12,VAT (Input) (Oracle Sub-Ledger Control Account),NON CASH & UNALLOCATED COSTS,INTERSERVE FM LTD,1043306,"13,093.31",
FCO,FCO,20-Apr-12,Minor New Works <10K,DG CHANGE & DELIVERY,INTERSERVE FM LTD,1043760,"3,660.42",
FCO,FCO,20-Apr-12,Assets Under Construction (Oracle PA Control Account),NON CASH & UNALLOCATED COSTS,INTERSERVE FM LTD,1043760,"40,937.42",
FCO,FCO,20-Apr-12,Construction Project more than 10k,DG CHANGE & DELIVERY,INTERSERVE FM LTD,1043760,"123,275.36",
FCO,FCO,20-Apr-12,Construction Project more than 10k,DG CHANGE & DELIVERY,INTERSERVE FM LTD,1043760,"7,382.94",
FCO,FCO,20-Apr-12,VAT (Input) (Oracle Sub-Ledger Control Account),NON CASH & UNALLOCATED COSTS,INTERSERVE FM LTD,1043760,"26,131.66",
FCO,FCO,20-Apr-12,VAT (Input) (Oracle Sub-Ledger Control Account),NON CASH & UNALLOCATED COSTS,INTERSERVE FM LTD,1043760,732.08,
FCO,FCO,20-Apr-12,Assets Under Construction (Oracle PA Control Account),NON CASH & UNALLOCATED COSTS,INTERSERVE FM LTD,1043760,"8,187.48",
FCO,FCO,20-Apr-12,Assets Under Construction (Oracle PA Control Account),NON CASH & UNALLOCATED COSTS,INTERSERVE FM LTD,1043760,0.01,
FCO,FCO,23-Apr-12,Assets Under Construction (Oracle PA Control Account),NON CASH & UNALLOCATED COSTS,INTERSERVE FM LTD,1043801,"254,225.82",
FCO,FCO,23-Apr-12,Assets Under Construction (Oracle PA Control Account),NON CASH & UNALLOCATED COSTS,INTERSERVE FM LTD,1043801,"10,324.93",
FCO,FCO,23-Apr-12,Assets Under Construction (Oracle PA Control Account),NON CASH & UNALLOCATED COSTS,INTERSERVE FM LTD,1043801,"50,845.16",
FCO,FCO,23-Apr-12,Assets Under Construction (Oracle PA Control Account),NON CASH & UNALLOCATED COSTS,INTERSERVE FM LTD,1043801,"2,064.99",
FCO,FCO,23-Apr-12,Assets Under Construction (Oracle PA Control Account),NON CASH & UNALLOCATED COSTS,INTERSERVE FM LTD,1043801,"-254,225.82",
FCO,FCO,23-Apr-12,Assets Under Construction (Oracle PA Control Account),NON CASH & UNALLOCATED COSTS,INTERSERVE FM LTD,1043801,"-10,324.93",
FCO,FCO,23-Apr-12,Assets Under Construction (Oracle PA Control Account),NON CASH & UNALLOCATED COSTS,INTERSERVE FM LTD,1043801,"-50,845.16",
FCO,FCO,23-Apr-12,Assets Under Construction (Oracle PA Control Account),NON CASH & UNALLOCATED COSTS,INTERSERVE FM LTD,1043801,"-2,064.99",
FCO,FCO,23-Apr-12,Assets Under Construction (Oracle PA Control Account),NON CASH & UNALLOCATED COSTS,INTERSERVE FM LTD,1043801,"254,225.82",
FCO,FCO,23-Apr-12,Assets Under Construction (Oracle PA Control Account),NON CASH & UNALLOCATED COSTS,INTERSERVE FM LTD,1043801,"10,324.93",
FCO,FCO,23-Apr-12,Assets Under Construction (Oracle PA Control Account),NON CASH & UNALLOCATED COSTS,INTERSERVE FM LTD,1043801,"1,806.86",
FCO,FCO,23-Apr-12,VAT (Input) (Oracle Sub-Ledger Control Account),NON CASH & UNALLOCATED COSTS,INTERSERVE FM LTD,1043801,"44,489.52",
FCO,FCO,20-Apr-12,Rental Payments - non residential,DG CHANGE & DELIVERY,BJ5 SA,1017129,"40,382.22",
FCO,FCO,02-Apr-12,Residential Property Services,DG CHANGE & DELIVERY,JORDAN & BATEMAN ARCHITECTS,1041702,"32,760.50",
FCO,FCO,02-Apr-12,Residential Property Services,DG CHANGE & DELIVERY,JORDAN & BATEMAN ARCHITECTS,1041702,"6,552.10",
FCO,FCO,02-Apr-12,Programme Spend (Oracle Projects Control Account),DG DEFENCE AND INTELLIGENCE,KINGS COLLEGE LONDON,1041734,"57,099.48",
FCO,FCO,11-Apr-12,Programme Spend (Oracle Projects Control Account),DG DEFENCE AND INTELLIGENCE,KINGS COLLEGE LONDON,1042929,"37,035.13",
FCO,FCO,02-Apr-12,Construction Project more than 10k,#N/A,POWER ELECTRICS (BRISTOL) LTD,1041909,"45,809.00",
FCO,FCO,02-Apr-12,Construction Project more than 10k,#N/A,POWER ELECTRICS (BRISTOL) LTD,1041909,609,
FCO,FCO,02-Apr-12,Construction Project more than 10k,#N/A,POWER ELECTRICS (BRISTOL) LTD,1041909,976,
FCO,FCO,02-Apr-12,Construction Project more than 10k,#N/A,POWER ELECTRICS (BRISTOL) LTD,1041909,916,
FCO,FCO,10-Apr-12,IT/IS Consultancy,DG CENTRAL GROUP,LOGICA UK LTD,1042799,"767,920.30",
FCO,FCO,10-Apr-12,IT/IS Consultancy,DG CENTRAL GROUP,LOGICA UK LTD,1042799,"157,752.93",
FCO,FCO,10-Apr-12,IT/IS Consultancy,DG CENTRAL GROUP,LOGICA UK LTD,1042799,"90,000.00",
FCO,FCO,10-Apr-12,VAT (Input) (Oracle Sub-Ledger Control Account),NON CASH & UNALLOCATED COSTS,LOGICA UK LTD,1042799,"203,134.65",
FCO,FCO,13-Apr-12,Electricity Non-Residential,DG CHANGE & DELIVERY,LONDON ENERGY,1043193,"40,012.12",
FCO,FCO,13-Apr-12,Electricity Non-Residential,DG CHANGE & DELIVERY,LONDON ENERGY,1043193,"21,012.02",
FCO,FCO,13-Apr-12,Electricity Non-Residential,DG CHANGE & DELIVERY,LONDON ENERGY,1043193,0.37,
FCO,FCO,13-Apr-12,Electricity Non-Residential,DG CHANGE & DELIVERY,LONDON ENERGY,1043193,"4,202.40",
FCO,FCO,13-Apr-12,Electricity Non-Residential,DG CHANGE & DELIVERY,LONDON ENERGY,1043193,0.01,
FCO,FCO,13-Apr-12,Electricity Non-Residential,DG CHANGE & DELIVERY,LONDON ENERGY,1043193,"8,002.42",
FCO,FCO,23-Apr-12,Electricity Non-Residential,DG CHANGE & DELIVERY,LONDON ENERGY,1043805,"165,711.84",
FCO,FCO,23-Apr-12,Electricity Non-Residential,DG CHANGE & DELIVERY,LONDON ENERGY,1043805,"8,872.46",
FCO,FCO,23-Apr-12,Electricity Non-Residential,DG CHANGE & DELIVERY,LONDON ENERGY,1043805,"24,692.98",
FCO,FCO,23-Apr-12,Electricity Non-Residential,DG CHANGE & DELIVERY,LONDON ENERGY,1043805,"33,142.37",
FCO,FCO,23-Apr-12,Electricity Non-Residential,DG CHANGE & DELIVERY,LONDON ENERGY,1043805,"1,774.49",
FCO,FCO,23-Apr-12,Electricity Non-Residential,DG CHANGE & DELIVERY,LONDON ENERGY,1043805,"4,938.60",
FCO,FCO,23-Apr-12,Electricity Non-Residential,DG CHANGE & DELIVERY,LONDON ENERGY,1043805,-0.01,
FCO,FCO,04-Apr-12,Specialist Training (Devolved),DG CENTRAL GROUP,LSE ENTERPRISE LIMITED,1042436,"29,463.15",
FCO,FCO,04-Apr-12,VAT (Input) (Oracle Sub-Ledger Control Account),NON CASH & UNALLOCATED COSTS,LSE ENTERPRISE LIMITED,1042436,"5,892.63",
FCO,FCO,30-Apr-12,Specialist Training (Devolved),DG CENTRAL GROUP,LSE ENTERPRISE LIMITED,1044287,"25,945.64",
FCO,FCO,30-Apr-12,VAT (Input) (Oracle Sub-Ledger Control Account),NON CASH & UNALLOCATED COSTS,LSE ENTERPRISE LIMITED,1044287,"5,189.13",
FCO,FCO,30-Apr-12,Specialist Training (Devolved),DG CENTRAL GROUP,LSE ENTERPRISE LIMITED,1044287,"-25,945.64",
FCO,FCO,30-Apr-12,VAT (Input) (Oracle Sub-Ledger Control Account),NON CASH & UNALLOCATED COSTS,LSE ENTERPRISE LIMITED,1044287,"-5,189.13",
FCO,FCO,30-Apr-12,Specialist Training (Devolved),DG CENTRAL GROUP,LSE ENTERPRISE LIMITED,1044287,"25,000.00",
FCO,FCO,30-Apr-12,Specialist Training (Devolved),DG CENTRAL GROUP,LSE ENTERPRISE LIMITED,1044287,945.64,
FCO,FCO,30-Apr-12,VAT (Input) (Oracle Sub-Ledger Control Account),NON CASH & UNALLOCATED COSTS,LSE ENTERPRISE LIMITED,1044287,"5,189.13",
FCO,FCO,26-Apr-12,Assets Under Construction (Oracle PA Control Account),NON CASH & UNALLOCATED COSTS,HAMILTON HARRISON AND MATHEWS,213767,"2,108,053.92",
FCO,FCO,26-Apr-12,Assets Under Construction (Oracle PA Control Account),NON CASH & UNALLOCATED COSTS,HAMILTON HARRISON AND MATHEWS,213767,"-2,108,053.92",
FCO,FCO,26-Apr-12,Assets Under Construction (Oracle PA Control Account),NON CASH & UNALLOCATED COSTS,HAMILTON HARRISON AND MATHEWS,213767,"702,684.64",
FCO,FCO,26-Apr-12,Assets Under Construction (Oracle PA Control Account),NON CASH & UNALLOCATED COSTS,HAMILTON HARRISON AND MATHEWS,213767,"702,684.64",
FCO,FCO,26-Apr-12,Assets Under Construction (Oracle PA Control Account),NON CASH & UNALLOCATED COSTS,HAMILTON HARRISON AND MATHEWS,213767,"702,684.64",
FCO,FCO,05-Apr-12,Rates Taxes Non-Residential,DG CHANGE & DELIVERY,MILTON KEYNES COUNCIL,1042653,"124,740.76",
FCO,FCO,05-Apr-12,Rates Taxes Non-Residential,DG CHANGE & DELIVERY,MILTON KEYNES COUNCIL,1042653,"45,869.80",
FCO,FCO,05-Apr-12,Rates Taxes Non-Residential,DG CHANGE & DELIVERY,MILTON KEYNES COUNCIL,1042653,"1,291,560.00",
FCO,FCO,18-Apr-12,Programme Spend (Oracle Projects Control Account),DG POLITICAL,MOD PUBLIC SUB ACC HMG 4780,4001729,"550,288.00",
FCO,FCO,18-Apr-12,Programme Spend (Oracle Projects Control Account),DG POLITICAL,PENAL REFORM INTERNATIONAL,1043527,"31,427.49",
FCO,FCO,02-Apr-12,Technical Consultancy,DG CENTRAL GROUP,SYMANTEC LIRIC LTD,1042030,"346,739.34",
FCO,FCO,02-Apr-12,VAT (Input) (Oracle Sub-Ledger Control Account),NON CASH & UNALLOCATED COSTS,SYMANTEC LIRIC LTD,1042030,"69,347.87",
FCO,FCO,02-Apr-12,Construction Project more than 10k,#N/A,COGENT ELECTRICAL SERVICES LTD (FORM WES),1041435,"81,863.02",
FCO,FCO,02-Apr-12,Construction Project more than 10k,#N/A,COGENT ELECTRICAL SERVICES LTD (FORM WES),1041435,"32,162.27",
FCO,FCO,20-Apr-12,Construction Project more than 10k,#N/A,COGENT ELECTRICAL SERVICES LTD (FORM WES),1043737,"44,335.80",
FCO,FCO,20-Apr-12,Construction Project more than 10k,#N/A,COGENT ELECTRICAL SERVICES LTD (FORM WES),1043737,"-44,335.80",
FCO,FCO,20-Apr-12,Construction Project more than 10k,#N/A,COGENT ELECTRICAL SERVICES LTD (FORM WES),1043737,"38,502.80",
FCO,FCO,20-Apr-12,Construction Project more than 10k,#N/A,COGENT ELECTRICAL SERVICES LTD (FORM WES),1043737,"5,833.00",
FCO,FCO,02-Apr-12,Construction Project more than 10k,#N/A,RIDGE AND PARTNERS,1041939,"5,200.00",
FCO,FCO,02-Apr-12,Construction Project more than 10k,#N/A,RIDGE AND PARTNERS,1041939,"34,893.00",
FCO,FCO,02-Apr-12,Construction Project more than 10k,#N/A,RIDGE AND PARTNERS,1041939,"20,400.00",
FCO,FCO,02-Apr-12,Construction Project more than 10k,#N/A,RIDGE AND PARTNERS,1041939,"5,000.00",
FCO,FCO,02-Apr-12,Construction Project more than 10k,#N/A,RIDGE AND PARTNERS,1041939,"12,218.58",
FCO,FCO,02-Apr-12,Construction Project more than 10k,#N/A,RIDGE AND PARTNERS,1041939,"2,688.45",
FCO,FCO,02-Apr-12,Construction Project more than 10k,#N/A,RIDGE AND PARTNERS,1041939,"-5,200.00",
FCO,FCO,02-Apr-12,Construction Project more than 10k,#N/A,RIDGE AND PARTNERS,1041939,"-34,893.00",
FCO,FCO,02-Apr-12,Construction Project more than 10k,#N/A,RIDGE AND PARTNERS,1041939,"-20,400.00",
FCO,FCO,02-Apr-12,Construction Project more than 10k,#N/A,RIDGE AND PARTNERS,1041939,"-5,000.00",
FCO,FCO,02-Apr-12,Construction Project more than 10k,#N/A,RIDGE AND PARTNERS,1041939,"-12,218.58",
FCO,FCO,02-Apr-12,Construction Project more than 10k,#N/A,RIDGE AND PARTNERS,1041939,"-2,688.45",
FCO,FCO,02-Apr-12,Construction Project more than 10k,#N/A,RIDGE AND PARTNERS,1041939,"5,200.00",
FCO,FCO,02-Apr-12,Construction Project more than 10k,#N/A,RIDGE AND PARTNERS,1041939,"12,205.03",
FCO,FCO,02-Apr-12,Construction Project more than 10k,#N/A,RIDGE AND PARTNERS,1041939,"5,000.00",
FCO,FCO,02-Apr-12,Construction Project more than 10k,#N/A,RIDGE AND PARTNERS,1041939,"29,017.14",
FCO,FCO,02-Apr-12,Construction Project more than 10k,#N/A,RIDGE AND PARTNERS,1041939,"28,977.86",
FCO,FCO,26-Apr-12,Programme Spend (Oracle Projects Control Account),DG POLITICAL,SAFERWORLD,1044168,"27,862.00",
FCO,FCO,02-Apr-12,IT/IS Consultancy,DG CENTRAL GROUP,STERIA LTD,1042019,"77,690.00",
FCO,FCO,02-Apr-12,Information Systems Maintenance,DG CENTRAL GROUP,STERIA LTD,1042019,"40,816.70",
FCO,FCO,02-Apr-12,IT/IS Consultancy,DG CENTRAL GROUP,STERIA LTD,1042019,"32,290.00",
FCO,FCO,02-Apr-12,VAT (Input) (Oracle Sub-Ledger Control Account),NON CASH & UNALLOCATED COSTS,STERIA LTD,1042019,"15,538.00",
FCO,FCO,02-Apr-12,IT/IS Consultancy,DG CENTRAL GROUP,STERIA LTD,1042019,"1,612.00",
FCO,FCO,02-Apr-12,IT/IS Consultancy,DG CENTRAL GROUP,STERIA LTD,1042019,"14,914.00",
FCO,FCO,02-Apr-12,VAT (Input) (Oracle Sub-Ledger Control Account),NON CASH & UNALLOCATED COSTS,STERIA LTD,1042019,"8,485.74",
FCO,FCO,02-Apr-12,VAT (Input) (Oracle Sub-Ledger Control Account),NON CASH & UNALLOCATED COSTS,STERIA LTD,1042019,"9,440.80",
FCO,FCO,12-Apr-12,Information Systems Maintenance,DG CENTRAL GROUP,STERIA LTD,1043076,"40,816.70",
FCO,FCO,12-Apr-12,IT/IS Consultancy,DG CENTRAL GROUP,STERIA LTD,1043076,"1,612.00",
FCO,FCO,12-Apr-12,VAT (Input) (Oracle Sub-Ledger Control Account),NON CASH & UNALLOCATED COSTS,STERIA LTD,1043076,"8,485.74",
FCO,FCO,30-Apr-12,General Information Services,DG CHANGE & DELIVERY,THE STATIONERY OFFICE LTD,1044304,"12,207.59",
FCO,FCO,30-Apr-12,General Information Services,DG CHANGE & DELIVERY,THE STATIONERY OFFICE LTD,1044304,"5,746.50",
FCO,FCO,30-Apr-12,General Information Services,DG CHANGE & DELIVERY,THE STATIONERY OFFICE LTD,1044304,"2,000.00",
FCO,FCO,30-Apr-12,General Information Services,DG CHANGE & DELIVERY,THE STATIONERY OFFICE LTD,1044304,"5,045.91",
FCO,FCO,30-Apr-12,VAT (Input) (Oracle Sub-Ledger Control Account),NON CASH & UNALLOCATED COSTS,THE STATIONERY OFFICE LTD,1044304,"3,850.70",
FCO,FCO,30-Apr-12,VAT (Input) (Oracle Sub-Ledger Control Account),NON CASH & UNALLOCATED COSTS,THE STATIONERY OFFICE LTD,1044304,"1,149.30",
FCO,FCO,20-Apr-12,Programme Spend (Oracle Projects Control Account),DG POLITICAL,UNITED NATIONS,1004764,"73,842,389.76",
FCO,FCO,25-Apr-12,Programme Spend (Oracle Projects Control Account),DG POLITICAL,UNITED NATIONS,1004769,"2,726,704.94",
FCO,FCO,25-Apr-12,Programme Spend (Oracle Projects Control Account),DG POLITICAL,UNITED NATIONS,1004770,"4,238,779.89",
FCO,FCO,25-Apr-12,Programme Spend (Oracle Projects Control Account),DG POLITICAL,UNITED NATIONS,1004771,"825,789.22",
FCO,FCO,03-Apr-12,Programme Spend (Oracle Projects Control Account),DG EUROPE AND GLOBALISATION,UNITED NATIONS,5000261,"60,000.00",
FCO,FCO,04-Apr-12,Programme Spend (Oracle Projects Control Account),DG EUROPE AND GLOBALISATION,UNIVERSITY OF DURHAM,1042569,"37,500.00",
FCO,FCO,04-Apr-12,Programme Spend (Oracle Projects Control Account),DG EUROPE AND GLOBALISATION,UNIVERSITY OF DURHAM,1042569,"8,310.00",
FCO,FCO,04-Apr-12,Programme Spend (Oracle Projects Control Account),DG EUROPE AND GLOBALISATION,UNIVERSITY OF DURHAM,1042569,"1,960.00",
FCO,FCO,04-Apr-12,Programme Spend (Oracle Projects Control Account),DG EUROPE AND GLOBALISATION,UNIVERSITY OF DURHAM,1042569,"3,000.00",
FCO,FCO,02-Apr-12,Programme Spend (Oracle Projects Control Account),DG CENTRAL GROUP,UNIVERSITY OF OXFORD,1042102,"78,800.00",
FCO,FCO,02-Apr-12,Programme Spend (Oracle Projects Control Account),DG CENTRAL GROUP,UNIVERSITY OF WESTMINSTER,1042106,"172,709.92",
FCO,FCO,10-Apr-12,Programme Spend (Oracle Projects Control Account),DG EUROPE AND GLOBALISATION,WESTMINSTER FOUNDATION FOR DEMOCRACY,1042859,"30,646.52",
FCO,FCO,05-Apr-12,Programme Spend (Oracle Projects Control Account),DG DEFENCE AND INTELLIGENCE,WILTON PARK EXECUTIVE AGENCY,1042701,"30,000.00",
FCO,FCO,20-Apr-12,Programme Spend (Oracle Projects Control Account),DG POLITICAL,NATIONAL DEMOCRATIC INSTITUTE,1004759,"65,000.00",
FCO,FCO,18-Apr-12,Programme Spend (Oracle Projects Control Account),DG POLITICAL,THE EURASIA PARTNERSHIP FOUNDATION,600000373,"41,791.28",
FCO,FCO,18-Apr-12,Programme Spend (Oracle Projects Control Account),DG POLITICAL,THE EURASIA PARTNERSHIP FOUNDATION,600000373,"8,876.92",
FCO,FCO,02-Apr-12,Programme Spend (Oracle Projects Control Account),DG POLITICAL,BBC WORLD SERVICE TRUST,1041335,"59,931.00",
FCO,FCO,11-Apr-12,Construction Project more than 10k,#N/A,OROSTREAM INTERNATIONAL CONTRACTS LTD,1042953,"39,035.62",
FCO,FCO,02-Apr-12,Programme Spend (Oracle Projects Control Account),DG EUROPE AND GLOBALISATION,NATIONAL POLICING IMPROVEMENT AGENCY (NPIA),1041840,"26,000.00",
FCO,FCO,25-Apr-12,Selling into Wider Markets,DG CHANGE & DELIVERY,WRG CREATIVE COMMINICATIONS LIMITED,1044071,"217,400.54",
FCO,FCO,25-Apr-12,VAT (Input) (Oracle Sub-Ledger Control Account),NON CASH & UNALLOCATED COSTS,WRG CREATIVE COMMINICATIONS LIMITED,1044071,"43,480.11",
FCO,FCO,26-Apr-12,Inward visits to the UK and UK Conferences,#N/A,WRG CREATIVE COMMINICATIONS LIMITED,1044181,"10,266.33",
FCO,FCO,26-Apr-12,Inward visits to the UK and UK Conferences,#N/A,WRG CREATIVE COMMINICATIONS LIMITED,1044181,"154,346.44",
FCO,FCO,26-Apr-12,VAT (Input) (Oracle Sub-Ledger Control Account),NON CASH & UNALLOCATED COSTS,WRG CREATIVE COMMINICATIONS LIMITED,1044181,"32,922.56",
FCO,FCO,26-Apr-12,VAT (Input) (Oracle Sub-Ledger Control Account),NON CASH & UNALLOCATED COSTS,WRG CREATIVE COMMINICATIONS LIMITED,1044181,-0.01,
FCO,FCO,26-Apr-12,Inward visits to the UK and UK Conferences,#N/A,WRG CREATIVE COMMINICATIONS LIMITED,1044181,"-10,266.33",
FCO,FCO,26-Apr-12,Inward visits to the UK and UK Conferences,#N/A,WRG CREATIVE COMMINICATIONS LIMITED,1044181,"-154,346.44",
FCO,FCO,26-Apr-12,Inward visits to the UK and UK Conferences,#N/A,WRG CREATIVE COMMINICATIONS LIMITED,1044181,"3,957.18",
FCO,FCO,26-Apr-12,Inward visits to the UK and UK Conferences,#N/A,WRG CREATIVE COMMINICATIONS LIMITED,1044181,"154,346.44",
FCO,FCO,26-Apr-12,Inward visits to the UK and UK Conferences,#N/A,WRG CREATIVE COMMINICATIONS LIMITED,1044181,"6,309.15",
